Service Delivery Area(T),Service Delivery Team(T),ExpenditureGroup(T),Account(T),Supplier Name(T),Trans Date,Amount
Adult Social Care,ASC Prevention & Enablement,Supplies & Services,Aids & Appliances,1st Call Mobility,28/06/2022,387.50
Adult Social Care,ASC Prevention & Enablement,Transport-Related Expenditure,Taxi Costs,Cartello Ambulance,01/06/2022,156.00
Adult Social Care,ASC Prevention & Enablement,Transport-Related Expenditure,Taxi Costs,Telford Taxi Hire Limited,10/06/2022,900.00
Adult Social Care,ASC Prevention & Enablement,Transport-Related Expenditure,Taxi Costs,Cartello Ambulance,17/06/2022,182.00
Adult Social Care,ASC Prevention & Enablement,Transport-Related Expenditure,Taxi Costs,Cartello Ambulance,17/06/2022,147.00
Adult Social Care,ASC Prevention & Enablement,Transport-Related Expenditure,Taxi Costs,Cartello Ambulance,17/06/2022,171.50
Adult Social Care,ASC Prevention & Enablement,Transport-Related Expenditure,Taxi Costs,Cartello Ambulance,17/06/2022,156.00
Adult Social Care,ASC Prevention & Enablement,Transport-Related Expenditure,Taxi Costs,Cartello Ambulance,17/06/2022,255.00
Adult Social Care,ASC Prevention & Enablement,Transport-Related Expenditure,Taxi Costs,Cartello Ambulance,17/06/2022,156.00
Adult Social Care,ASC Prevention & Enablement,Transport-Related Expenditure,Taxi Costs,Cartello Ambulance,17/06/2022,255.00
Adult Social Care,ASC Prevention & Enablement,Transport-Related Expenditure,Taxi Costs,Cartello Ambulance,17/06/2022,130.00
Adult Social Care,ASC Prevention & Enablement,Transport-Related Expenditure,Taxi Costs,Cartello Ambulance,17/06/2022,130.00
Adult Social Care,ASC Prevention & Enablement,Transport-Related Expenditure,Taxi Costs,Cartello Ambulance,17/06/2022,147.00
Adult Social Care,ASC Prevention & Enablement,Transport-Related Expenditure,Taxi Costs,Cartello Ambulance,17/06/2022,147.00
Adult Social Care,ASC Prevention & Enablement,Transport-Related Expenditure,Taxi Costs,Cartello Ambulance,17/06/2022,147.00
Adult Social Care,ASC Prevention & Enablement,Transport-Related Expenditure,Taxi Costs,Cartello Ambulance,17/06/2022,156.00
Adult Social Care,ASC Prevention & Enablement,Transport-Related Expenditure,Taxi Costs,Cartello Ambulance,17/06/2022,182.00
Adult Social Care,ASC Prevention & Enablement,Transport-Related Expenditure,Taxi Costs,Cartello Ambulance,17/06/2022,156.00
Adult Social Care,ASC Prevention & Enablement,Transport-Related Expenditure,Taxi Costs,Cartello Ambulance,17/06/2022,156.00
Adult Social Care,ASC Prevention & Enablement,Transport-Related Expenditure,Taxi Costs,Cartello Ambulance,17/06/2022,156.00
Adult Social Care,ASC Prevention & Enablement,Transport-Related Expenditure,Taxi Costs,Cartello Ambulance,17/06/2022,147.00
Adult Social Care,ASC Prevention & Enablement,Transport-Related Expenditure,Taxi Costs,Cartello Ambulance,17/06/2022,147.00
Adult Social Care,ASC Prevention & Enablement,Transport-Related Expenditure,Taxi Costs,Cartello Ambulance,17/06/2022,147.00
Adult Social Care,ASC Prevention & Enablement,Transport-Related Expenditure,Taxi Costs,Cartello Ambulance,17/06/2022,156.00
Adult Social Care,ASC Prevention & Enablement,Transport-Related Expenditure,Taxi Costs,Cartello Ambulance,17/06/2022,130.00
Adult Social Care,ASC Prevention & Enablement,Transport-Related Expenditure,Taxi Costs,Cartello Ambulance,17/06/2022,156.00
Adult Social Care,ASC Prevention & Enablement,Transport-Related Expenditure,Taxi Costs,Cartello Ambulance,17/06/2022,156.00
Adult Social Care,ASC Prevention & Enablement,Transport-Related Expenditure,Taxi Costs,Cartello Ambulance,17/06/2022,262.50
Adult Social Care,ASC Prevention & Enablement,Transport-Related Expenditure,Taxi Costs,Cartello Ambulance,17/06/2022,300.00
Adult Social Care,ASC Prevention & Enablement,Transport-Related Expenditure,Taxi Costs,Cartello Ambulance,17/06/2022,156.00
Adult Social Care,ASC Prevention & Enablement,Transport-Related Expenditure,Taxi Costs,Cartello Ambulance,17/06/2022,182.00
Adult Social Care,ASC Prevention & Enablement,Transport-Related Expenditure,Taxi Costs,Cartello Ambulance,17/06/2022,156.00
Adult Social Care,ASC Prevention & Enablement,Employees,Agency Supply Costs,Medgen LTD,10/06/2022,"2,971.99"
Adult Social Care,ASC Prevention & Enablement,Employees,Other Employee Costs,Medgen LTD,10/06/2022,"3,501.35"
Adult Social Care,ASC Prevention & Enablement,Employees,Agency Supply Costs,Reed Talent Solutions Ltd,23/06/2022,"1,800.00"
Adult Social Care,ASC Prevention & Enablement,Employees,Agency Supply Costs,Reed Talent Solutions Ltd,23/06/2022,"1,080.00"
Adult Social Care,ASC Prevention & Enablement,Employees,Agency Supply Costs,Reed Talent Solutions Ltd,23/06/2022,"1,800.00"
Adult Social Care,ASC Prevention & Enablement,Employees,Other Employee Costs,Medgen LTD,17/06/2022,"2,971.99"
Adult Social Care,"Commissioning, Procurement & Brokerage",Supplies & Services,Other Grants (Expenses),NCCTC Ltd,13/06/2022,132.80
Adult Social Care,"Commissioning, Procurement & Brokerage",Supplies & Services,Protective Clothing,Maiden�s of Telford,30/06/2022,205.13
Adult Social Care,"Commissioning, Procurement & Brokerage",Third Party Payments,Interpreters Fees,EXPRESS INTERPRETING & TRANSLATION,30/06/2022,"5,390.07"
Adult Social Care,"Commissioning, Procurement & Brokerage",Supplies & Services,Other Grants (Expenses),TELFORD & WREKIN CVS,20/06/2022,"25,000.00"
Adult Social Care,"Commissioning, Procurement & Brokerage",Third Party Payments,Private Contractors,POHWER,22/06/2022,"18,750.00"
Adult Social Care,"Commissioning, Procurement & Brokerage",Supplies & Services,Mobile Phones,EE LTD EQUIPMENT ,28/06/2022,142.00
Adult Social Care,Community Social Work & Adult Safeguarding,Supplies & Services,Legal Expenses,Kings Chambers,01/06/2022,275.00
Adult Social Care,Community Social Work & Adult Safeguarding,Supplies & Services,Mobile Phones,EE LTD EQUIPMENT ,07/06/2022,284.00
Adult Social Care,Community Social Work & Adult Safeguarding,Supplies & Services,Medical Consultants Fees,REDACTED PERSONAL INFORMATION,14/06/2022,"2,604.30"
Adult Social Care,Community Social Work (Principal Social Worker),Transport-Related Expenditure,Taxi Costs,Go Carz,07/06/2022,306.00
Adult Social Care,Community Social Work (Principal Social Worker),Third Party Payments,Other Care Purchasing,Inclusive Media Solutions Limited,07/06/2022,"13,520.00"
Adult Social Care,Community Social Work (Principal Social Worker),Third Party Payments,Residential Expenditure,CONDOVER COLLEGE LTD,17/06/2022,"39,585.20"
Adult Social Care,Community Social Work (Principal Social Worker),Third Party Payments,Residential Expenditure,CONDOVER COLLEGE LTD,17/06/2022,"10,202.75"
Adult Social Care,My Options,Employees,Training Expenses,Crisis Prevention Institute Europe,22/06/2022,"3,640.00"
Adult Social Care,My Options,Supplies & Services,Mobile Phones,EE LTD EQUIPMENT,21/06/2022,142.00
Adult Social Care,My Options,Premises-Related Expenditure,Clean Mats & Toilet Requisites,PHS GROUP,14/06/2022,536.64
Adult Social Care,My Options,Premises-Related Expenditure,Clean Mats & Toilet Requisites,PHS GROUP,28/06/2022,112.27
Adult Social Care,My Options,Premises-Related Expenditure,Clean Mats & Toilet Requisites,PHS GROUP,28/06/2022,112.27
Adult Social Care,My Options,Supplies & Services,Mobile Phones,EE LTD EQUIPMENT ,21/06/2022,142.00
Adult Social Care,My Options,Supplies & Services,Equipment - Purchase,JCE & SONS LTD,28/06/2022,678.00
Adult Social Care,My Options,Premises-Related Expenditure,Hire Of Rooms,DONNINGTON PARTNERSHIP,15/06/2022,180.00
Adult Social Care,My Options,Premises-Related Expenditure,Hire Of Rooms,DONNINGTON PARTNERSHIP,15/06/2022,270.00
Adult Social Care,My Options,Premises-Related Expenditure,Hire Of Rooms,All Saints Wellington,13/06/2022,330.00
Adult Social Care,My Options,Premises-Related Expenditure,Hire Of Rooms,Dawley Baptist Church,10/06/2022,470.00
Adult Social Care,My Options,Employees,Agency Supply Costs,Safehands Recruitment,15/06/2022,898.00
Adult Social Care,My Options,Employees,Agency Supply Costs,Nurse Plus and Carer Plus (UK) Limited,07/06/2022,"4,074.10"
Adult Social Care,My Options,Employees,Agency Supply Costs,Nurse Plus and Carer Plus (UK) Limited,10/06/2022,"3,431.96"
Adult Social Care,My Options,Employees,Agency Supply Costs,Safehands Recruitment,06/06/2022,"1,817.00"
Adult Social Care,My Options,Employees,Agency Supply Costs,Safehands Recruitment,09/06/2022,"1,153.00"
Adult Social Care,My Options,Employees,Agency Supply Costs,Nurse Plus and Carer Plus (UK) Limited,01/06/2022,"1,206.01"
Adult Social Care,My Options,Employees,Agency Supply Costs,Safehands Recruitment,28/06/2022,"2,606.00"
Adult Social Care,My Options,Employees,Agency Supply Costs,Nurse Plus and Carer Plus (UK) Limited,22/06/2022,"3,732.83"
Adult Social Care,My Options,Employees,Agency Supply Costs,Nurse Plus and Carer Plus (UK) Limited,29/06/2022,"2,127.30"
Adult Social Care,My Options,Premises-Related Expenditure,Clean Mats & Toilet Requisites,BERWICK CARE EQUIPMENT LTD,15/06/2022,265.97
Adult Social Care,My Options,Premises-Related Expenditure,Clean Mats & Toilet Requisites,BERWICK CARE EQUIPMENT LTD,01/06/2022,172.94
Adult Social Care,My Options,Supplies & Services,Equipment - Purchase,GRANVILLE CONSTRUCTION & MAINTENANCE LTD,06/06/2022,270.00
Adult Social Care,My Options,Supplies & Services,Mobile Phones,EE LTD EQUIPMENT,21/06/2022,142.00
Adult Social Care,My Options,Employees,Agency Supply Costs,Nurse Plus and Carer Plus (UK) Limited,29/06/2022,251.30
Adult Social Care,My Options,Employees,Agency Supply Costs,Nurse Plus and Carer Plus (UK) Limited,29/06/2022,451.50
Adult Social Care,My Options,Employees,Agency Supply Costs,Nurse Plus and Carer Plus (UK) Limited,29/06/2022,195.00
Adult Social Care,My Options,Employees,Agency Supply Costs,Safehands Recruitment,15/06/2022,133.00
Adult Social Care,My Options,Employees,Agency Supply Costs,Safehands Recruitment,15/06/2022,333.00
Adult Social Care,My Options,Employees,Agency Supply Costs,Safehands Recruitment,15/06/2022,351.25
Adult Social Care,My Options,Employees,Agency Supply Costs,Safehands Recruitment,15/06/2022,684.00
Adult Social Care,My Options,Employees,Agency Supply Costs,Safehands Recruitment,15/06/2022,"1,301.42"
Adult Social Care,My Options,Employees,Agency Supply Costs,JN Recruitment,15/06/2022,"1,154.64"
Adult Social Care,My Options,Employees,Agency Supply Costs,Nurse Plus and Carer Plus (UK) Limited,07/06/2022,"2,736.69"
Adult Social Care,My Options,Employees,Agency Supply Costs,Nurse Plus and Carer Plus (UK) Limited,07/06/2022,383.57
Adult Social Care,My Options,Employees,Agency Supply Costs,JN Recruitment,07/06/2022,858.00
Adult Social Care,My Options,Employees,Agency Supply Costs,Nurse Plus and Carer Plus (UK) Limited,10/06/2022,"3,428.89"
Adult Social Care,My Options,Employees,Agency Supply Costs,Nurse Plus and Carer Plus (UK) Limited,10/06/2022,320.65
Adult Social Care,My Options,Employees,Agency Supply Costs,Safehands Recruitment,06/06/2022,133.00
Adult Social Care,My Options,Employees,Agency Supply Costs,Safehands Recruitment,06/06/2022,732.00
Adult Social Care,My Options,Employees,Agency Supply Costs,Safehands Recruitment,06/06/2022,309.00
Adult Social Care,My Options,Employees,Agency Supply Costs,Safehands Recruitment,06/06/2022,133.00
Adult Social Care,My Options,Employees,Agency Supply Costs,Safehands Recruitment,09/06/2022,412.00
Adult Social Care,My Options,Employees,Agency Supply Costs,Safehands Recruitment,09/06/2022,"1,335.50"
Adult Social Care,My Options,Employees,Agency Supply Costs,JN Recruitment,09/06/2022,"1,229.27"
Adult Social Care,My Options,Employees,Agency Supply Costs,Safehands Recruitment,09/06/2022,200.00
Adult Social Care,My Options,Employees,Agency Supply Costs,Safehands Recruitment,09/06/2022,238.00
Adult Social Care,My Options,Employees,Agency Supply Costs,Nurse Plus and Carer Plus (UK) Limited,01/06/2022,125.65
Adult Social Care,My Options,Employees,Agency Supply Costs,Nurse Plus and Carer Plus (UK) Limited,01/06/2022,345.50
Adult Social Care,My Options,Employees,Agency Supply Costs,Nurse Plus and Carer Plus (UK) Limited,01/06/2022,"2,353.50"
Adult Social Care,My Options,Employees,Agency Supply Costs,Safehands Recruitment,28/06/2022,252.00
Adult Social Care,My Options,Employees,Agency Supply Costs,Safehands Recruitment,28/06/2022,"1,990.00"
Adult Social Care,My Options,Employees,Agency Supply Costs,Safehands Recruitment,28/06/2022,"1,467.00"
Adult Social Care,My Options,Employees,Agency Supply Costs,Safehands Recruitment,28/06/2022,119.00
Adult Social Care,My Options,Employees,Agency Supply Costs,Safehands Recruitment,28/06/2022,"1,241.00"
Adult Social Care,My Options,Employees,Agency Supply Costs,Nurse Plus and Carer Plus (UK) Limited,22/06/2022,349.65
Adult Social Care,My Options,Employees,Agency Supply Costs,Nurse Plus and Carer Plus (UK) Limited,22/06/2022,339.09
Adult Social Care,My Options,Employees,Agency Supply Costs,Nurse Plus and Carer Plus (UK) Limited,22/06/2022,195.00
Adult Social Care,My Options,Employees,Agency Supply Costs,Nurse Plus and Carer Plus (UK) Limited,22/06/2022,"4,065.73"
Adult Social Care,My Options,Employees,Agency Supply Costs,Nurse Plus and Carer Plus (UK) Limited,22/06/2022,195.00
Adult Social Care,My Options,Employees,Agency Supply Costs,Nurse Plus and Carer Plus (UK) Limited,22/06/2022,935.00
Adult Social Care,My Options,Employees,Agency Supply Costs,Nurse Plus and Carer Plus (UK) Limited,29/06/2022,"4,501.23"
Adult Social Care,My Options,Supplies & Services,Mobile Phones,EE LTD EQUIPMENT ,21/06/2022,142.00
Adult Social Care,My Options,Supplies & Services,Mobile Phones,EE LTD EQUIPMENT ,21/06/2022,710.00
Adult Social Care,My Options,Supplies & Services,Computer Software (Maint),Access UK Ltd,22/06/2022,644.40
Adult Social Care,My Options,Supplies & Services,Respite Care,REDACTED PERSONAL INFORMATION,23/06/2022,476.54
Adult Social Care,My Options,Supplies & Services,Respite Care,REDACTED PERSONAL INFORMATION,06/06/2022,476.54
Adult Social Care,My Options,Supplies & Services,Adult Flexi / Day Care,REDACTED PERSONAL INFORMATION,09/06/2022,213.60
Adult Social Care,My Options,Supplies & Services,Adult Flexi / Day Care,REDACTED PERSONAL INFORMATION,09/06/2022,801.00
Adult Social Care,My Options,Supplies & Services,Respite Care,REDACTED PERSONAL INFORMATION,09/06/2022,106.80
Adult Social Care,My Options,Supplies & Services,Adult Flexi / Day Care,REDACTED PERSONAL INFORMATION,09/06/2022,480.60
Adult Social Care,My Options,Supplies & Services,Adult Flexi / Day Care,REDACTED PERSONAL INFORMATION,09/06/2022,106.80
Adult Social Care,My Options,Supplies & Services,Respite Care,REDACTED PERSONAL INFORMATION,09/06/2022,238.27
Adult Social Care,My Options,Supplies & Services,Respite Care,REDACTED PERSONAL INFORMATION,24/06/2022,792.40
Adult Social Care,My Options,Supplies & Services,Respite Care,REDACTED PERSONAL INFORMATION,24/06/2022,"1,372.40"
Adult Social Care,My Options,Supplies & Services,Respite Care,REDACTED PERSONAL INFORMATION,24/06/2022,"1,179.24"
Adult Social Care,My Options,Supplies & Services,Respite Care,REDACTED PERSONAL INFORMATION,24/06/2022,953.08
Adult Social Care,My Options,Supplies & Services,Respite Care,REDACTED PERSONAL INFORMATION,24/06/2022,"1,559.24"
Adult Social Care,My Options,Supplies & Services,Respite Care,REDACTED PERSONAL INFORMATION,30/06/2022,238.27
Adult Social Care,My Options,Third Party Payments,DSG - High Needs Block,REDACTED PERSONAL INFORMATION,06/06/2022,953.08
Adult Social Care,My Options,Employees,Agency Supply Costs,Iconic Care Limited,22/06/2022,"5,359.50"
Adult Social Care,My Options,Employees,Agency Supply Costs,Iconic Care Limited,22/06/2022,708.00
Adult Social Care,My Options,Employees,Agency Supply Costs,Iconic Care Limited,22/06/2022,"4,105.50"
Adult Social Care,My Options,Employees,Agency Supply Costs,Iconic Care Limited,22/06/2022,"3,383.50"
Adult Social Care,My Options,Employees,Agency Supply Costs,Iconic Care Limited,22/06/2022,"3,390.00"
Adult Social Care,My Options,Employees,Agency Supply Costs,Iconic Care Limited,22/06/2022,"4,128.00"
Adult Social Care,My Options,Employees,Agency Supply Costs,Iconic Care Limited,22/06/2022,"1,956.00"
Adult Social Care,My Options,Employees,Agency Supply Costs,Iconic Care Limited,22/06/2022,702.00
Adult Social Care,My Options,Employees,Agency Supply Costs,Iconic Care Limited,22/06/2022,360.00
Adult Social Care,My Options,Employees,Agency Supply Costs,Iconic Care Limited,22/06/2022,534.00
Adult Social Care,My Options,Supplies & Services,Laundry & Towel Hire,PHS GROUP,24/06/2022,191.10
Adult Social Care,Prevention & Independence - Older Adults & Disability,Supplies & Services,Mobile Phones,EE LTD EQUIPMENT ,28/06/2022,142.00
Adult Social Care,Prevention & Independence - Older Adults & Disability,Third Party Payments,Interpreters Fees,DSCS Ltd,14/06/2022,140.40
Adult Social Care,Prevention & Independence - Older Adults & Disability,Third Party Payments,Homecare Expenditure,"NHS Shropshire, Telford and Wrekin CCG",01/06/2022,"10,929.13"
Adult Social Care,Prevention & Independence - Older Adults & Disability,Third Party Payments,Homecare Expenditure,"NHS Shropshire, Telford and Wrekin CCG",01/06/2022,"17,858.50"
Adult Social Care,Prevention & Independence - Older Adults & Disability,Supplies & Services,Aids & Appliances,SARABEC LIMITED,07/06/2022,407.00
Adult Social Care,Prevention & Independence - Older Adults & Disability,Supplies & Services,Aids & Appliances,SARABEC LIMITED,07/06/2022,349.36
Adult Social Care,Prevention & Independence - Older Adults & Disability,Supplies & Services,Aids & Appliances,SARABEC LIMITED,07/06/2022,158.72
Adult Social Care,Prevention & Independence - Older Adults & Disability,Supplies & Services,Aids & Appliances,SARABEC LIMITED,07/06/2022,257.76
Adult Social Care,Prevention & Independence - Older Adults & Disability,Supplies & Services,Aids & Appliances,Canary Care Global Limited,22/06/2022,"2,233.00"
Adult Social Care,Prevention & Independence - Older Adults & Disability,Supplies & Services,Aids & Appliances,Canary Care Global Limited,22/06/2022,"1,449.00"
Adult Social Care,Prevention & Independence - Older Adults & Disability,Supplies & Services,Medical Consultants Fees,TEC Services Association C.I.C,30/06/2022,420.00
Adult Social Care,Prevention & Independence - Older Adults & Disability,Supplies & Services,Aids & Appliances,Nottingham Rehab Ltd,07/06/2022,"2,499.90"
Adult Social Care,Prevention & Independence - Older Adults & Disability,Supplies & Services,Aids & Appliances,BERWICK CARE EQUIPMENT LTD,01/06/2022,"1,899.00"
Adult Social Care,Prevention & Independence - Older Adults & Disability,Supplies & Services,Aids & Appliances,Nottingham Rehab Ltd,01/06/2022,227.96
Adult Social Care,Prevention & Independence - Older Adults & Disability,Supplies & Services,Aids & Appliances,OSPREY HEALTHCARE LTD,06/06/2022,633.00
Adult Social Care,Prevention & Independence - Older Adults & Disability,Supplies & Services,Aids & Appliances,SILVALEA LIMITED,07/06/2022,700.00
Adult Social Care,Prevention & Independence - Older Adults & Disability,Supplies & Services,Aids & Appliances,OSPREY HEALTHCARE LTD,07/06/2022,110.00
Adult Social Care,Prevention & Independence - Older Adults & Disability,Supplies & Services,Aids & Appliances,OSPREY HEALTHCARE LTD,07/06/2022,"1,479.30"
Adult Social Care,Prevention & Independence - Older Adults & Disability,Supplies & Services,Aids & Appliances,OSPREY HEALTHCARE LTD,08/06/2022,410.00
Adult Social Care,Prevention & Independence - Older Adults & Disability,Supplies & Services,Equipment - Repair,STANNAH LIFT SERVICES LTD,08/06/2022,233.40
Adult Social Care,Prevention & Independence - Older Adults & Disability,Supplies & Services,Equipment - Repair,STANNAH LIFT SERVICES LTD,08/06/2022,472.50
Adult Social Care,Prevention & Independence - Older Adults & Disability,Supplies & Services,Equipment - Repair,STANNAH LIFT SERVICES LTD,08/06/2022,392.81
Adult Social Care,Prevention & Independence - Older Adults & Disability,Supplies & Services,Equipment - Repair,STANNAH LIFT SERVICES LTD,08/06/2022,202.47
Adult Social Care,Prevention & Independence - Older Adults & Disability,Supplies & Services,Equipment - Repair,STANNAH LIFT SERVICES LTD,08/06/2022,334.50
Adult Social Care,Prevention & Independence - Older Adults & Disability,Supplies & Services,Equipment - Repair,STANNAH LIFT SERVICES LTD,08/06/2022,466.66
Adult Social Care,Prevention & Independence - Older Adults & Disability,Supplies & Services,Equipment - Repair,STANNAH LIFT SERVICES LTD,08/06/2022,538.78
Adult Social Care,Prevention & Independence - Older Adults & Disability,Supplies & Services,Equipment - Repair,STANNAH LIFT SERVICES LTD,08/06/2022,607.50
Adult Social Care,Prevention & Independence - Older Adults & Disability,Supplies & Services,Equipment - Repair,STANNAH LIFT SERVICES LTD,08/06/2022,463.75
Adult Social Care,Prevention & Independence - Older Adults & Disability,Supplies & Services,Equipment - Repair,STANNAH LIFT SERVICES LTD,08/06/2022,738.62
Adult Social Care,Prevention & Independence - Older Adults & Disability,Supplies & Services,Aids & Appliances,OSPREY HEALTHCARE LTD,08/06/2022,475.00
Adult Social Care,Prevention & Independence - Older Adults & Disability,Supplies & Services,Equipment - Repair,STANNAH LIFT SERVICES LTD,08/06/2022,202.47
Adult Social Care,Prevention & Independence - Older Adults & Disability,Supplies & Services,Equipment - Repair,STANNAH LIFT SERVICES LTD,08/06/2022,200.21
Adult Social Care,Prevention & Independence - Older Adults & Disability,Supplies & Services,Aids & Appliances,Nottingham Rehab Ltd,21/06/2022,911.84
Adult Social Care,Prevention & Independence - Older Adults & Disability,Supplies & Services,Equipment - Repair,Closomat Limited,08/06/2022,190.00
Adult Social Care,Prevention & Independence - Older Adults & Disability,Supplies & Services,Equipment - Repair,STANNAH LIFT SERVICES LTD,24/06/2022,954.99
Adult Social Care,Prevention & Independence - Older Adults & Disability,Supplies & Services,Equipment - Repair,STANNAH LIFT SERVICES LTD,24/06/2022,220.57
Adult Social Care,Prevention & Independence - Older Adults & Disability,Supplies & Services,Equipment - Repair,STANNAH LIFT SERVICES LTD,24/06/2022,650.18
Adult Social Care,Prevention & Independence - Older Adults & Disability,Supplies & Services,Equipment - Repair,STANNAH LIFT SERVICES LTD,24/06/2022,285.15
Adult Social Care,Prevention & Independence - Older Adults & Disability,Supplies & Services,Equipment - Repair,STANNAH LIFT SERVICES LTD,24/06/2022,396.66
Adult Social Care,Prevention & Independence - Older Adults & Disability,Supplies & Services,Equipment - Repair,STANNAH LIFT SERVICES LTD,24/06/2022,190.26
Adult Social Care,Prevention & Independence - Older Adults & Disability,Supplies & Services,Equipment - Repair,STANNAH LIFT SERVICES LTD,24/06/2022,"1,257.86"
Adult Social Care,Prevention & Independence - Older Adults & Disability,Supplies & Services,Equipment - Repair,STANNAH LIFT SERVICES LTD,24/06/2022,352.87
Adult Social Care,Prevention & Independence - Older Adults & Disability,Supplies & Services,Equipment - Repair,STANNAH LIFT SERVICES LTD,24/06/2022,339.29
Adult Social Care,Prevention & Independence - Older Adults & Disability,Supplies & Services,Equipment - Repair,STANNAH LIFT SERVICES LTD,24/06/2022,"1,196.32"
Adult Social Care,Prevention & Independence - Older Adults & Disability,Supplies & Services,Equipment - Repair,STANNAH LIFT SERVICES LTD,24/06/2022,216.59
Adult Social Care,Prevention & Independence - Older Adults & Disability,Supplies & Services,Equipment - Repair,STANNAH LIFT SERVICES LTD,24/06/2022,558.07
Adult Social Care,Prevention & Independence - Older Adults & Disability,Supplies & Services,Equipment - Repair,STANNAH LIFT SERVICES LTD,24/06/2022,659.13
Adult Social Care,Prevention & Independence - Older Adults & Disability,Supplies & Services,Equipment - Repair,STANNAH LIFT SERVICES LTD,24/06/2022,950.88
Adult Social Care,Prevention & Independence - Older Adults & Disability,Supplies & Services,Equipment - Repair,STANNAH LIFT SERVICES LTD,24/06/2022,300.80
Adult Social Care,Prevention & Independence - Older Adults & Disability,Supplies & Services,Equipment - Repair,STANNAH LIFT SERVICES LTD,24/06/2022,"1,002.49"
Adult Social Care,Prevention & Independence - Older Adults & Disability,Supplies & Services,Equipment - Repair,STANNAH LIFT SERVICES LTD,24/06/2022,933.86
Adult Social Care,Prevention & Independence - Older Adults & Disability,Employees,Agency Supply Costs,Reed Talent Solutions Ltd,23/06/2022,421.11
Adult Social Care,Prevention & Independence - Older Adults & Disability,Employees,Agency Supply Costs,Reed Talent Solutions Ltd,23/06/2022,"1,800.00"
Adult Social Care,Prevention & Independence - Older Adults & Disability,Employees,Agency Supply Costs,Reed Talent Solutions Ltd,23/06/2022,"1,800.00"
Adult Social Care,Prevention & Independence - Older Adults & Disability,Employees,Agency Supply Costs,Reed Talent Solutions Ltd,23/06/2022,"1,800.00"
Adult Social Care,Prevention & Independence - Older Adults & Disability,Employees,Agency Supply Costs,Reed Talent Solutions Ltd,23/06/2022,"1,800.00"
Adult Social Care,Service Improvement & Efficiency,Supplies & Services,Comp Software (Purch / Hire),Signis Limited,21/06/2022,"13,400.00"
Children�s Safeguarding & Family Support,Child Protection & Family Support,Supplies & Services,Other Grants (Expenses),REDACTED PERSONAL INFORMATION,09/06/2022,500.00
Children�s Safeguarding & Family Support,Child Protection & Family Support,Supplies & Services,Other Grants (Expenses),REDACTED PERSONAL INFORMATION,09/06/2022,500.00
Children�s Safeguarding & Family Support,Child Protection & Family Support,Supplies & Services,Other Grants (Expenses),REDACTED PERSONAL INFORMATION,09/06/2022,500.00
Children�s Safeguarding & Family Support,Child Protection & Family Support,Supplies & Services,Other Grants (Expenses),REDACTED PERSONAL INFORMATION,09/06/2022,500.00
Children�s Safeguarding & Family Support,Child Protection & Family Support,Supplies & Services,Other Grants (Expenses),REDACTED PERSONAL INFORMATION,09/06/2022,220.00
Children�s Safeguarding & Family Support,Child Protection & Family Support,Supplies & Services,Other Grants (Expenses),REDACTED PERSONAL INFORMATION,09/06/2022,300.00
Children�s Safeguarding & Family Support,Child Protection & Family Support,Supplies & Services,Other Grants (Expenses),REDACTED PERSONAL INFORMATION,09/06/2022,300.00
Children�s Safeguarding & Family Support,Child Protection & Family Support,Supplies & Services,Other Grants (Expenses),REDACTED PERSONAL INFORMATION,09/06/2022,300.00
Children�s Safeguarding & Family Support,Child Protection & Family Support,Supplies & Services,Other Grants (Expenses),REDACTED PERSONAL INFORMATION,09/06/2022,500.00
Children�s Safeguarding & Family Support,Child Protection & Family Support,Supplies & Services,Other Grants (Expenses),REDACTED PERSONAL INFORMATION,09/06/2022,465.00
Children�s Safeguarding & Family Support,Child Protection & Family Support,Supplies & Services,Other Grants (Expenses),REDACTED PERSONAL INFORMATION,09/06/2022,300.00
Children�s Safeguarding & Family Support,Child Protection & Family Support,Supplies & Services,Other Grants (Expenses),REDACTED PERSONAL INFORMATION,09/06/2022,215.00
Children�s Safeguarding & Family Support,Child Protection & Family Support,Supplies & Services,Other Grants (Expenses),REDACTED PERSONAL INFORMATION,09/06/2022,300.00
Children�s Safeguarding & Family Support,Child Protection & Family Support,Supplies & Services,Other Grants (Expenses),REDACTED PERSONAL INFORMATION,09/06/2022,200.00
Children�s Safeguarding & Family Support,Child Protection & Family Support,Supplies & Services,Other Grants (Expenses),REDACTED PERSONAL INFORMATION,09/06/2022,300.00
Children�s Safeguarding & Family Support,Child Protection & Family Support,Supplies & Services,Other Grants (Expenses),REDACTED PERSONAL INFORMATION,09/06/2022,500.00
Children�s Safeguarding & Family Support,Child Protection & Family Support,Supplies & Services,Other Grants (Expenses),REDACTED PERSONAL INFORMATION,09/06/2022,300.00
Children�s Safeguarding & Family Support,Child Protection & Family Support,Supplies & Services,Other Grants (Expenses),REDACTED PERSONAL INFORMATION,09/06/2022,275.00
Children�s Safeguarding & Family Support,Child Protection & Family Support,Supplies & Services,Other Grants (Expenses),REDACTED PERSONAL INFORMATION,09/06/2022,300.00
Children�s Safeguarding & Family Support,Child Protection & Family Support,Supplies & Services,Other Grants (Expenses),REDACTED PERSONAL INFORMATION,09/06/2022,300.00
Children�s Safeguarding & Family Support,Child Protection & Family Support,Supplies & Services,Other Grants (Expenses),REDACTED PERSONAL INFORMATION,09/06/2022,200.00
Children�s Safeguarding & Family Support,Child Protection & Family Support,Supplies & Services,Other Grants (Expenses),REDACTED PERSONAL INFORMATION,09/06/2022,500.00
Children�s Safeguarding & Family Support,Child Protection & Family Support,Supplies & Services,Other Grants (Expenses),REDACTED PERSONAL INFORMATION,09/06/2022,300.00
Children�s Safeguarding & Family Support,Child Protection & Family Support,Supplies & Services,Other Grants (Expenses),REDACTED PERSONAL INFORMATION,09/06/2022,439.20
Children�s Safeguarding & Family Support,Child Protection & Family Support,Supplies & Services,Other Grants (Expenses),REDACTED PERSONAL INFORMATION,09/06/2022,300.00
Children�s Safeguarding & Family Support,Child Protection & Family Support,Supplies & Services,Other Grants (Expenses),REDACTED PERSONAL INFORMATION,09/06/2022,500.00
Children�s Safeguarding & Family Support,Child Protection & Family Support,Supplies & Services,Other Grants (Expenses),REDACTED PERSONAL INFORMATION,09/06/2022,300.00
Children�s Safeguarding & Family Support,Child Protection & Family Support,Supplies & Services,Other Grants (Expenses),REDACTED PERSONAL INFORMATION,09/06/2022,300.00
Children�s Safeguarding & Family Support,Child Protection & Family Support,Supplies & Services,Other Grants (Expenses),REDACTED PERSONAL INFORMATION,09/06/2022,368.98
Children�s Safeguarding & Family Support,Child Protection & Family Support,Supplies & Services,Other Grants (Expenses),REDACTED PERSONAL INFORMATION,09/06/2022,300.00
Children�s Safeguarding & Family Support,Child Protection & Family Support,Supplies & Services,Other Grants (Expenses),REDACTED PERSONAL INFORMATION,09/06/2022,300.00
Children�s Safeguarding & Family Support,Child Protection & Family Support,Supplies & Services,Other Grants (Expenses),REDACTED PERSONAL INFORMATION,09/06/2022,212.00
Children�s Safeguarding & Family Support,Child Protection & Family Support,Supplies & Services,Other Grants (Expenses),REDACTED PERSONAL INFORMATION,09/06/2022,400.00
Children�s Safeguarding & Family Support,Child Protection & Family Support,Supplies & Services,Other Grants (Expenses),REDACTED PERSONAL INFORMATION,09/06/2022,300.00
Children�s Safeguarding & Family Support,Child Protection & Family Support,Supplies & Services,Instructors Fees,SCHOOL SPEAKERS ENTERPRISE LIMITED,09/06/2022,"1,044.00"
Children�s Safeguarding & Family Support,Child Protection & Family Support,Transport-Related Expenditure,Taxi Costs,Go Carz,06/06/2022,302.40
Children�s Safeguarding & Family Support,Child Protection & Family Support,Employees,Agency Supply Costs,Xyla Health & Social Services,21/06/2022,"15,593.00"
Children�s Safeguarding & Family Support,Child Protection & Family Support,Employees,Agency Supply Costs,Xyla Health & Social Services,21/06/2022,228.15
Children�s Safeguarding & Family Support,Child Protection & Family Support,Supplies & Services,Mobile Phones,EE LTD EQUIPMENT,21/06/2022,142.00
Children�s Safeguarding & Family Support,Child Protection & Family Support,Supplies & Services,Conference Expenses,ADCS,29/06/2022,467.00
Children�s Safeguarding & Family Support,Child Protection & Family Support,Supplies & Services,Legal Expenses,St Philips Chambers Limited,15/06/2022,600.00
Children�s Safeguarding & Family Support,Family Connect & Childrens Centres,Supplies & Services,Other Grants (Expenses),AMITY RELATIONSHIP SOLUTIONS,09/06/2022,"7,500.00"
Children�s Safeguarding & Family Support,Family Connect & Childrens Centres,Premises-Related Expenditure,Hire Of Rooms,MEETING POINT TRUST LTD,27/06/2022,104.00
Children�s Safeguarding & Family Support,Family Connect & Childrens Centres,Premises-Related Expenditure,Hire Of Rooms,MEETING POINT TRUST LTD,27/06/2022,156.00
Children�s Safeguarding & Family Support,Family Connect & Childrens Centres,Supplies & Services,Bulk Refuse Contracts Hire,GREEN SKIPS LTD,30/06/2022,120.00
Children�s Safeguarding & Family Support,Family Connect & Childrens Centres,Supplies & Services,Mobile Phones,EE LTD EQUIPMENT,21/06/2022,284.00
Children�s Safeguarding & Family Support,Family Connect & Childrens Centres,Supplies & Services,Mobile Phones,EE LTD EQUIPMENT,21/06/2022,142.00
Children�s Safeguarding & Family Support,Family Connect & Childrens Centres,Supplies & Services,Stationery,MEETING POINT TRUST LTD,22/06/2022,467.83
Children�s Safeguarding & Family Support,Family Connect & Childrens Centres,Supplies & Services,Consultancy,CHILDCARE SOS,30/06/2022,279.00
Children�s Safeguarding & Family Support,"Family Placements, Children in Care, Leaving Care & Emergency Duty Team",Supplies & Services,Aids & Appliances,Tough Furniture Ltd,15/06/2022,828.00
Children�s Safeguarding & Family Support,"Family Placements, Children in Care, Leaving Care & Emergency Duty Team",Supplies & Services,Aids & Appliances,Tough Furniture Ltd,15/06/2022,656.00
Children�s Safeguarding & Family Support,"Family Placements, Children in Care, Leaving Care & Emergency Duty Team",Supplies & Services,Aids & Appliances,Schuchmann LLP,08/06/2022,"1,332.00"
Children�s Safeguarding & Family Support,"Family Placements, Children in Care, Leaving Care & Emergency Duty Team",Supplies & Services,Aids & Appliances,Strettons Upholstery,01/06/2022,763.00
Children�s Safeguarding & Family Support,"Family Placements, Children in Care, Leaving Care & Emergency Duty Team",Supplies & Services,Aids & Appliances,MIDSHIRES MOBILITY GROUP,07/06/2022,"2,578.25"
Children�s Safeguarding & Family Support,"Family Placements, Children in Care, Leaving Care & Emergency Duty Team",Supplies & Services,Aids & Appliances,Tough Furniture Ltd,29/06/2022,656.00
Children�s Safeguarding & Family Support,"Family Placements, Children in Care, Leaving Care & Emergency Duty Team",Premises-Related Expenditure,Hire Of Rooms,MEETING POINT TRUST LTD,21/06/2022,105.00
Children�s Safeguarding & Family Support,"Family Placements, Children in Care, Leaving Care & Emergency Duty Team",Employees,Staff Training,VSC Plus Ltd,16/06/2022,795.00
Children�s Safeguarding & Family Support,"Family Placements, Children in Care, Leaving Care & Emergency Duty Team",Employees,Staff Training,Leaving Care Training & Consultancy Service,16/06/2022,"1,879.37"
Children�s Safeguarding & Family Support,"Family Placements, Children in Care, Leaving Care & Emergency Duty Team",Transport-Related Expenditure,Season Tickets,ARRIVA MIDLANDS LTD ,08/06/2022,540.00
Children�s Safeguarding & Family Support,"Family Placements, Children in Care, Leaving Care & Emergency Duty Team",Transport-Related Expenditure,Season Tickets,ARRIVA MIDLANDS LTD ,08/06/2022,"1,800.00"
Children�s Safeguarding & Family Support,"Family Placements, Children in Care, Leaving Care & Emergency Duty Team",Transport-Related Expenditure,Season Tickets,ARRIVA MIDLANDS LTD ,08/06/2022,420.00
Children�s Safeguarding & Family Support,"Family Placements, Children in Care, Leaving Care & Emergency Duty Team",Transport-Related Expenditure,Outside Hire,Innosil (UK) Limited,16/06/2022,"2,000.00"
Children�s Safeguarding & Family Support,"Family Placements, Children in Care, Leaving Care & Emergency Duty Team",Employees,Other Employee Costs,T SOLICITORS,16/06/2022,291.67
Children�s Safeguarding & Family Support,"Family Placements, Children in Care, Leaving Care & Emergency Duty Team",Supplies & Services,Other Services,ARJO UK LTD,16/06/2022,"2,350.00"
Children�s Safeguarding & Family Support,"Family Placements, Children in Care, Leaving Care & Emergency Duty Team",Third Party Payments,External Foster Care Payments,Hillcrest Childrens Services (2) Ltd,20/06/2022,"-2,866.80"
Children�s Safeguarding & Family Support,"Family Placements, Children in Care, Leaving Care & Emergency Duty Team",Third Party Payments,External Foster Care Payments,Hillcrest Childrens Services (2) Ltd,20/06/2022,"3,066.60"
Children�s Safeguarding & Family Support,"Family Placements, Children in Care, Leaving Care & Emergency Duty Team",Employees,Staff Training,SHROPSHIRE COUNCIL,08/06/2022,400.00
Children�s Safeguarding & Family Support,"Family Placements, Children in Care, Leaving Care & Emergency Duty Team",Supplies & Services,Doctors Fees,WOODSIDE MEDICAL PRACTICE,21/06/2022,125.00
Children�s Safeguarding & Family Support,"Family Placements, Children in Care, Leaving Care & Emergency Duty Team",Supplies & Services,Form F Assessments,Social Care Assessment Services Ltd,10/06/2022,748.00
Children�s Safeguarding & Family Support,"Family Placements, Children in Care, Leaving Care & Emergency Duty Team",Supplies & Services,Form F Assessments,PC Assessments Ltd,10/06/2022,"2,891.37"
Children�s Safeguarding & Family Support,"Family Placements, Children in Care, Leaving Care & Emergency Duty Team",Supplies & Services,Form F Assessments,EW Assessments ltd,10/06/2022,500.00
Children�s Safeguarding & Family Support,"Family Placements, Children in Care, Leaving Care & Emergency Duty Team",Supplies & Services,Doctors Fees,WOODSIDE MEDICAL PRACTICE,10/06/2022,125.00
Children�s Safeguarding & Family Support,"Family Placements, Children in Care, Leaving Care & Emergency Duty Team",Supplies & Services,Doctors Fees,COURT STREET MEDICAL PRACTICE,10/06/2022,208.00
Children�s Safeguarding & Family Support,"Family Placements, Children in Care, Leaving Care & Emergency Duty Team",Supplies & Services,Mobile Phones,EE LTD EQUIPMENT,21/06/2022,142.00
Children�s Safeguarding & Family Support,"Family Placements, Children in Care, Leaving Care & Emergency Duty Team",Supplies & Services,Mobile Phones,EE LTD EQUIPMENT,28/06/2022,142.00
Children�s Safeguarding & Family Support,"Family Placements, Children in Care, Leaving Care & Emergency Duty Team",Employees,Recruitment Advertising,GOV Radio,06/06/2022,"3,410.00"
Children�s Safeguarding & Family Support,"Family Placements, Children in Care, Leaving Care & Emergency Duty Team",Employees,Recruitment Advertising,Bridge & Tunnel Ventures Ltd,20/06/2022,"3,000.00"
Children�s Safeguarding & Family Support,"Family Placements, Children in Care, Leaving Care & Emergency Duty Team",Supplies & Services,Doctors Fees,COURT STREET MEDICAL PRACTICE,10/06/2022,108.00
Children�s Safeguarding & Family Support,"Family Placements, Children in Care, Leaving Care & Emergency Duty Team",Supplies & Services,Form F Assessments,Kite Fostering Consultancy Ltd,08/06/2022,"2,096.60"
Children�s Safeguarding & Family Support,"Family Placements, Children in Care, Leaving Care & Emergency Duty Team",Supplies & Services,Form F Assessments,Kite Fostering Consultancy Ltd,08/06/2022,"2,060.75"
Children�s Safeguarding & Family Support,"Family Placements, Children in Care, Leaving Care & Emergency Duty Team",Third Party Payments,Private Contractors,Shared Services Connected Limited,20/06/2022,"21,990.00"
Children�s Safeguarding & Family Support,"Family Placements, Children in Care, Leaving Care & Emergency Duty Team",Third Party Payments,Private Contractors,Shared Services Connected Limited,16/06/2022,"9,210.00"
Children�s Safeguarding & Family Support,"Family Placements, Children in Care, Leaving Care & Emergency Duty Team",Third Party Payments,Private Contractors,Shared Services Connected Limited,16/06/2022,"8,505.00"
Children�s Safeguarding & Family Support,"Family Placements, Children in Care, Leaving Care & Emergency Duty Team",Third Party Payments,Private Contractors,Shared Services Connected Limited,16/06/2022,"8,820.00"
Children�s Safeguarding & Family Support,"Family Placements, Children in Care, Leaving Care & Emergency Duty Team",Third Party Payments,Private Contractors,Shared Services Connected Limited,16/06/2022,"8,820.00"
Children�s Safeguarding & Family Support,"Family Placements, Children in Care, Leaving Care & Emergency Duty Team",Third Party Payments,Private Contractors,Shared Services Connected Limited,16/06/2022,"16,072.00"
Children�s Safeguarding & Family Support,"Family Placements, Children in Care, Leaving Care & Emergency Duty Team",Third Party Payments,Private Contractors,Shared Services Connected Limited,16/06/2022,"9,765.00"
Children�s Safeguarding & Family Support,"Family Placements, Children in Care, Leaving Care & Emergency Duty Team",Third Party Payments,Private Contractors,Shared Services Connected Limited,16/06/2022,"9,765.00"
Children�s Safeguarding & Family Support,"Family Placements, Children in Care, Leaving Care & Emergency Duty Team",Third Party Payments,Private Contractors,Shared Services Connected Limited,16/06/2022,"9,765.00"
Children�s Safeguarding & Family Support,"Family Placements, Children in Care, Leaving Care & Emergency Duty Team",Third Party Payments,Private Contractors,Shared Services Connected Limited,16/06/2022,"17,794.00"
Children�s Safeguarding & Family Support,"Family Placements, Children in Care, Leaving Care & Emergency Duty Team",Third Party Payments,Private Contractors,Shared Services Connected Limited,16/06/2022,315.00
Children�s Safeguarding & Family Support,"Family Placements, Children in Care, Leaving Care & Emergency Duty Team",Third Party Payments,Private Contractors,Shared Services Connected Limited,16/06/2022,"9,210.00"
Children's Safeguarding,Child Protection & Family Support,contribution to provision,legal,HM Courts and Tribunal service,16/06/2022," 16,383.00 "
"Communities, Customer & Commercial Services",Community Services,Supplies & Services,Furniture - Purchase,CHRISBEON OFFICE SUPPLIES,13/06/2022,134.00
"Communities, Customer & Commercial Services",Community Services,Supplies & Services,Interpretation,VISS Sign Language Interpreting Service,16/06/2022,115.00
"Communities, Customer & Commercial Services",Community Services,Supplies & Services,Grants To Voluntary Organis,The Leegate Centre CIC,23/06/2022,"4,000.00"
"Communities, Customer & Commercial Services",Community Services,Support Services,CEC Charge - Policy & Strategy,LAWLEY & OVERDALE PARISH COUNCIL,07/06/2022,"1,000.00"
"Communities, Customer & Commercial Services",Community Services,Supplies & Services,Other Grants (Expenses),TADLOP,23/06/2022,349.80
"Communities, Customer & Commercial Services",Community Services,Supplies & Services,Other Grants (Expenses),Shrewsbury & Newport Canals Trust,20/06/2022,349.80
"Communities, Customer & Commercial Services",Community Services,Supplies & Services,Other Grants (Expenses),Anstice Community Trust,20/06/2022,349.80
"Communities, Customer & Commercial Services",Community Services,Supplies & Services,Other Grants (Expenses),Telford Crisis Support,20/06/2022,349.80
"Communities, Customer & Commercial Services",Community Services,Supplies & Services,Other Grants (Expenses),Wrekin Gymnastics Club Ltd,23/06/2022,349.80
"Communities, Customer & Commercial Services",Community Services,Premises-Related Expenditure,Electricity,West Mercia Energy (WME),16/06/2022,562.38
"Communities, Customer & Commercial Services",Community Services,Premises-Related Expenditure,Electricity,West Mercia Energy (WME),28/06/2022,578.71
"Communities, Customer & Commercial Services",Community Services,Capital Expenditure,Other Capital Expenditure,Green-Tech Ltd,06/06/2022,"1,216.00"
"Communities, Customer & Commercial Services",Culture & Events,Supplies & Services,Marketing & Publicity,Simpleview Europe,20/06/2022,575.00
"Communities, Customer & Commercial Services",Culture & Events,Supplies & Services,Marketing & Publicity,Simpleview Europe,20/06/2022,"1,500.00"
"Communities, Customer & Commercial Services",Culture & Events,Supplies & Services,Marketing & Publicity,BRIGHTER BUSINESS SOLUTIONS (UK) LTD,27/06/2022,975.00
"Communities, Customer & Commercial Services",Culture & Events,Supplies & Services,Service Contracts,FREELANCE BUSINESS ASSOCIATES,14/06/2022,555.00
"Communities, Customer & Commercial Services",Culture & Events,Supplies & Services,Publications,WHATS ON MAGAZINES LTD,14/06/2022,330.00
"Communities, Customer & Commercial Services",Culture & Events,Supplies & Services,Promotion Expenses,Spektrix Limited,22/06/2022,"2,058.64"
"Communities, Customer & Commercial Services",Culture & Events,Supplies & Services,Promotion Expenses,crowdEngage Limited,22/06/2022,210.00
"Communities, Customer & Commercial Services",Culture & Events,Supplies & Services,Artistes Fees,TGC Concerts Ltd,17/06/2022,"2,946.88"
"Communities, Customer & Commercial Services",Culture & Events,Supplies & Services,Artistes Fees,TGC Concerts Ltd,17/06/2022,"8,633.16"
"Communities, Customer & Commercial Services",Culture & Events,Supplies & Services,Instructors Fees,TGC Concerts Ltd,28/06/2022,"1,955.40"
"Communities, Customer & Commercial Services",Culture & Events,Supplies & Services,Artistes Fees,TADLOP,09/06/2022,"4,363.20"
"Communities, Customer & Commercial Services",Culture & Events,Supplies & Services,Artistes Fees,Ellis Live Ltd,09/06/2022,"6,229.06"
"Communities, Customer & Commercial Services",Culture & Events,Supplies & Services,Artistes Fees,Jendagi UK Limited,14/06/2022,"8,742.30"
"Communities, Customer & Commercial Services",Culture & Events,Supplies & Services,Artistes Fees,P M ENTERTAINMENT LTD,14/06/2022,"6,385.92"
"Communities, Customer & Commercial Services",Culture & Events,Supplies & Services,Artistes Fees,Ticketplan Limited,28/06/2022,765.60
"Communities, Customer & Commercial Services",Culture & Events,Supplies & Services,Wet Resale Provision,MOLSON COORS BREWING COMPANY UK LTD,23/06/2022,104.91
"Communities, Customer & Commercial Services",Culture & Events,Supplies & Services,Wet Resale Provision,MOLSON COORS BREWING COMPANY UK LTD,23/06/2022,125.67
"Communities, Customer & Commercial Services",Culture & Events,Supplies & Services,Wet Resale Provision,MOLSON COORS BREWING COMPANY UK LTD,23/06/2022,106.85
"Communities, Customer & Commercial Services",Culture & Events,Supplies & Services,Confectionery & Snacks,MOLSON COORS BREWING COMPANY UK LTD,23/06/2022,120.60
"Communities, Customer & Commercial Services",Culture & Events,Supplies & Services,Wet Resale Provision,MOLSON COORS BREWING COMPANY UK LTD,08/06/2022,419.64
"Communities, Customer & Commercial Services",Culture & Events,Supplies & Services,Wet Resale Provision,MOLSON COORS BREWING COMPANY UK LTD,08/06/2022,125.67
"Communities, Customer & Commercial Services",Culture & Events,Supplies & Services,Wet Resale Provision,MOLSON COORS BREWING COMPANY UK LTD,08/06/2022,104.91
"Communities, Customer & Commercial Services",Culture & Events,Supplies & Services,Wet Resale Provision,MOLSON COORS BREWING COMPANY UK LTD,08/06/2022,125.67
"Communities, Customer & Commercial Services",Culture & Events,Supplies & Services,Wet Resale Provision,MOLSON COORS BREWING COMPANY UK LTD,08/06/2022,106.85
"Communities, Customer & Commercial Services",Culture & Events,Supplies & Services,Wet Resale Provision,MOLSON COORS BREWING COMPANY UK LTD,24/06/2022,144.24
"Communities, Customer & Commercial Services",Culture & Events,Supplies & Services,Wet Resale Provision,MOLSON COORS BREWING COMPANY UK LTD,24/06/2022,334.29
"Communities, Customer & Commercial Services",Culture & Events,Supplies & Services,Wet Resale Provision,MOLSON COORS BREWING COMPANY UK LTD,24/06/2022,363.00
"Communities, Customer & Commercial Services",Culture & Events,Supplies & Services,Wet Resale Provision,MOLSON COORS BREWING COMPANY UK LTD,17/06/2022,127.88
"Communities, Customer & Commercial Services",Culture & Events,Supplies & Services,Wet Resale Provision,MOLSON COORS BREWING COMPANY UK LTD,17/06/2022,145.20
"Communities, Customer & Commercial Services",Culture & Events,Supplies & Services,Wet Resale Provision,MOLSON COORS BREWING COMPANY UK LTD,17/06/2022,130.20
"Communities, Customer & Commercial Services",Culture & Events,Supplies & Services,Wet Resale Provision,MOLSON COORS BREWING COMPANY UK LTD,17/06/2022,209.82
"Communities, Customer & Commercial Services",Culture & Events,Supplies & Services,Wet Resale Provision,MOLSON COORS BREWING COMPANY UK LTD,17/06/2022,199.92
"Communities, Customer & Commercial Services",Culture & Events,Supplies & Services,Wet Resale Provision,MOLSON COORS BREWING COMPANY UK LTD,17/06/2022,137.44
"Communities, Customer & Commercial Services",Culture & Events,Supplies & Services,Wet Resale Provision,MOLSON COORS BREWING COMPANY UK LTD,08/06/2022,125.67
"Communities, Customer & Commercial Services",Culture & Events,Supplies & Services,Wet Resale Provision,MOLSON COORS BREWING COMPANY UK LTD,08/06/2022,199.92
"Communities, Customer & Commercial Services",Culture & Events,Supplies & Services,Wet Resale Provision,MOLSON COORS BREWING COMPANY UK LTD,08/06/2022,145.20
"Communities, Customer & Commercial Services",Culture & Events,Supplies & Services,Wet Resale Provision,MOLSON COORS BREWING COMPANY UK LTD,08/06/2022,101.64
"Communities, Customer & Commercial Services",Culture & Events,Supplies & Services,Wet Resale Provision,MOLSON COORS BREWING COMPANY UK LTD,08/06/2022,106.74
"Communities, Customer & Commercial Services",Culture & Events,Supplies & Services,Wet Resale Provision,MOLSON COORS BREWING COMPANY UK LTD,08/06/2022,269.16
"Communities, Customer & Commercial Services",Culture & Events,Supplies & Services,Wet Resale Provision,MOLSON COORS BREWING COMPANY UK LTD,08/06/2022,106.85
"Communities, Customer & Commercial Services",Culture & Events,Supplies & Services,Wet Resale Provision,MOLSON COORS BREWING COMPANY UK LTD,08/06/2022,419.64
"Communities, Customer & Commercial Services",Culture & Events,Supplies & Services,Wet Resale Provision,MOLSON COORS BREWING COMPANY UK LTD,08/06/2022,176.48
"Communities, Customer & Commercial Services",Culture & Events,Supplies & Services,Wet Resale Provision,MOLSON COORS BREWING COMPANY UK LTD,08/06/2022,120.18
"Communities, Customer & Commercial Services",Culture & Events,Supplies & Services,Wet Resale Provision,MOLSON COORS BREWING COMPANY UK LTD,08/06/2022,112.11
"Communities, Customer & Commercial Services",Culture & Events,Supplies & Services,Wet Resale Provision,MOLSON COORS BREWING COMPANY UK LTD,08/06/2022,188.82
"Communities, Customer & Commercial Services",Culture & Events,Supplies & Services,Wet Resale Provision,MOLSON COORS BREWING COMPANY UK LTD,08/06/2022,232.74
"Communities, Customer & Commercial Services",Culture & Events,Supplies & Services,Wet Resale Provision,MOLSON COORS BREWING COMPANY UK LTD,08/06/2022,109.20
"Communities, Customer & Commercial Services",Culture & Events,Supplies & Services,Wet Resale Provision,MOLSON COORS BREWING COMPANY UK LTD,08/06/2022,107.26
"Communities, Customer & Commercial Services",Culture & Events,Supplies & Services,Wet Resale Provision,MOLSON COORS BREWING COMPANY UK LTD,08/06/2022,229.52
"Communities, Customer & Commercial Services",Culture & Events,Supplies & Services,Wet Resale Provision,MOLSON COORS BREWING COMPANY UK LTD,24/06/2022,135.33
"Communities, Customer & Commercial Services",Culture & Events,Supplies & Services,Wet Resale Provision,MOLSON COORS BREWING COMPANY UK LTD,24/06/2022,107.44
"Communities, Customer & Commercial Services",Culture & Events,Supplies & Services,Wet Resale Provision,MOLSON COORS BREWING COMPANY UK LTD,24/06/2022,109.20
"Communities, Customer & Commercial Services",Culture & Events,Supplies & Services,Wet Resale Provision,MOLSON COORS BREWING COMPANY UK LTD,24/06/2022,314.73
"Communities, Customer & Commercial Services",Culture & Events,Supplies & Services,Wet Resale Provision,MOLSON COORS BREWING COMPANY UK LTD,24/06/2022,377.01
"Communities, Customer & Commercial Services",Culture & Events,Supplies & Services,Wet Resale Provision,MOLSON COORS BREWING COMPANY UK LTD,24/06/2022,176.48
"Communities, Customer & Commercial Services",Culture & Events,Supplies & Services,Wet Resale Provision,MOLSON COORS BREWING COMPANY UK LTD,24/06/2022,213.70
"Communities, Customer & Commercial Services",Culture & Events,Supplies & Services,Wet Resale Provision,MOLSON COORS BREWING COMPANY UK LTD,24/06/2022,199.92
"Communities, Customer & Commercial Services",Culture & Events,Supplies & Services,Confectionery & Snacks,BIKOLD,23/06/2022,566.95
"Communities, Customer & Commercial Services",Culture & Events,Supplies & Services,Crockery/Hardware/Light Equip,M&M Gasses,23/06/2022,101.66
"Communities, Customer & Commercial Services",Culture & Events,Supplies & Services,Advertising,Bauer Radio Ltd,30/06/2022,898.62
"Communities, Customer & Commercial Services",Culture & Events,Supplies & Services,Equipment - Hire,ADI UK Ltd,30/06/2022,"20,325.00"
"Communities, Customer & Commercial Services",Culture & Events,Supplies & Services,Artistes Fees,Historical Promotions,14/06/2022,"1,395.00"
"Communities, Customer & Commercial Services",Culture & Events,Supplies & Services,Equipment - Hire,Event Cup Solutions Ltd,16/06/2022,599.75
"Communities, Customer & Commercial Services",Culture & Events,Supplies & Services,First Aid,Morgan- Williams Medical Service Ltd,20/06/2022,786.66
"Communities, Customer & Commercial Services",Culture & Events,Supplies & Services,Artistes Fees,ShowStoppers,17/06/2022,470.00
"Communities, Customer & Commercial Services",Culture & Events,Supplies & Services,Artistes Fees,Spirit Operations Ltd,20/06/2022,"1,500.00"
"Communities, Customer & Commercial Services",Culture & Events,Supplies & Services,Artistes Fees,Spirit Operations Ltd,20/06/2022,"3,000.00"
"Communities, Customer & Commercial Services",Culture & Events,Supplies & Services,Security Services,TELFORD INTERNATIONAL CENTRE,20/06/2022,433.50
"Communities, Customer & Commercial Services",Culture & Events,Supplies & Services,Marketing & Publicity,Simpleview Europe,20/06/2022,627.50
"Communities, Customer & Commercial Services",Culture & Events,Supplies & Services,Equipment - Hire,RAP SERVICES LTD T/A TELFORD TOILET HIRE,06/06/2022,160.00
"Communities, Customer & Commercial Services",Culture & Events,Supplies & Services,Artistes Fees,RLN Music,10/06/2022,"2,000.00"
"Communities, Customer & Commercial Services",Culture & Events,Supplies & Services,Artistes Fees,JACKFIELD BRASS BAND,10/06/2022,400.00
"Communities, Customer & Commercial Services",Culture & Events,Supplies & Services,Artistes Fees,JACKFIELD BRASS BAND,10/06/2022,400.00
"Communities, Customer & Commercial Services",Culture & Events,Supplies & Services,Protective Clothing,ETAK Creative Ltd,13/06/2022,"6,863.00"
"Communities, Customer & Commercial Services",Culture & Events,Supplies & Services,Equipment - Hire,Event Cup Solutions Ltd,27/06/2022,230.85
"Communities, Customer & Commercial Services",Culture & Events,Supplies & Services,Equipment - Hire,MSM Hire Ltd,27/06/2022,300.00
"Communities, Customer & Commercial Services",Culture & Events,Supplies & Services,Photography,R F PHOTOGRAPHY,16/06/2022,180.00
"Communities, Customer & Commercial Services",Culture & Events,Supplies & Services,Equipment - Hire,Event Cup Solutions Ltd,16/06/2022,"1,954.75"
"Communities, Customer & Commercial Services",Culture & Events,Supplies & Services,Equipment - Hire,TELFORD TOILET HIRE,16/06/2022,"2,250.00"
"Communities, Customer & Commercial Services",Culture & Events,Supplies & Services,Equipment - Hire,Churches Fire Security Ltd,15/06/2022,"1,807.50"
"Communities, Customer & Commercial Services",Culture & Events,Supplies & Services,Materials,CSM Live,27/06/2022,750.62
"Communities, Customer & Commercial Services",Culture & Events,Supplies & Services,Artistes Fees,Dragonfire Ltd,21/06/2022,"5,400.00"
"Communities, Customer & Commercial Services",Culture & Events,Supplies & Services,Materials,Promarco Promotions Ltd,21/06/2022,"1,220.00"
"Communities, Customer & Commercial Services",Culture & Events,Supplies & Services,Equipment - Hire,Stage and Studios Services Limited,21/06/2022,375.00
"Communities, Customer & Commercial Services",Culture & Events,Supplies & Services,Photography,R F PHOTOGRAPHY,20/06/2022,400.00
"Communities, Customer & Commercial Services",Culture & Events,Supplies & Services,Equipment - Hire,PG Skips Ltd,20/06/2022,821.00
"Communities, Customer & Commercial Services",Culture & Events,Supplies & Services,Equipment - Hire,Stage and Studios Services Limited,28/06/2022,"2,020.00"
"Communities, Customer & Commercial Services",Culture & Events,Supplies & Services,Carriage/Delivery Charge,ALLWAG PROMOTIONS LTD,15/06/2022,"1,140.00"
"Communities, Customer & Commercial Services",Culture & Events,Supplies & Services,Equipment - Hire,Stage and Studios Services Limited,28/06/2022,"1,633.00"
"Communities, Customer & Commercial Services",Culture & Events,Supplies & Services,Equipment - Hire,Stage and Studios Services Limited,28/06/2022,830.00
"Communities, Customer & Commercial Services",Culture & Events,Transport-Related Expenditure,Purchase Vehicles and Plant,BORLAND ROADLINER LTD,28/06/2022,950.00
"Communities, Customer & Commercial Services",Culture & Events,Transport-Related Expenditure,Purchase Vehicles and Plant,BORLAND ROADLINER LTD,28/06/2022,930.00
"Communities, Customer & Commercial Services",Culture & Events,Transport-Related Expenditure,Outside Hire,A-STAR TRANSPORT MIDLANDS LTD,22/06/2022,"2,500.00"
"Communities, Customer & Commercial Services",Culture & Events,Capital Expenditure,Payments to Contractor,AUDIENCE SYSTEMS LTD,27/06/2022,"32,500.00"
"Communities, Customer & Commercial Services",Customer Relationships & Welfare Services,Supplies & Services,Other Grants (Expenses),Hawk Incentives Ltd (Crown Commercial Services),24/06/2022,"24,680.00"
"Communities, Customer & Commercial Services",Customer Relationships & Welfare Services,Transfer Payments,Crisis Assistance Awards,PayPoint Network Limited,17/06/2022,"1,020.00"
"Communities, Customer & Commercial Services",Customer Relationships & Welfare Services,Transfer Payments,Crisis Assistance Awards,PayPoint Network Limited,09/06/2022,580.00
"Communities, Customer & Commercial Services",Customer Relationships & Welfare Services,Transfer Payments,Crisis Assistance Awards,PayPoint Network Limited,06/06/2022,790.00
"Communities, Customer & Commercial Services",Customer Relationships & Welfare Services,Supplies & Services,IT Services,NEC Software Solutions UK Ltd,01/06/2022,"1,875.00"
"Communities, Customer & Commercial Services",Customer Relationships & Welfare Services,Supplies & Services,Postages,NEC Software Solutions UK Ltd,09/06/2022,109.32
"Communities, Customer & Commercial Services",Customer Relationships & Welfare Services,Supplies & Services,IT Services,Airey Consultancy Services Ltd.,06/06/2022,450.00
"Communities, Customer & Commercial Services",Customer Relationships & Welfare Services,Supplies & Services,Postages,Financial Data Management plc,27/06/2022,189.44
"Communities, Customer & Commercial Services",Customer Relationships & Welfare Services,Supplies & Services,Postages,Financial Data Management plc,24/06/2022,258.83
"Communities, Customer & Commercial Services",Customer Relationships & Welfare Services,Supplies & Services,Comp Software (Purch / Hire),NEC Software Solutions UK Ltd,01/06/2022,"11,057.74"
"Communities, Customer & Commercial Services",Customer Relationships & Welfare Services,Supplies & Services,Permit Production - Blue Badge,APS Group,14/06/2022,"1,312.92"
"Communities, Customer & Commercial Services",Customer Relationships & Welfare Services,Supplies & Services,Bus Pass Production,Euclid Limited,14/06/2022,881.28
"Communities, Customer & Commercial Services",Customer Relationships & Welfare Services,Supplies & Services,Permit Production - Blue Badge,Valtech Limited,13/06/2022,701.80
"Communities, Customer & Commercial Services",Customer Relationships & Welfare Services,Transfer Payments,Crisis Assistance Awards,A W HOLDINGS,23/06/2022,349.00
"Communities, Customer & Commercial Services",Customer Relationships & Welfare Services,Transfer Payments,Crisis Assistance Awards,Kings of the Road,20/06/2022,475.00
"Communities, Customer & Commercial Services",Customer Relationships & Welfare Services,Transfer Payments,Crisis Assistance Awards,Kings of the Road,20/06/2022,345.00
"Communities, Customer & Commercial Services",Customer Relationships & Welfare Services,Transfer Payments,Crisis Assistance Awards,Kings of the Road,08/06/2022,160.00
"Communities, Customer & Commercial Services",Customer Relationships & Welfare Services,Premises-Related Expenditure,Contract Cleaning,Vortex Cleaning Ltd,09/06/2022,425.00
"Communities, Customer & Commercial Services",Customer Relationships & Welfare Services,Premises-Related Expenditure,Grounds Maintenance - Other,NOBRIDGE LTD,22/06/2022,120.00
"Communities, Customer & Commercial Services",Customer Relationships & Welfare Services,Premises-Related Expenditure,Grounds Maintenance - Other,Limetree Landscape Services and Nurseries Limited,24/06/2022,388.00
"Communities, Customer & Commercial Services",Customer Relationships & Welfare Services,Supplies & Services,Computer Software (Maint),Zipporah Ltd.,13/06/2022,650.00
"Communities, Customer & Commercial Services",Customer Relationships & Welfare Services,Supplies & Services,Computer Software (Maint),Zipporah Ltd.,13/06/2022,"1,300.00"
"Communities, Customer & Commercial Services",Customer Relationships & Welfare Services,Premises-Related Expenditure,Grounds Maintenance - Cemeteries,GROUND INVESTIGATION & PILING LTD,22/06/2022,"8,209.90"
"Communities, Customer & Commercial Services",ICT,Supplies & Services,Grants To Voluntary Organis,STAY TELFORD XC SUPPORTED HOUSE,06/06/2022,"70,000.00"
"Communities, Customer & Commercial Services",ICT,Supplies & Services,Furniture - Purchase,CCS MEDIA LIMITED,01/06/2022,"1,326.12"
"Communities, Customer & Commercial Services",ICT,Supplies & Services,Comp Hardware (Purch / Hire),CCS MEDIA LIMITED,17/06/2022,763.80
"Communities, Customer & Commercial Services",ICT,Supplies & Services,Telecomms,Airband Community Internet,07/06/2022,125.00
"Communities, Customer & Commercial Services",ICT,Supplies & Services,Telecomms,Airband Community Internet,07/06/2022,294.99
"Communities, Customer & Commercial Services",ICT,Supplies & Services,Telecomms,Airband Community Internet,07/06/2022,299.99
"Communities, Customer & Commercial Services",ICT,Supplies & Services,Telephones,BRITISH TELECOMMUNICATIONS PLC ,21/06/2022,"3,188.18"
"Communities, Customer & Commercial Services",ICT,Supplies & Services,Text Messages,PROCESS FLOWS UK LTD,21/06/2022,274.35
"Communities, Customer & Commercial Services",ICT,Supplies & Services,Mobile Phones,EE LTD AIRTIME ,21/06/2022,"11,832.31"
"Communities, Customer & Commercial Services",ICT,Supplies & Services,Telephones,Trustmarque Solutions Limited,07/06/2022,"2,881.84"
"Communities, Customer & Commercial Services",ICT,Supplies & Services,Mobile Phones,EE LTD EQUIPMENT ,08/06/2022,226.60
"Communities, Customer & Commercial Services",ICT,Supplies & Services,Mobile Phones,EE LTD EQUIPMENT,28/06/2022,875.00
"Communities, Customer & Commercial Services",ICT,Supplies & Services,Comp Software (Purch / Hire),Salamandersoft Limited,24/06/2022,"1,795.00"
"Communities, Customer & Commercial Services",ICT,Supplies & Services,Comp Software (Purch / Hire),Salamandersoft Limited,24/06/2022,"1,448.00"
"Communities, Customer & Commercial Services",ICT,Supplies & Services,Computer Software (Maint),Salamandersoft Limited,24/06/2022,400.00
"Communities, Customer & Commercial Services",ICT,Supplies & Services,Computer Software (Maint),Salamandersoft Limited,24/06/2022,400.00
"Communities, Customer & Commercial Services",ICT,Premises-Related Expenditure,Service Contracts,AVK/SEG (UK) Ltd,21/06/2022,"2,652.00"
"Communities, Customer & Commercial Services",ICT,Premises-Related Expenditure,Service Contracts,Churches Fire Security Ltd,24/06/2022,320.00
"Communities, Customer & Commercial Services",ICT,Premises-Related Expenditure,Service Contracts,Churches Fire Security Ltd,24/06/2022,320.00
"Communities, Customer & Commercial Services",ICT,Supplies & Services,Comp Software (Purch / Hire),Zellis UK Ltd,09/06/2022,"4,800.00"
"Communities, Customer & Commercial Services",ICT,Supplies & Services,Comp Software (Purch / Hire),WELLDATA LTD,28/06/2022,"25,907.35"
"Communities, Customer & Commercial Services",ICT,Supplies & Services,Comp Software (Purch / Hire),PHOENIX SOFTWARE LTD,06/06/2022,"3,091.05"
"Communities, Customer & Commercial Services",ICT,Supplies & Services,Comp Software (Purch / Hire),IDOX SOFTWARE LTD,24/06/2022,"1,250.00"
"Communities, Customer & Commercial Services",ICT,Supplies & Services,Comp Software (Purch / Hire),V1 Limited,24/06/2022,"4,291.44"
"Communities, Customer & Commercial Services",ICT,Supplies & Services,Photocopying,RICOH UK LIMITED,06/06/2022,359.89
"Communities, Customer & Commercial Services",ICT,Supplies & Services,Photocopying,RICOH UK LIMITED,09/06/2022,"1,759.02"
"Communities, Customer & Commercial Services",ICT,Supplies & Services,Equipment - Hire,RICOH UK LIMITED,09/06/2022,"3,317.73"
"Communities, Customer & Commercial Services",ICT,Supplies & Services,Stationery,Antalis Limited,09/06/2022,361.00
"Communities, Customer & Commercial Services",ICT,Supplies & Services,Licences,SIEMENS FINANCIAL SERVICES LTD,09/06/2022,"1,036.73"
"Communities, Customer & Commercial Services",ICT,Supplies & Services,Comp Hardware (Purch / Hire),CCS MEDIA LIMITED,29/06/2022,286.26
"Communities, Customer & Commercial Services",ICT,Supplies & Services,Comp Software (Purch / Hire),ScholarPack,06/06/2022,975.00
"Communities, Customer & Commercial Services",ICT,Supplies & Services,Comp Software (Purch / Hire),ScholarPack,06/06/2022,"4,845.00"
"Communities, Customer & Commercial Services",ICT,Supplies & Services,Comp Software (Purch / Hire),ScholarPack,06/06/2022,"5,040.00"
"Communities, Customer & Commercial Services",ICT,Supplies & Services,Comp Software (Purch / Hire),ScholarPack,06/06/2022,530.00
"Communities, Customer & Commercial Services",ICT,Supplies & Services,Comp Software (Purch / Hire),ScholarPack,06/06/2022,"2,442.00"
"Communities, Customer & Commercial Services",ICT,Capital Expenditure,Computer Hardware,CCS MEDIA LIMITED,22/06/2022,"3,330.00"
"Communities, Customer & Commercial Services",ICT,Capital Expenditure,Computer Hardware,CCS MEDIA LIMITED,22/06/2022,"1,585.00"
"Communities, Customer & Commercial Services",ICT,Capital Expenditure,Computer Hardware,CCS MEDIA LIMITED,22/06/2022,"1,770.00"
"Communities, Customer & Commercial Services",ICT,Capital Expenditure,Computer Hardware,CCS MEDIA LIMITED,22/06/2022,"1,321.10"
"Communities, Customer & Commercial Services",ICT,Capital Expenditure,Computer Hardware,CCS MEDIA LIMITED,22/06/2022,"5,400.00"
"Communities, Customer & Commercial Services",ICT,Capital Expenditure,Payments to Contractor,CAPITA IT SERVICES LIMITED,28/06/2022,"27,500.00"
"Communities, Customer & Commercial Services",ICT,Capital Expenditure,Computer Hardware,CCS MEDIA LIMITED,21/06/2022,196.47
"Communities, Customer & Commercial Services",ICT,Capital Expenditure,Payments to Contractor,PHOENIX SOFTWARE LTD,22/06/2022,"6,225.00"
"Communities, Customer & Commercial Services",ICT,Capital Expenditure,Computer Hardware,XMA LIMITED,24/06/2022,"7,862.26"
"Communities, Customer & Commercial Services",ICT,Capital Expenditure,Payments to Contractor,PHOENIX SOFTWARE LTD,29/06/2022,"5,600.00"
"Communities, Customer & Commercial Services",ICT,Capital Expenditure,Computer Software,PHOENIX SOFTWARE LTD,29/06/2022,"15,319.20"
"Communities, Customer & Commercial Services",Sport & Leisure,Premises-Related Expenditure,Electricity,EON next,29/06/2022,145.81
"Communities, Customer & Commercial Services",Sport & Leisure,Premises-Related Expenditure,Electricity,EON next,29/06/2022,152.00
"Communities, Customer & Commercial Services",Sport & Leisure,Premises-Related Expenditure,Trade Refuse,FCC Recycling (UK) Ltd,15/06/2022,257.14
"Communities, Customer & Commercial Services",Sport & Leisure,Premises-Related Expenditure,Clean Mats & Toilet Requisites,Border Janitorial Supplies Limited,29/06/2022,245.40
"Communities, Customer & Commercial Services",Sport & Leisure,Supplies & Services,Crockery/Hardware/Light Equip,CIVICA UK LIMITED ,07/06/2022,173.25
"Communities, Customer & Commercial Services",Sport & Leisure,Supplies & Services,Crockery/Hardware/Light Equip,CALTEL CATERING & LAUNDRY EQUIPMENT LLP,29/06/2022,427.86
"Communities, Customer & Commercial Services",Sport & Leisure,Supplies & Services,Crockery/Hardware/Light Equip,E N CATERING EQUIPMENT AND SERVICES  LTD,29/06/2022,104.50
"Communities, Customer & Commercial Services",Sport & Leisure,Supplies & Services,Protective Clothing,IMAGE@WORK LTD,29/06/2022,"1,305.25"
"Communities, Customer & Commercial Services",Sport & Leisure,Supplies & Services,Protective Clothing,IMAGE@WORK LTD,29/06/2022,937.57
"Communities, Customer & Commercial Services",Sport & Leisure,Supplies & Services,Publications,ROYAL MAIL GROUP PLC ,06/06/2022,120.27
"Communities, Customer & Commercial Services",Sport & Leisure,Supplies & Services,Provisions,J DAIRIES,15/06/2022,645.14
"Communities, Customer & Commercial Services",Sport & Leisure,Supplies & Services,EEC Whole Milk,J DAIRIES,20/06/2022,733.07
"Communities, Customer & Commercial Services",Sport & Leisure,Supplies & Services,EEC Whole Milk,J DAIRIES,20/06/2022,"1,321.58"
"Communities, Customer & Commercial Services",Sport & Leisure,Supplies & Services,EEC Whole Milk,J DAIRIES,15/06/2022,"1,173.22"
"Communities, Customer & Commercial Services",Sport & Leisure,Supplies & Services,EEC Whole Milk,J DAIRIES,15/06/2022,742.38
"Communities, Customer & Commercial Services",Sport & Leisure,Supplies & Services,EEC Whole Milk,J DAIRIES,15/06/2022,"1,341.48"
"Communities, Customer & Commercial Services",Sport & Leisure,Supplies & Services,Provisions,BIKOLD,16/06/2022,106.88
"Communities, Customer & Commercial Services",Sport & Leisure,Supplies & Services,Provisions,BIKOLD,27/06/2022,122.96
"Communities, Customer & Commercial Services",Sport & Leisure,Employees,Agency Supply Costs,TOTAL CATERING SOLUTONS RECRUITMENT LTD,07/06/2022,320.00
"Communities, Customer & Commercial Services",Sport & Leisure,Employees,Agency Supply Costs,TOTAL CATERING SOLUTONS RECRUITMENT LTD,07/06/2022,192.00
"Communities, Customer & Commercial Services",Sport & Leisure,Employees,Agency Supply Costs,TOTAL CATERING SOLUTONS RECRUITMENT LTD,22/06/2022,320.00
"Communities, Customer & Commercial Services",Sport & Leisure,Employees,Agency Supply Costs,TOTAL CATERING SOLUTONS RECRUITMENT LTD,22/06/2022,128.00
"Communities, Customer & Commercial Services",Sport & Leisure,Employees,Agency Supply Costs,TOTAL CATERING SOLUTONS RECRUITMENT LTD,22/06/2022,192.00
"Communities, Customer & Commercial Services",Sport & Leisure,Employees,Agency Supply Costs,TOTAL CATERING SOLUTONS RECRUITMENT LTD,13/06/2022,192.00
"Communities, Customer & Commercial Services",Sport & Leisure,Employees,Agency Supply Costs,TOTAL CATERING SOLUTONS RECRUITMENT LTD,13/06/2022,128.00
"Communities, Customer & Commercial Services",Sport & Leisure,Employees,Agency Supply Costs,TOTAL CATERING SOLUTONS RECRUITMENT LTD,13/06/2022,121.44
"Communities, Customer & Commercial Services",Sport & Leisure,Employees,Agency Supply Costs,TOTAL CATERING SOLUTONS RECRUITMENT LTD,13/06/2022,242.88
"Communities, Customer & Commercial Services",Sport & Leisure,Employees,Agency Supply Costs,TOTAL CATERING SOLUTONS RECRUITMENT LTD,07/06/2022,128.00
"Communities, Customer & Commercial Services",Sport & Leisure,Employees,Agency Supply Costs,TOTAL CATERING SOLUTONS RECRUITMENT LTD,07/06/2022,128.00
"Communities, Customer & Commercial Services",Sport & Leisure,Premises-Related Expenditure,Clean Mats & Toilet Requisites,Border Janitorial Supplies Limited,06/06/2022,167.81
"Communities, Customer & Commercial Services",Sport & Leisure,Premises-Related Expenditure,Clean Mats & Toilet Requisites,Border Janitorial Supplies Limited,15/06/2022,119.00
"Communities, Customer & Commercial Services",Sport & Leisure,Premises-Related Expenditure,Clean Mats & Toilet Requisites,Border Janitorial Supplies Limited,15/06/2022,119.00
"Communities, Customer & Commercial Services",Sport & Leisure,Premises-Related Expenditure,Clean Mats & Toilet Requisites,Border Janitorial Supplies Limited,15/06/2022,203.79
"Communities, Customer & Commercial Services",Sport & Leisure,Premises-Related Expenditure,Clean Mats & Toilet Requisites,Border Janitorial Supplies Limited,22/06/2022,119.00
"Communities, Customer & Commercial Services",Sport & Leisure,Premises-Related Expenditure,Clean Mats & Toilet Requisites,Border Janitorial Supplies Limited,29/06/2022,154.08
"Communities, Customer & Commercial Services",Sport & Leisure,Premises-Related Expenditure,Clean Mats & Toilet Requisites,Border Janitorial Supplies Limited,29/06/2022,143.69
"Communities, Customer & Commercial Services",Sport & Leisure,Premises-Related Expenditure,Clean Mats & Toilet Requisites,Border Janitorial Supplies Limited,22/06/2022,349.63
"Communities, Customer & Commercial Services",Sport & Leisure,Premises-Related Expenditure,Clean Mats & Toilet Requisites,Border Janitorial Supplies Limited,22/06/2022,180.20
"Communities, Customer & Commercial Services",Sport & Leisure,Premises-Related Expenditure,Clean Mats & Toilet Requisites,Border Janitorial Supplies Limited,06/06/2022,111.44
"Communities, Customer & Commercial Services",Sport & Leisure,Supplies & Services,Crockery/Hardware/Light Equip,E N CATERING EQUIPMENT AND SERVICES  LTD,20/06/2022,207.29
"Communities, Customer & Commercial Services",Sport & Leisure,Supplies & Services,Crockery/Hardware/Light Equip,E N CATERING EQUIPMENT AND SERVICES  LTD,29/06/2022,466.24
"Communities, Customer & Commercial Services",Sport & Leisure,Supplies & Services,Crockery/Hardware/Light Equip,E N CATERING EQUIPMENT AND SERVICES  LTD,15/06/2022,178.92
"Communities, Customer & Commercial Services",Sport & Leisure,Supplies & Services,Crockery/Hardware/Light Equip,E N CATERING EQUIPMENT AND SERVICES  LTD,06/06/2022,149.00
"Communities, Customer & Commercial Services",Sport & Leisure,Supplies & Services,Provisions,R & COMPANY,01/06/2022,107.61
"Communities, Customer & Commercial Services",Sport & Leisure,Supplies & Services,Provisions,R & COMPANY,01/06/2022,107.08
"Communities, Customer & Commercial Services",Sport & Leisure,Supplies & Services,Provisions,R & COMPANY,01/06/2022,166.05
"Communities, Customer & Commercial Services",Sport & Leisure,Supplies & Services,Provisions,R & COMPANY,01/06/2022,123.51
"Communities, Customer & Commercial Services",Sport & Leisure,Supplies & Services,Provisions,R & COMPANY,01/06/2022,129.97
"Communities, Customer & Commercial Services",Sport & Leisure,Supplies & Services,Provisions,R & COMPANY,01/06/2022,110.48
"Communities, Customer & Commercial Services",Sport & Leisure,Supplies & Services,Provisions,R & COMPANY,01/06/2022,210.37
"Communities, Customer & Commercial Services",Sport & Leisure,Supplies & Services,Provisions,R & COMPANY,01/06/2022,131.02
"Communities, Customer & Commercial Services",Sport & Leisure,Supplies & Services,Provisions,R & COMPANY,01/06/2022,310.54
"Communities, Customer & Commercial Services",Sport & Leisure,Supplies & Services,Provisions,R & COMPANY,01/06/2022,205.99
"Communities, Customer & Commercial Services",Sport & Leisure,Supplies & Services,Provisions,R & COMPANY,01/06/2022,109.22
"Communities, Customer & Commercial Services",Sport & Leisure,Supplies & Services,Provisions,R & COMPANY,01/06/2022,124.61
"Communities, Customer & Commercial Services",Sport & Leisure,Supplies & Services,Provisions,R & COMPANY,01/06/2022,105.57
"Communities, Customer & Commercial Services",Sport & Leisure,Supplies & Services,Provisions,R & COMPANY,01/06/2022,155.14
"Communities, Customer & Commercial Services",Sport & Leisure,Supplies & Services,Provisions,R & COMPANY,01/06/2022,100.19
"Communities, Customer & Commercial Services",Sport & Leisure,Supplies & Services,Provisions,R & COMPANY,01/06/2022,121.62
"Communities, Customer & Commercial Services",Sport & Leisure,Supplies & Services,Provisions,J S Catering Butchers,17/06/2022,157.36
"Communities, Customer & Commercial Services",Sport & Leisure,Supplies & Services,Provisions,J S Catering Butchers,17/06/2022,224.83
"Communities, Customer & Commercial Services",Sport & Leisure,Supplies & Services,Provisions,SPICE TIME,07/06/2022,121.50
"Communities, Customer & Commercial Services",Sport & Leisure,Supplies & Services,Provisions,SPICE TIME,07/06/2022,254.80
"Communities, Customer & Commercial Services",Sport & Leisure,Supplies & Services,Provisions,SPICE TIME,07/06/2022,123.25
"Communities, Customer & Commercial Services",Sport & Leisure,Supplies & Services,Provisions,Delice de France,07/06/2022,106.23
"Communities, Customer & Commercial Services",Sport & Leisure,Supplies & Services,Provisions,SPICE TIME,07/06/2022,179.25
"Communities, Customer & Commercial Services",Sport & Leisure,Supplies & Services,Provisions,SPICE TIME,07/06/2022,239.25
"Communities, Customer & Commercial Services",Sport & Leisure,Supplies & Services,Provisions,SPICE TIME,07/06/2022,112.20
"Communities, Customer & Commercial Services",Sport & Leisure,Supplies & Services,Provisions,SPICE TIME,07/06/2022,189.75
"Communities, Customer & Commercial Services",Sport & Leisure,Supplies & Services,Provisions,SPICE TIME,07/06/2022,260.00
"Communities, Customer & Commercial Services",Sport & Leisure,Supplies & Services,Provisions,SPICE TIME,07/06/2022,119.20
"Communities, Customer & Commercial Services",Sport & Leisure,Supplies & Services,Provisions,SPICE TIME,07/06/2022,283.02
"Communities, Customer & Commercial Services",Sport & Leisure,Supplies & Services,Provisions,BIKOLD,10/06/2022,169.10
"Communities, Customer & Commercial Services",Sport & Leisure,Supplies & Services,Provisions,BIKOLD,10/06/2022,109.30
"Communities, Customer & Commercial Services",Sport & Leisure,Supplies & Services,Provisions,BIKOLD,10/06/2022,175.04
"Communities, Customer & Commercial Services",Sport & Leisure,Supplies & Services,Provisions,BIKOLD,10/06/2022,319.97
"Communities, Customer & Commercial Services",Sport & Leisure,Supplies & Services,Provisions,BIKOLD,10/06/2022,140.13
"Communities, Customer & Commercial Services",Sport & Leisure,Supplies & Services,Provisions,BIKOLD,10/06/2022,198.24
"Communities, Customer & Commercial Services",Sport & Leisure,Supplies & Services,Provisions,SPICE TIME,07/06/2022,166.50
"Communities, Customer & Commercial Services",Sport & Leisure,Supplies & Services,Provisions,SPICE TIME,07/06/2022,195.60
"Communities, Customer & Commercial Services",Sport & Leisure,Supplies & Services,Provisions,SPICE TIME,07/06/2022,178.00
"Communities, Customer & Commercial Services",Sport & Leisure,Supplies & Services,Provisions,SPICE TIME,07/06/2022,144.40
"Communities, Customer & Commercial Services",Sport & Leisure,Supplies & Services,Provisions,BIKOLD,10/06/2022,104.25
"Communities, Customer & Commercial Services",Sport & Leisure,Supplies & Services,Provisions,SPICE TIME,07/06/2022,238.50
"Communities, Customer & Commercial Services",Sport & Leisure,Supplies & Services,Provisions,J S Catering Butchers,17/06/2022,279.49
"Communities, Customer & Commercial Services",Sport & Leisure,Supplies & Services,Provisions,J S Catering Butchers,17/06/2022,132.84
"Communities, Customer & Commercial Services",Sport & Leisure,Supplies & Services,Provisions,J S Catering Butchers,17/06/2022,251.75
"Communities, Customer & Commercial Services",Sport & Leisure,Supplies & Services,Provisions,J S Catering Butchers,17/06/2022,110.41
"Communities, Customer & Commercial Services",Sport & Leisure,Supplies & Services,Provisions,SPICE TIME,07/06/2022,190.65
"Communities, Customer & Commercial Services",Sport & Leisure,Supplies & Services,Provisions,SPICE TIME,07/06/2022,140.40
"Communities, Customer & Commercial Services",Sport & Leisure,Supplies & Services,Provisions,SPICE TIME,07/06/2022,275.00
"Communities, Customer & Commercial Services",Sport & Leisure,Supplies & Services,Provisions,SPICE TIME,07/06/2022,100.15
"Communities, Customer & Commercial Services",Sport & Leisure,Supplies & Services,Provisions,SPICE TIME,07/06/2022,342.50
"Communities, Customer & Commercial Services",Sport & Leisure,Supplies & Services,Provisions,SPICE TIME,07/06/2022,228.80
"Communities, Customer & Commercial Services",Sport & Leisure,Supplies & Services,Provisions,SPICE TIME,07/06/2022,163.00
"Communities, Customer & Commercial Services",Sport & Leisure,Supplies & Services,Provisions,SPICE TIME,07/06/2022,166.50
"Communities, Customer & Commercial Services",Sport & Leisure,Supplies & Services,Provisions,BIKOLD,10/06/2022,198.37
"Communities, Customer & Commercial Services",Sport & Leisure,Supplies & Services,Provisions,BIKOLD,10/06/2022,220.77
"Communities, Customer & Commercial Services",Sport & Leisure,Supplies & Services,Provisions,BIKOLD,10/06/2022,123.54
"Communities, Customer & Commercial Services",Sport & Leisure,Supplies & Services,Provisions,BIKOLD,10/06/2022,110.40
"Communities, Customer & Commercial Services",Sport & Leisure,Supplies & Services,Provisions,BIKOLD,10/06/2022,929.86
"Communities, Customer & Commercial Services",Sport & Leisure,Supplies & Services,Provisions,BIKOLD,10/06/2022,168.28
"Communities, Customer & Commercial Services",Sport & Leisure,Supplies & Services,Provisions,BIKOLD,10/06/2022,496.35
"Communities, Customer & Commercial Services",Sport & Leisure,Supplies & Services,Provisions,BIKOLD,10/06/2022,242.77
"Communities, Customer & Commercial Services",Sport & Leisure,Supplies & Services,Provisions,BIKOLD,10/06/2022,208.00
"Communities, Customer & Commercial Services",Sport & Leisure,Supplies & Services,Provisions,BIKOLD,10/06/2022,813.65
"Communities, Customer & Commercial Services",Sport & Leisure,Supplies & Services,Provisions,BIKOLD,10/06/2022,639.37
"Communities, Customer & Commercial Services",Sport & Leisure,Supplies & Services,Provisions,BIKOLD,10/06/2022,630.27
"Communities, Customer & Commercial Services",Sport & Leisure,Supplies & Services,Provisions,BIKOLD,10/06/2022,532.91
"Communities, Customer & Commercial Services",Sport & Leisure,Supplies & Services,Provisions,R & COMPANY,16/06/2022,115.87
"Communities, Customer & Commercial Services",Sport & Leisure,Supplies & Services,Provisions,R & COMPANY,16/06/2022,142.67
"Communities, Customer & Commercial Services",Sport & Leisure,Supplies & Services,Provisions,BIKOLD,10/06/2022,263.60
"Communities, Customer & Commercial Services",Sport & Leisure,Supplies & Services,Provisions,BIKOLD,10/06/2022,267.92
"Communities, Customer & Commercial Services",Sport & Leisure,Supplies & Services,Provisions,BIKOLD,10/06/2022,289.90
"Communities, Customer & Commercial Services",Sport & Leisure,Supplies & Services,Provisions,BIKOLD,06/06/2022,195.85
"Communities, Customer & Commercial Services",Sport & Leisure,Supplies & Services,Provisions,BIKOLD,10/06/2022,237.15
"Communities, Customer & Commercial Services",Sport & Leisure,Supplies & Services,Provisions,BIKOLD,10/06/2022,140.68
"Communities, Customer & Commercial Services",Sport & Leisure,Supplies & Services,Provisions,R & COMPANY,16/06/2022,179.53
"Communities, Customer & Commercial Services",Sport & Leisure,Supplies & Services,Provisions,R & COMPANY,16/06/2022,176.66
"Communities, Customer & Commercial Services",Sport & Leisure,Supplies & Services,Provisions,BIKOLD,10/06/2022,112.48
"Communities, Customer & Commercial Services",Sport & Leisure,Supplies & Services,Provisions,BIKOLD,10/06/2022,242.98
"Communities, Customer & Commercial Services",Sport & Leisure,Supplies & Services,Provisions,BIKOLD,10/06/2022,153.44
"Communities, Customer & Commercial Services",Sport & Leisure,Supplies & Services,Provisions,BIKOLD,10/06/2022,348.37
"Communities, Customer & Commercial Services",Sport & Leisure,Supplies & Services,Provisions,BIKOLD,10/06/2022,172.93
"Communities, Customer & Commercial Services",Sport & Leisure,Supplies & Services,Provisions,BIKOLD,10/06/2022,141.07
"Communities, Customer & Commercial Services",Sport & Leisure,Supplies & Services,Provisions,BIKOLD,10/06/2022,-100.98
"Communities, Customer & Commercial Services",Sport & Leisure,Supplies & Services,Provisions,BIKOLD,10/06/2022,284.99
"Communities, Customer & Commercial Services",Sport & Leisure,Supplies & Services,Provisions,BIKOLD,10/06/2022,160.82
"Communities, Customer & Commercial Services",Sport & Leisure,Supplies & Services,Provisions,BIKOLD,10/06/2022,106.54
"Communities, Customer & Commercial Services",Sport & Leisure,Supplies & Services,Provisions,BIKOLD,10/06/2022,324.48
"Communities, Customer & Commercial Services",Sport & Leisure,Supplies & Services,Provisions,SPICE TIME,13/06/2022,202.00
"Communities, Customer & Commercial Services",Sport & Leisure,Supplies & Services,Provisions,BIKOLD,10/06/2022,171.62
"Communities, Customer & Commercial Services",Sport & Leisure,Supplies & Services,Provisions,BIKOLD,10/06/2022,158.38
"Communities, Customer & Commercial Services",Sport & Leisure,Supplies & Services,Provisions,BIKOLD,10/06/2022,191.57
"Communities, Customer & Commercial Services",Sport & Leisure,Supplies & Services,Provisions,BIKOLD,10/06/2022,188.68
"Communities, Customer & Commercial Services",Sport & Leisure,Supplies & Services,Provisions,BIKOLD,10/06/2022,122.04
"Communities, Customer & Commercial Services",Sport & Leisure,Supplies & Services,Provisions,SPICE TIME,13/06/2022,101.00
"Communities, Customer & Commercial Services",Sport & Leisure,Supplies & Services,Provisions,BIKOLD,10/06/2022,354.68
"Communities, Customer & Commercial Services",Sport & Leisure,Supplies & Services,Provisions,BIKOLD,10/06/2022,121.68
"Communities, Customer & Commercial Services",Sport & Leisure,Supplies & Services,Provisions,BIKOLD,10/06/2022,189.78
"Communities, Customer & Commercial Services",Sport & Leisure,Supplies & Services,Provisions,BIKOLD,10/06/2022,106.34
"Communities, Customer & Commercial Services",Sport & Leisure,Supplies & Services,Provisions,BIKOLD,10/06/2022,425.68
"Communities, Customer & Commercial Services",Sport & Leisure,Supplies & Services,Provisions,BIKOLD,10/06/2022,905.79
"Communities, Customer & Commercial Services",Sport & Leisure,Supplies & Services,Provisions,BIKOLD,10/06/2022,257.82
"Communities, Customer & Commercial Services",Sport & Leisure,Supplies & Services,Provisions,BIKOLD,16/06/2022,357.57
"Communities, Customer & Commercial Services",Sport & Leisure,Supplies & Services,Provisions,BIKOLD,16/06/2022,278.49
"Communities, Customer & Commercial Services",Sport & Leisure,Supplies & Services,Provisions,BIKOLD,10/06/2022,155.24
"Communities, Customer & Commercial Services",Sport & Leisure,Supplies & Services,Provisions,BIKOLD,10/06/2022,423.35
"Communities, Customer & Commercial Services",Sport & Leisure,Supplies & Services,Provisions,BIKOLD,10/06/2022,264.69
"Communities, Customer & Commercial Services",Sport & Leisure,Supplies & Services,Provisions,BIKOLD,10/06/2022,100.48
"Communities, Customer & Commercial Services",Sport & Leisure,Supplies & Services,Provisions,BIKOLD,10/06/2022,220.97
"Communities, Customer & Commercial Services",Sport & Leisure,Supplies & Services,Provisions,BIKOLD,10/06/2022,392.38
"Communities, Customer & Commercial Services",Sport & Leisure,Supplies & Services,Provisions,BIKOLD,10/06/2022,155.49
"Communities, Customer & Commercial Services",Sport & Leisure,Supplies & Services,Provisions,BIKOLD,10/06/2022,202.01
"Communities, Customer & Commercial Services",Sport & Leisure,Supplies & Services,Provisions,BIKOLD,10/06/2022,102.72
"Communities, Customer & Commercial Services",Sport & Leisure,Supplies & Services,Provisions,BIKOLD,10/06/2022,100.47
"Communities, Customer & Commercial Services",Sport & Leisure,Supplies & Services,Provisions,BIKOLD,16/06/2022,219.99
"Communities, Customer & Commercial Services",Sport & Leisure,Supplies & Services,Provisions,BIKOLD,10/06/2022,113.08
"Communities, Customer & Commercial Services",Sport & Leisure,Supplies & Services,Provisions,BIKOLD,10/06/2022,350.81
"Communities, Customer & Commercial Services",Sport & Leisure,Supplies & Services,Provisions,BIKOLD,10/06/2022,198.82
"Communities, Customer & Commercial Services",Sport & Leisure,Supplies & Services,Provisions,BIKOLD,10/06/2022,177.26
"Communities, Customer & Commercial Services",Sport & Leisure,Supplies & Services,Provisions,BIKOLD,10/06/2022,120.65
"Communities, Customer & Commercial Services",Sport & Leisure,Supplies & Services,Provisions,BIKOLD,10/06/2022,124.45
"Communities, Customer & Commercial Services",Sport & Leisure,Supplies & Services,Provisions,BIKOLD,10/06/2022,119.55
"Communities, Customer & Commercial Services",Sport & Leisure,Supplies & Services,Provisions,BIKOLD,10/06/2022,111.15
"Communities, Customer & Commercial Services",Sport & Leisure,Supplies & Services,Provisions,BIKOLD,10/06/2022,144.88
"Communities, Customer & Commercial Services",Sport & Leisure,Supplies & Services,Provisions,BIKOLD,10/06/2022,280.96
"Communities, Customer & Commercial Services",Sport & Leisure,Supplies & Services,Provisions,BIKOLD,10/06/2022,259.79
"Communities, Customer & Commercial Services",Sport & Leisure,Supplies & Services,Provisions,BIKOLD,10/06/2022,291.59
"Communities, Customer & Commercial Services",Sport & Leisure,Supplies & Services,Provisions,BIKOLD,10/06/2022,330.55
"Communities, Customer & Commercial Services",Sport & Leisure,Supplies & Services,Provisions,BIKOLD,10/06/2022,446.81
"Communities, Customer & Commercial Services",Sport & Leisure,Supplies & Services,Provisions,BIKOLD,10/06/2022,303.53
"Communities, Customer & Commercial Services",Sport & Leisure,Supplies & Services,Provisions,BIKOLD,10/06/2022,147.35
"Communities, Customer & Commercial Services",Sport & Leisure,Supplies & Services,Provisions,BIKOLD,10/06/2022,124.35
"Communities, Customer & Commercial Services",Sport & Leisure,Supplies & Services,Provisions,BIKOLD,16/06/2022,201.73
"Communities, Customer & Commercial Services",Sport & Leisure,Supplies & Services,Provisions,BIKOLD,16/06/2022,166.49
"Communities, Customer & Commercial Services",Sport & Leisure,Supplies & Services,Provisions,BIKOLD,16/06/2022,133.09
"Communities, Customer & Commercial Services",Sport & Leisure,Supplies & Services,Provisions,BIKOLD,16/06/2022,156.78
"Communities, Customer & Commercial Services",Sport & Leisure,Supplies & Services,Provisions,BIKOLD,16/06/2022,563.41
"Communities, Customer & Commercial Services",Sport & Leisure,Supplies & Services,Provisions,BIKOLD,10/06/2022,263.80
"Communities, Customer & Commercial Services",Sport & Leisure,Supplies & Services,Provisions,BIKOLD,10/06/2022,143.49
"Communities, Customer & Commercial Services",Sport & Leisure,Supplies & Services,Provisions,BIKOLD,10/06/2022,244.93
"Communities, Customer & Commercial Services",Sport & Leisure,Supplies & Services,Provisions,BIKOLD,10/06/2022,146.98
"Communities, Customer & Commercial Services",Sport & Leisure,Supplies & Services,Provisions,BIKOLD,10/06/2022,110.78
"Communities, Customer & Commercial Services",Sport & Leisure,Supplies & Services,Provisions,BIKOLD,10/06/2022,264.04
"Communities, Customer & Commercial Services",Sport & Leisure,Supplies & Services,Provisions,BIKOLD,10/06/2022,207.81
"Communities, Customer & Commercial Services",Sport & Leisure,Supplies & Services,Provisions,BIKOLD,10/06/2022,210.91
"Communities, Customer & Commercial Services",Sport & Leisure,Supplies & Services,Provisions,R & COMPANY,16/06/2022,130.44
"Communities, Customer & Commercial Services",Sport & Leisure,Supplies & Services,Provisions,R & COMPANY,16/06/2022,194.37
"Communities, Customer & Commercial Services",Sport & Leisure,Supplies & Services,Provisions,R & COMPANY,16/06/2022,110.41
"Communities, Customer & Commercial Services",Sport & Leisure,Supplies & Services,Provisions,R & COMPANY,16/06/2022,154.23
"Communities, Customer & Commercial Services",Sport & Leisure,Supplies & Services,Provisions,BIKOLD,16/06/2022,116.27
"Communities, Customer & Commercial Services",Sport & Leisure,Supplies & Services,Provisions,BIKOLD,16/06/2022,138.88
"Communities, Customer & Commercial Services",Sport & Leisure,Supplies & Services,Provisions,BIKOLD,16/06/2022,278.62
"Communities, Customer & Commercial Services",Sport & Leisure,Supplies & Services,Provisions,BIKOLD,16/06/2022,217.68
"Communities, Customer & Commercial Services",Sport & Leisure,Supplies & Services,Provisions,R & COMPANY,16/06/2022,149.76
"Communities, Customer & Commercial Services",Sport & Leisure,Supplies & Services,Provisions,R & COMPANY,16/06/2022,114.67
"Communities, Customer & Commercial Services",Sport & Leisure,Supplies & Services,Provisions,R & COMPANY,16/06/2022,145.24
"Communities, Customer & Commercial Services",Sport & Leisure,Supplies & Services,Provisions,R & COMPANY,16/06/2022,181.15
"Communities, Customer & Commercial Services",Sport & Leisure,Supplies & Services,Provisions,R & COMPANY,16/06/2022,111.91
"Communities, Customer & Commercial Services",Sport & Leisure,Supplies & Services,Provisions,R & COMPANY,16/06/2022,111.34
"Communities, Customer & Commercial Services",Sport & Leisure,Supplies & Services,Provisions,SPICE TIME,13/06/2022,134.00
"Communities, Customer & Commercial Services",Sport & Leisure,Supplies & Services,Provisions,SPICE TIME,13/06/2022,163.20
"Communities, Customer & Commercial Services",Sport & Leisure,Supplies & Services,Provisions,SPICE TIME,13/06/2022,183.05
"Communities, Customer & Commercial Services",Sport & Leisure,Supplies & Services,Provisions,SPICE TIME,13/06/2022,155.00
"Communities, Customer & Commercial Services",Sport & Leisure,Supplies & Services,Provisions,SPICE TIME,13/06/2022,142.25
"Communities, Customer & Commercial Services",Sport & Leisure,Supplies & Services,Provisions,SPICE TIME,13/06/2022,113.50
"Communities, Customer & Commercial Services",Sport & Leisure,Supplies & Services,Provisions,BIKOLD,16/06/2022,116.24
"Communities, Customer & Commercial Services",Sport & Leisure,Supplies & Services,Provisions,BIKOLD,16/06/2022,138.50
"Communities, Customer & Commercial Services",Sport & Leisure,Supplies & Services,Provisions,BIKOLD,16/06/2022,167.61
"Communities, Customer & Commercial Services",Sport & Leisure,Supplies & Services,Provisions,BIKOLD,16/06/2022,110.69
"Communities, Customer & Commercial Services",Sport & Leisure,Supplies & Services,Provisions,BIKOLD,16/06/2022,231.83
"Communities, Customer & Commercial Services",Sport & Leisure,Supplies & Services,Provisions,BIKOLD,16/06/2022,117.02
"Communities, Customer & Commercial Services",Sport & Leisure,Supplies & Services,Provisions,BIKOLD,16/06/2022,303.12
"Communities, Customer & Commercial Services",Sport & Leisure,Supplies & Services,Provisions,BIKOLD,16/06/2022,108.18
"Communities, Customer & Commercial Services",Sport & Leisure,Supplies & Services,Provisions,BIKOLD,16/06/2022,208.15
"Communities, Customer & Commercial Services",Sport & Leisure,Supplies & Services,Provisions,BIKOLD,16/06/2022,159.97
"Communities, Customer & Commercial Services",Sport & Leisure,Supplies & Services,Provisions,BIKOLD,16/06/2022,182.23
"Communities, Customer & Commercial Services",Sport & Leisure,Supplies & Services,Provisions,BIKOLD,16/06/2022,128.49
"Communities, Customer & Commercial Services",Sport & Leisure,Supplies & Services,Provisions,BIKOLD,16/06/2022,187.79
"Communities, Customer & Commercial Services",Sport & Leisure,Supplies & Services,Provisions,BIKOLD,16/06/2022,255.64
"Communities, Customer & Commercial Services",Sport & Leisure,Supplies & Services,Provisions,BIKOLD,16/06/2022,101.17
"Communities, Customer & Commercial Services",Sport & Leisure,Supplies & Services,Provisions,BIKOLD,16/06/2022,102.34
"Communities, Customer & Commercial Services",Sport & Leisure,Supplies & Services,Provisions,BIKOLD,16/06/2022,107.08
"Communities, Customer & Commercial Services",Sport & Leisure,Supplies & Services,Provisions,BIKOLD,16/06/2022,117.25
"Communities, Customer & Commercial Services",Sport & Leisure,Supplies & Services,Provisions,BIKOLD,16/06/2022,345.14
"Communities, Customer & Commercial Services",Sport & Leisure,Supplies & Services,Provisions,BIKOLD,16/06/2022,-198.37
"Communities, Customer & Commercial Services",Sport & Leisure,Supplies & Services,Provisions,BIKOLD,16/06/2022,-237.15
"Communities, Customer & Commercial Services",Sport & Leisure,Supplies & Services,Provisions,BIKOLD,16/06/2022,189.90
"Communities, Customer & Commercial Services",Sport & Leisure,Supplies & Services,Provisions,BIKOLD,16/06/2022,176.05
"Communities, Customer & Commercial Services",Sport & Leisure,Supplies & Services,Provisions,BIKOLD,16/06/2022,110.94
"Communities, Customer & Commercial Services",Sport & Leisure,Supplies & Services,Provisions,BIKOLD,16/06/2022,149.12
"Communities, Customer & Commercial Services",Sport & Leisure,Supplies & Services,Provisions,BIKOLD,16/06/2022,226.01
"Communities, Customer & Commercial Services",Sport & Leisure,Supplies & Services,Provisions,BIKOLD,16/06/2022,286.82
"Communities, Customer & Commercial Services",Sport & Leisure,Supplies & Services,Provisions,BIKOLD,16/06/2022,149.50
"Communities, Customer & Commercial Services",Sport & Leisure,Supplies & Services,Provisions,BIKOLD,16/06/2022,184.94
"Communities, Customer & Commercial Services",Sport & Leisure,Supplies & Services,Provisions,BIKOLD,16/06/2022,146.44
"Communities, Customer & Commercial Services",Sport & Leisure,Supplies & Services,Provisions,BIKOLD,16/06/2022,247.19
"Communities, Customer & Commercial Services",Sport & Leisure,Supplies & Services,Provisions,BIKOLD,16/06/2022,392.26
"Communities, Customer & Commercial Services",Sport & Leisure,Supplies & Services,Provisions,BIKOLD,16/06/2022,229.83
"Communities, Customer & Commercial Services",Sport & Leisure,Supplies & Services,Provisions,BIKOLD,16/06/2022,404.54
"Communities, Customer & Commercial Services",Sport & Leisure,Supplies & Services,Provisions,BIKOLD,16/06/2022,327.79
"Communities, Customer & Commercial Services",Sport & Leisure,Supplies & Services,Provisions,BIKOLD,16/06/2022,453.45
"Communities, Customer & Commercial Services",Sport & Leisure,Supplies & Services,Provisions,BIKOLD,16/06/2022,281.22
"Communities, Customer & Commercial Services",Sport & Leisure,Supplies & Services,Provisions,BIKOLD,16/06/2022,333.39
"Communities, Customer & Commercial Services",Sport & Leisure,Supplies & Services,Provisions,BIKOLD,16/06/2022,318.78
"Communities, Customer & Commercial Services",Sport & Leisure,Supplies & Services,Provisions,BIKOLD,16/06/2022,369.92
"Communities, Customer & Commercial Services",Sport & Leisure,Supplies & Services,Provisions,BIKOLD,16/06/2022,129.98
"Communities, Customer & Commercial Services",Sport & Leisure,Supplies & Services,Provisions,BIKOLD,16/06/2022,151.64
"Communities, Customer & Commercial Services",Sport & Leisure,Supplies & Services,Provisions,BIKOLD,16/06/2022,135.59
"Communities, Customer & Commercial Services",Sport & Leisure,Supplies & Services,Provisions,BIKOLD,16/06/2022,255.36
"Communities, Customer & Commercial Services",Sport & Leisure,Supplies & Services,Provisions,BIKOLD,16/06/2022,329.98
"Communities, Customer & Commercial Services",Sport & Leisure,Supplies & Services,Provisions,BIKOLD,16/06/2022,259.96
"Communities, Customer & Commercial Services",Sport & Leisure,Supplies & Services,Provisions,BIKOLD,16/06/2022,111.94
"Communities, Customer & Commercial Services",Sport & Leisure,Supplies & Services,Provisions,BIKOLD,10/06/2022,181.87
"Communities, Customer & Commercial Services",Sport & Leisure,Supplies & Services,Provisions,BIKOLD,10/06/2022,128.64
"Communities, Customer & Commercial Services",Sport & Leisure,Supplies & Services,Provisions,BIKOLD,10/06/2022,353.65
"Communities, Customer & Commercial Services",Sport & Leisure,Supplies & Services,Provisions,BIKOLD,10/06/2022,420.11
"Communities, Customer & Commercial Services",Sport & Leisure,Supplies & Services,Provisions,BIKOLD,10/06/2022,398.98
"Communities, Customer & Commercial Services",Sport & Leisure,Supplies & Services,Provisions,BIKOLD,16/06/2022,115.51
"Communities, Customer & Commercial Services",Sport & Leisure,Supplies & Services,Provisions,BIKOLD,16/06/2022,111.30
"Communities, Customer & Commercial Services",Sport & Leisure,Supplies & Services,Provisions,BIKOLD,16/06/2022,185.84
"Communities, Customer & Commercial Services",Sport & Leisure,Supplies & Services,Provisions,BIKOLD,16/06/2022,244.11
"Communities, Customer & Commercial Services",Sport & Leisure,Supplies & Services,Provisions,BIKOLD,10/06/2022,131.34
"Communities, Customer & Commercial Services",Sport & Leisure,Supplies & Services,Provisions,BIKOLD,10/06/2022,140.89
"Communities, Customer & Commercial Services",Sport & Leisure,Supplies & Services,Provisions,BIKOLD,10/06/2022,291.61
"Communities, Customer & Commercial Services",Sport & Leisure,Supplies & Services,Provisions,BIKOLD,10/06/2022,156.85
"Communities, Customer & Commercial Services",Sport & Leisure,Supplies & Services,Provisions,BIKOLD,10/06/2022,456.43
"Communities, Customer & Commercial Services",Sport & Leisure,Supplies & Services,Provisions,BIKOLD,27/06/2022,343.54
"Communities, Customer & Commercial Services",Sport & Leisure,Supplies & Services,Provisions,BIKOLD,10/06/2022,382.25
"Communities, Customer & Commercial Services",Sport & Leisure,Supplies & Services,Provisions,BIKOLD,10/06/2022,237.15
"Communities, Customer & Commercial Services",Sport & Leisure,Supplies & Services,Provisions,R & COMPANY,16/06/2022,146.84
"Communities, Customer & Commercial Services",Sport & Leisure,Supplies & Services,Provisions,BIKOLD,16/06/2022,204.57
"Communities, Customer & Commercial Services",Sport & Leisure,Supplies & Services,Provisions,BIKOLD,27/06/2022,183.54
"Communities, Customer & Commercial Services",Sport & Leisure,Supplies & Services,Provisions,BIKOLD,27/06/2022,306.91
"Communities, Customer & Commercial Services",Sport & Leisure,Supplies & Services,Provisions,BIKOLD,16/06/2022,150.87
"Communities, Customer & Commercial Services",Sport & Leisure,Supplies & Services,Provisions,BIKOLD,16/06/2022,133.23
"Communities, Customer & Commercial Services",Sport & Leisure,Supplies & Services,Provisions,BIKOLD,16/06/2022,121.79
"Communities, Customer & Commercial Services",Sport & Leisure,Supplies & Services,Provisions,BIKOLD,16/06/2022,104.92
"Communities, Customer & Commercial Services",Sport & Leisure,Supplies & Services,Provisions,BIKOLD,16/06/2022,190.90
"Communities, Customer & Commercial Services",Sport & Leisure,Supplies & Services,Provisions,BIKOLD,27/06/2022,209.70
"Communities, Customer & Commercial Services",Sport & Leisure,Supplies & Services,Provisions,BIKOLD,27/06/2022,313.18
"Communities, Customer & Commercial Services",Sport & Leisure,Supplies & Services,Provisions,BIKOLD,27/06/2022,198.53
"Communities, Customer & Commercial Services",Sport & Leisure,Supplies & Services,Provisions,BIKOLD,27/06/2022,130.58
"Communities, Customer & Commercial Services",Sport & Leisure,Supplies & Services,Provisions,BIKOLD,27/06/2022,234.68
"Communities, Customer & Commercial Services",Sport & Leisure,Supplies & Services,Provisions,BIKOLD,16/06/2022,292.88
"Communities, Customer & Commercial Services",Sport & Leisure,Supplies & Services,Provisions,BIKOLD,16/06/2022,102.71
"Communities, Customer & Commercial Services",Sport & Leisure,Supplies & Services,Provisions,BIKOLD,16/06/2022,150.20
"Communities, Customer & Commercial Services",Sport & Leisure,Supplies & Services,Provisions,BIKOLD,16/06/2022,180.83
"Communities, Customer & Commercial Services",Sport & Leisure,Supplies & Services,Provisions,BIKOLD,27/06/2022,301.47
"Communities, Customer & Commercial Services",Sport & Leisure,Supplies & Services,Provisions,BIKOLD,27/06/2022,252.71
"Communities, Customer & Commercial Services",Sport & Leisure,Supplies & Services,Provisions,BIKOLD,27/06/2022,121.13
"Communities, Customer & Commercial Services",Sport & Leisure,Supplies & Services,Provisions,BIKOLD,16/06/2022,133.72
"Communities, Customer & Commercial Services",Sport & Leisure,Supplies & Services,Provisions,BIKOLD,16/06/2022,145.75
"Communities, Customer & Commercial Services",Sport & Leisure,Supplies & Services,Provisions,BIKOLD,16/06/2022,130.96
"Communities, Customer & Commercial Services",Sport & Leisure,Supplies & Services,Provisions,BIKOLD,16/06/2022,144.81
"Communities, Customer & Commercial Services",Sport & Leisure,Supplies & Services,Provisions,BIKOLD,16/06/2022,459.56
"Communities, Customer & Commercial Services",Sport & Leisure,Supplies & Services,Provisions,BIKOLD,27/06/2022,220.60
"Communities, Customer & Commercial Services",Sport & Leisure,Supplies & Services,Provisions,BIKOLD,16/06/2022,106.31
"Communities, Customer & Commercial Services",Sport & Leisure,Supplies & Services,Provisions,BIKOLD,16/06/2022,123.72
"Communities, Customer & Commercial Services",Sport & Leisure,Supplies & Services,Provisions,BIKOLD,16/06/2022,191.31
"Communities, Customer & Commercial Services",Sport & Leisure,Supplies & Services,Provisions,BIKOLD,16/06/2022,197.00
"Communities, Customer & Commercial Services",Sport & Leisure,Supplies & Services,Provisions,BIKOLD,16/06/2022,175.75
"Communities, Customer & Commercial Services",Sport & Leisure,Supplies & Services,Provisions,BIKOLD,16/06/2022,399.95
"Communities, Customer & Commercial Services",Sport & Leisure,Supplies & Services,Provisions,BIKOLD,16/06/2022,276.04
"Communities, Customer & Commercial Services",Sport & Leisure,Supplies & Services,Provisions,BIKOLD,16/06/2022,122.77
"Communities, Customer & Commercial Services",Sport & Leisure,Supplies & Services,Provisions,BIKOLD,16/06/2022,181.37
"Communities, Customer & Commercial Services",Sport & Leisure,Supplies & Services,Provisions,BIKOLD,16/06/2022,175.81
"Communities, Customer & Commercial Services",Sport & Leisure,Supplies & Services,Provisions,BIKOLD,16/06/2022,251.99
"Communities, Customer & Commercial Services",Sport & Leisure,Supplies & Services,Provisions,BIKOLD,16/06/2022,269.35
"Communities, Customer & Commercial Services",Sport & Leisure,Supplies & Services,Provisions,BIKOLD,16/06/2022,340.93
"Communities, Customer & Commercial Services",Sport & Leisure,Supplies & Services,Provisions,BIKOLD,16/06/2022,426.08
"Communities, Customer & Commercial Services",Sport & Leisure,Supplies & Services,Provisions,BIKOLD,16/06/2022,111.15
"Communities, Customer & Commercial Services",Sport & Leisure,Supplies & Services,Provisions,BIKOLD,16/06/2022,165.08
"Communities, Customer & Commercial Services",Sport & Leisure,Supplies & Services,Provisions,BIKOLD,16/06/2022,118.48
"Communities, Customer & Commercial Services",Sport & Leisure,Supplies & Services,Provisions,BIKOLD,16/06/2022,416.35
"Communities, Customer & Commercial Services",Sport & Leisure,Supplies & Services,Provisions,BIKOLD,16/06/2022,135.70
"Communities, Customer & Commercial Services",Sport & Leisure,Supplies & Services,Provisions,BIKOLD,16/06/2022,606.37
"Communities, Customer & Commercial Services",Sport & Leisure,Supplies & Services,Provisions,BIKOLD,16/06/2022,367.66
"Communities, Customer & Commercial Services",Sport & Leisure,Supplies & Services,Provisions,BIKOLD,16/06/2022,133.92
"Communities, Customer & Commercial Services",Sport & Leisure,Supplies & Services,Provisions,BIKOLD,16/06/2022,124.38
"Communities, Customer & Commercial Services",Sport & Leisure,Supplies & Services,Provisions,BIKOLD,16/06/2022,308.06
"Communities, Customer & Commercial Services",Sport & Leisure,Supplies & Services,Provisions,BIKOLD,16/06/2022,538.78
"Communities, Customer & Commercial Services",Sport & Leisure,Supplies & Services,Provisions,BIKOLD,16/06/2022,704.88
"Communities, Customer & Commercial Services",Sport & Leisure,Supplies & Services,Provisions,BIKOLD,27/06/2022,223.86
"Communities, Customer & Commercial Services",Sport & Leisure,Supplies & Services,Provisions,BIKOLD,27/06/2022,217.96
"Communities, Customer & Commercial Services",Sport & Leisure,Supplies & Services,Provisions,BIKOLD,27/06/2022,475.00
"Communities, Customer & Commercial Services",Sport & Leisure,Supplies & Services,Provisions,BIKOLD,27/06/2022,162.82
"Communities, Customer & Commercial Services",Sport & Leisure,Supplies & Services,Provisions,BIKOLD,27/06/2022,151.25
"Communities, Customer & Commercial Services",Sport & Leisure,Supplies & Services,Provisions,BIKOLD,27/06/2022,104.46
"Communities, Customer & Commercial Services",Sport & Leisure,Supplies & Services,Provisions,BIKOLD,27/06/2022,147.84
"Communities, Customer & Commercial Services",Sport & Leisure,Supplies & Services,Provisions,BIKOLD,27/06/2022,189.68
"Communities, Customer & Commercial Services",Sport & Leisure,Supplies & Services,Provisions,BIKOLD,27/06/2022,104.98
"Communities, Customer & Commercial Services",Sport & Leisure,Supplies & Services,Provisions,BIKOLD,27/06/2022,217.44
"Communities, Customer & Commercial Services",Sport & Leisure,Supplies & Services,Provisions,BIKOLD,27/06/2022,401.54
"Communities, Customer & Commercial Services",Sport & Leisure,Supplies & Services,Provisions,BIKOLD,27/06/2022,192.92
"Communities, Customer & Commercial Services",Sport & Leisure,Supplies & Services,Provisions,BIKOLD,27/06/2022,128.95
"Communities, Customer & Commercial Services",Sport & Leisure,Supplies & Services,Provisions,BIKOLD,27/06/2022,258.16
"Communities, Customer & Commercial Services",Sport & Leisure,Supplies & Services,Provisions,BIKOLD,27/06/2022,313.09
"Communities, Customer & Commercial Services",Sport & Leisure,Supplies & Services,Provisions,BIKOLD,27/06/2022,187.50
"Communities, Customer & Commercial Services",Sport & Leisure,Supplies & Services,Provisions,BIKOLD,27/06/2022,201.23
"Communities, Customer & Commercial Services",Sport & Leisure,Supplies & Services,Provisions,BIKOLD,27/06/2022,138.88
"Communities, Customer & Commercial Services",Sport & Leisure,Supplies & Services,Provisions,BIKOLD,27/06/2022,313.65
"Communities, Customer & Commercial Services",Sport & Leisure,Supplies & Services,Provisions,BIKOLD,27/06/2022,163.26
"Communities, Customer & Commercial Services",Sport & Leisure,Supplies & Services,Provisions,BIKOLD,27/06/2022,295.89
"Communities, Customer & Commercial Services",Sport & Leisure,Supplies & Services,Provisions,BIKOLD,27/06/2022,397.82
"Communities, Customer & Commercial Services",Sport & Leisure,Supplies & Services,Provisions,BIKOLD,27/06/2022,564.48
"Communities, Customer & Commercial Services",Sport & Leisure,Supplies & Services,Provisions,BIKOLD,27/06/2022,167.23
"Communities, Customer & Commercial Services",Sport & Leisure,Supplies & Services,Provisions,BIKOLD,27/06/2022,108.10
"Communities, Customer & Commercial Services",Sport & Leisure,Supplies & Services,Provisions,BIKOLD,27/06/2022,256.01
"Communities, Customer & Commercial Services",Sport & Leisure,Supplies & Services,Provisions,BIKOLD,27/06/2022,261.03
"Communities, Customer & Commercial Services",Sport & Leisure,Supplies & Services,Provisions,BIKOLD,27/06/2022,188.95
"Communities, Customer & Commercial Services",Sport & Leisure,Supplies & Services,Provisions,BIKOLD,16/06/2022,359.42
"Communities, Customer & Commercial Services",Sport & Leisure,Supplies & Services,Provisions,BIKOLD,16/06/2022,142.24
"Communities, Customer & Commercial Services",Sport & Leisure,Supplies & Services,Provisions,BIKOLD,16/06/2022,324.08
"Communities, Customer & Commercial Services",Sport & Leisure,Supplies & Services,Provisions,BIKOLD,27/06/2022,150.96
"Communities, Customer & Commercial Services",Sport & Leisure,Supplies & Services,Provisions,BIKOLD,27/06/2022,264.86
"Communities, Customer & Commercial Services",Sport & Leisure,Supplies & Services,Provisions,BIKOLD,27/06/2022,106.35
"Communities, Customer & Commercial Services",Sport & Leisure,Supplies & Services,Provisions,BIKOLD,27/06/2022,787.77
"Communities, Customer & Commercial Services",Sport & Leisure,Supplies & Services,Provisions,BIKOLD,27/06/2022,625.26
"Communities, Customer & Commercial Services",Sport & Leisure,Supplies & Services,Provisions,BIKOLD,27/06/2022,129.56
"Communities, Customer & Commercial Services",Sport & Leisure,Supplies & Services,Provisions,BIKOLD,27/06/2022,154.37
"Communities, Customer & Commercial Services",Sport & Leisure,Supplies & Services,Provisions,BIKOLD,27/06/2022,440.54
"Communities, Customer & Commercial Services",Sport & Leisure,Supplies & Services,Provisions,BIKOLD,27/06/2022,100.87
"Communities, Customer & Commercial Services",Sport & Leisure,Supplies & Services,Provisions,BIKOLD,27/06/2022,183.21
"Communities, Customer & Commercial Services",Sport & Leisure,Supplies & Services,Provisions,BIKOLD,27/06/2022,119.09
"Communities, Customer & Commercial Services",Sport & Leisure,Supplies & Services,Provisions,BIKOLD,27/06/2022,258.31
"Communities, Customer & Commercial Services",Sport & Leisure,Supplies & Services,Provisions,BIKOLD,27/06/2022,431.54
"Communities, Customer & Commercial Services",Sport & Leisure,Supplies & Services,Provisions,BIKOLD,27/06/2022,164.30
"Communities, Customer & Commercial Services",Sport & Leisure,Supplies & Services,Provisions,BIKOLD,27/06/2022,656.40
"Communities, Customer & Commercial Services",Sport & Leisure,Supplies & Services,Provisions,BIKOLD,27/06/2022,338.77
"Communities, Customer & Commercial Services",Sport & Leisure,Supplies & Services,Provisions,BIKOLD,27/06/2022,323.44
"Communities, Customer & Commercial Services",Sport & Leisure,Supplies & Services,Provisions,BIKOLD,27/06/2022,114.52
"Communities, Customer & Commercial Services",Sport & Leisure,Supplies & Services,Provisions,BIKOLD,27/06/2022,153.27
"Communities, Customer & Commercial Services",Sport & Leisure,Supplies & Services,Provisions,BIKOLD,27/06/2022,183.96
"Communities, Customer & Commercial Services",Sport & Leisure,Supplies & Services,Provisions,BIKOLD,27/06/2022,194.28
"Communities, Customer & Commercial Services",Sport & Leisure,Supplies & Services,Provisions,BIKOLD,27/06/2022,294.71
"Communities, Customer & Commercial Services",Sport & Leisure,Supplies & Services,Provisions,J S Catering Butchers,28/06/2022,110.55
"Communities, Customer & Commercial Services",Sport & Leisure,Supplies & Services,Provisions,J S Catering Butchers,28/06/2022,165.99
"Communities, Customer & Commercial Services",Sport & Leisure,Supplies & Services,Provisions,J S Catering Butchers,28/06/2022,221.98
"Communities, Customer & Commercial Services",Sport & Leisure,Supplies & Services,Provisions,J S Catering Butchers,28/06/2022,188.50
"Communities, Customer & Commercial Services",Sport & Leisure,Supplies & Services,Provisions,BIKOLD,27/06/2022,118.95
"Communities, Customer & Commercial Services",Sport & Leisure,Supplies & Services,Provisions,BIKOLD,27/06/2022,138.84
"Communities, Customer & Commercial Services",Sport & Leisure,Supplies & Services,Provisions,BIKOLD,27/06/2022,193.13
"Communities, Customer & Commercial Services",Sport & Leisure,Supplies & Services,Provisions,BIKOLD,27/06/2022,186.49
"Communities, Customer & Commercial Services",Sport & Leisure,Supplies & Services,Provisions,BIKOLD,27/06/2022,161.74
"Communities, Customer & Commercial Services",Sport & Leisure,Supplies & Services,Provisions,Delice de France,29/06/2022,106.23
"Communities, Customer & Commercial Services",Sport & Leisure,Supplies & Services,Provisions,BIKOLD,27/06/2022,103.13
"Communities, Customer & Commercial Services",Sport & Leisure,Supplies & Services,Provisions,BIKOLD,27/06/2022,474.89
"Communities, Customer & Commercial Services",Sport & Leisure,Supplies & Services,Provisions,BIKOLD,27/06/2022,102.95
"Communities, Customer & Commercial Services",Sport & Leisure,Supplies & Services,Provisions,BIKOLD,27/06/2022,218.36
"Communities, Customer & Commercial Services",Sport & Leisure,Supplies & Services,Provisions,BIKOLD,27/06/2022,121.16
"Communities, Customer & Commercial Services",Sport & Leisure,Supplies & Services,Provisions,BIKOLD,27/06/2022,118.14
"Communities, Customer & Commercial Services",Sport & Leisure,Supplies & Services,Provisions,BIKOLD,27/06/2022,203.18
"Communities, Customer & Commercial Services",Sport & Leisure,Supplies & Services,Provisions,BIKOLD,27/06/2022,132.02
"Communities, Customer & Commercial Services",Sport & Leisure,Supplies & Services,Provisions,BIKOLD,27/06/2022,154.77
"Communities, Customer & Commercial Services",Sport & Leisure,Supplies & Services,Provisions,BIKOLD,27/06/2022,441.27
"Communities, Customer & Commercial Services",Sport & Leisure,Supplies & Services,Provisions,BIKOLD,27/06/2022,320.97
"Communities, Customer & Commercial Services",Sport & Leisure,Supplies & Services,Provisions,BIKOLD,27/06/2022,182.63
"Communities, Customer & Commercial Services",Sport & Leisure,Supplies & Services,Provisions,BIKOLD,27/06/2022,134.51
"Communities, Customer & Commercial Services",Sport & Leisure,Supplies & Services,Provisions,BIKOLD,27/06/2022,134.52
"Communities, Customer & Commercial Services",Sport & Leisure,Supplies & Services,Provisions,BIKOLD,27/06/2022,153.69
"Communities, Customer & Commercial Services",Sport & Leisure,Supplies & Services,Provisions,BIKOLD,27/06/2022,120.18
"Communities, Customer & Commercial Services",Sport & Leisure,Supplies & Services,Provisions,BIKOLD,27/06/2022,226.18
"Communities, Customer & Commercial Services",Sport & Leisure,Supplies & Services,Provisions,BIKOLD,27/06/2022,271.70
"Communities, Customer & Commercial Services",Sport & Leisure,Supplies & Services,Provisions,BIKOLD,27/06/2022,140.47
"Communities, Customer & Commercial Services",Sport & Leisure,Supplies & Services,Provisions,BIKOLD,27/06/2022,201.74
"Communities, Customer & Commercial Services",Sport & Leisure,Supplies & Services,Provisions,BIKOLD,30/06/2022,212.81
"Communities, Customer & Commercial Services",Sport & Leisure,Supplies & Services,Provisions,BIKOLD,27/06/2022,179.73
"Communities, Customer & Commercial Services",Sport & Leisure,Supplies & Services,Provisions,BIKOLD,27/06/2022,674.16
"Communities, Customer & Commercial Services",Sport & Leisure,Supplies & Services,Provisions,BIKOLD,27/06/2022,437.19
"Communities, Customer & Commercial Services",Sport & Leisure,Supplies & Services,Provisions,BIKOLD,27/06/2022,126.10
"Communities, Customer & Commercial Services",Sport & Leisure,Supplies & Services,Provisions,BIKOLD,27/06/2022,349.36
"Communities, Customer & Commercial Services",Sport & Leisure,Supplies & Services,Provisions,BIKOLD,27/06/2022,252.28
"Communities, Customer & Commercial Services",Sport & Leisure,Supplies & Services,Provisions,R & COMPANY,28/06/2022,172.12
"Communities, Customer & Commercial Services",Sport & Leisure,Supplies & Services,Provisions,R & COMPANY,28/06/2022,102.44
"Communities, Customer & Commercial Services",Sport & Leisure,Supplies & Services,Provisions,R & COMPANY,28/06/2022,104.49
"Communities, Customer & Commercial Services",Sport & Leisure,Supplies & Services,Provisions,R & COMPANY,28/06/2022,100.92
"Communities, Customer & Commercial Services",Sport & Leisure,Supplies & Services,Provisions,BIKOLD,30/06/2022,346.22
"Communities, Customer & Commercial Services",Sport & Leisure,Supplies & Services,Provisions,BIKOLD,30/06/2022,261.33
"Communities, Customer & Commercial Services",Sport & Leisure,Supplies & Services,Provisions,BIKOLD,30/06/2022,193.29
"Communities, Customer & Commercial Services",Sport & Leisure,Supplies & Services,Provisions,R & COMPANY,28/06/2022,-575.53
"Communities, Customer & Commercial Services",Sport & Leisure,Supplies & Services,Provisions,R & COMPANY,28/06/2022,112.41
"Communities, Customer & Commercial Services",Sport & Leisure,Supplies & Services,Provisions,R & COMPANY,28/06/2022,153.96
"Communities, Customer & Commercial Services",Sport & Leisure,Supplies & Services,Provisions,R & COMPANY,28/06/2022,114.50
"Communities, Customer & Commercial Services",Sport & Leisure,Supplies & Services,Provisions,J S Catering Butchers,28/06/2022,201.28
"Communities, Customer & Commercial Services",Sport & Leisure,Supplies & Services,Provisions,BIKOLD,30/06/2022,304.24
"Communities, Customer & Commercial Services",Sport & Leisure,Supplies & Services,Provisions,BIKOLD,30/06/2022,228.06
"Communities, Customer & Commercial Services",Sport & Leisure,Supplies & Services,Provisions,BIKOLD,30/06/2022,146.03
"Communities, Customer & Commercial Services",Sport & Leisure,Supplies & Services,Provisions,BIKOLD,30/06/2022,410.36
"Communities, Customer & Commercial Services",Sport & Leisure,Supplies & Services,Provisions,BIKOLD,30/06/2022,201.46
"Communities, Customer & Commercial Services",Sport & Leisure,Supplies & Services,Provisions,BIKOLD,30/06/2022,243.02
"Communities, Customer & Commercial Services",Sport & Leisure,Supplies & Services,Provisions,BIKOLD,30/06/2022,252.28
"Communities, Customer & Commercial Services",Sport & Leisure,Supplies & Services,Provisions,BIKOLD,30/06/2022,499.58
"Communities, Customer & Commercial Services",Sport & Leisure,Supplies & Services,Provisions,BIKOLD,30/06/2022,105.83
"Communities, Customer & Commercial Services",Sport & Leisure,Supplies & Services,Provisions,BIKOLD,30/06/2022,155.09
"Communities, Customer & Commercial Services",Sport & Leisure,Supplies & Services,Provisions,BIKOLD,30/06/2022,101.38
"Communities, Customer & Commercial Services",Sport & Leisure,Supplies & Services,Provisions,BIKOLD,30/06/2022,129.02
"Communities, Customer & Commercial Services",Sport & Leisure,Supplies & Services,Provisions,BIKOLD,30/06/2022,171.10
"Communities, Customer & Commercial Services",Sport & Leisure,Supplies & Services,Provisions,BIKOLD,30/06/2022,121.33
"Communities, Customer & Commercial Services",Sport & Leisure,Supplies & Services,Provisions,BIKOLD,30/06/2022,233.33
"Communities, Customer & Commercial Services",Sport & Leisure,Supplies & Services,Provisions,BIKOLD,30/06/2022,213.32
"Communities, Customer & Commercial Services",Sport & Leisure,Supplies & Services,Provisions,BIKOLD,30/06/2022,239.61
"Communities, Customer & Commercial Services",Sport & Leisure,Supplies & Services,Provisions,BIKOLD,30/06/2022,504.55
"Communities, Customer & Commercial Services",Sport & Leisure,Supplies & Services,Provisions,BIKOLD,30/06/2022,354.31
"Communities, Customer & Commercial Services",Sport & Leisure,Supplies & Services,Provisions,BIKOLD,30/06/2022,299.64
"Communities, Customer & Commercial Services",Sport & Leisure,Supplies & Services,Provisions,BIKOLD,30/06/2022,500.30
"Communities, Customer & Commercial Services",Sport & Leisure,Supplies & Services,Provisions,BIKOLD,30/06/2022,222.35
"Communities, Customer & Commercial Services",Sport & Leisure,Supplies & Services,Provisions,BIKOLD,30/06/2022,135.95
"Communities, Customer & Commercial Services",Sport & Leisure,Supplies & Services,Provisions,BIKOLD,30/06/2022,420.78
"Communities, Customer & Commercial Services",Sport & Leisure,Supplies & Services,Provisions,BIKOLD,30/06/2022,199.78
"Communities, Customer & Commercial Services",Sport & Leisure,Supplies & Services,Provisions,BIKOLD,30/06/2022,140.25
"Communities, Customer & Commercial Services",Sport & Leisure,Supplies & Services,Provisions,BIKOLD,30/06/2022,105.76
"Communities, Customer & Commercial Services",Sport & Leisure,Supplies & Services,Provisions,BIKOLD,30/06/2022,375.17
"Communities, Customer & Commercial Services",Sport & Leisure,Supplies & Services,Provisions,BIKOLD,30/06/2022,209.61
"Communities, Customer & Commercial Services",Sport & Leisure,Supplies & Services,Provisions,BIKOLD,30/06/2022,332.79
"Communities, Customer & Commercial Services",Sport & Leisure,Supplies & Services,Provisions,BIKOLD,30/06/2022,624.87
"Communities, Customer & Commercial Services",Sport & Leisure,Supplies & Services,Provisions,BIKOLD,30/06/2022,151.48
"Communities, Customer & Commercial Services",Sport & Leisure,Supplies & Services,Provisions,BIKOLD,30/06/2022,119.43
"Communities, Customer & Commercial Services",Sport & Leisure,Supplies & Services,Provisions,R & COMPANY,28/06/2022,109.74
"Communities, Customer & Commercial Services",Sport & Leisure,Supplies & Services,Provisions,R & COMPANY,28/06/2022,200.91
"Communities, Customer & Commercial Services",Sport & Leisure,Supplies & Services,Provisions,R & COMPANY,28/06/2022,108.06
"Communities, Customer & Commercial Services",Sport & Leisure,Supplies & Services,Provisions,R & COMPANY,28/06/2022,332.53
"Communities, Customer & Commercial Services",Sport & Leisure,Supplies & Services,Provisions,R & COMPANY,28/06/2022,103.10
"Communities, Customer & Commercial Services",Sport & Leisure,Supplies & Services,Provisions,R & COMPANY,28/06/2022,120.97
"Communities, Customer & Commercial Services",Sport & Leisure,Supplies & Services,Provisions,BIKOLD,30/06/2022,202.83
"Communities, Customer & Commercial Services",Sport & Leisure,Supplies & Services,Provisions,BIKOLD,30/06/2022,142.71
"Communities, Customer & Commercial Services",Sport & Leisure,Supplies & Services,Provisions,BIKOLD,30/06/2022,131.30
"Communities, Customer & Commercial Services",Sport & Leisure,Supplies & Services,Provisions,BIKOLD,30/06/2022,131.56
"Communities, Customer & Commercial Services",Sport & Leisure,Supplies & Services,Provisions,BIKOLD,30/06/2022,256.02
"Communities, Customer & Commercial Services",Sport & Leisure,Supplies & Services,Provisions,BIKOLD,30/06/2022,-139.36
"Communities, Customer & Commercial Services",Sport & Leisure,Supplies & Services,Provisions,BIKOLD,30/06/2022,297.93
"Communities, Customer & Commercial Services",Sport & Leisure,Supplies & Services,Provisions,BIKOLD,30/06/2022,207.91
"Communities, Customer & Commercial Services",Sport & Leisure,Supplies & Services,Provisions,BIKOLD,30/06/2022,255.24
"Communities, Customer & Commercial Services",Sport & Leisure,Supplies & Services,Provisions,BIKOLD,30/06/2022,145.34
"Communities, Customer & Commercial Services",Sport & Leisure,Supplies & Services,Provisions,BIKOLD,30/06/2022,210.24
"Communities, Customer & Commercial Services",Sport & Leisure,Supplies & Services,Provisions,BIKOLD,30/06/2022,158.42
"Communities, Customer & Commercial Services",Sport & Leisure,Supplies & Services,Provisions,BIKOLD,30/06/2022,137.10
"Communities, Customer & Commercial Services",Sport & Leisure,Supplies & Services,Provisions,BIKOLD,30/06/2022,159.19
"Communities, Customer & Commercial Services",Sport & Leisure,Supplies & Services,Provisions,BIKOLD,30/06/2022,126.36
"Communities, Customer & Commercial Services",Sport & Leisure,Supplies & Services,Provisions,BIKOLD,30/06/2022,324.07
"Communities, Customer & Commercial Services",Sport & Leisure,Supplies & Services,Provisions,BIKOLD,30/06/2022,192.37
"Communities, Customer & Commercial Services",Sport & Leisure,Supplies & Services,Provisions,BIKOLD,30/06/2022,114.12
"Communities, Customer & Commercial Services",Sport & Leisure,Supplies & Services,Provisions,BIKOLD,30/06/2022,385.22
"Communities, Customer & Commercial Services",Sport & Leisure,Supplies & Services,Provisions,BIKOLD,30/06/2022,258.54
"Communities, Customer & Commercial Services",Sport & Leisure,Supplies & Services,Provisions,BIKOLD,30/06/2022,359.99
"Communities, Customer & Commercial Services",Sport & Leisure,Supplies & Services,Provisions,BIKOLD,30/06/2022,362.53
"Communities, Customer & Commercial Services",Sport & Leisure,Supplies & Services,Provisions,BIKOLD,30/06/2022,129.94
"Communities, Customer & Commercial Services",Sport & Leisure,Supplies & Services,Provisions,BIKOLD,30/06/2022,136.13
"Communities, Customer & Commercial Services",Sport & Leisure,Supplies & Services,Provisions,BIKOLD,30/06/2022,308.59
"Communities, Customer & Commercial Services",Sport & Leisure,Supplies & Services,Provisions,BIKOLD,30/06/2022,409.79
"Communities, Customer & Commercial Services",Sport & Leisure,Supplies & Services,Provisions,BIKOLD,30/06/2022,701.47
"Communities, Customer & Commercial Services",Sport & Leisure,Supplies & Services,Provisions,BIKOLD,30/06/2022,204.31
"Communities, Customer & Commercial Services",Sport & Leisure,Supplies & Services,Provisions,BIKOLD,30/06/2022,200.17
"Communities, Customer & Commercial Services",Sport & Leisure,Supplies & Services,Provisions,BIKOLD,30/06/2022,477.27
"Communities, Customer & Commercial Services",Sport & Leisure,Supplies & Services,Provisions,BIKOLD,30/06/2022,217.18
"Communities, Customer & Commercial Services",Sport & Leisure,Supplies & Services,Provisions,BIKOLD,30/06/2022,139.91
"Communities, Customer & Commercial Services",Sport & Leisure,Supplies & Services,Provisions,BIKOLD,30/06/2022,180.63
"Communities, Customer & Commercial Services",Sport & Leisure,Supplies & Services,Provisions,BIKOLD,30/06/2022,123.62
"Communities, Customer & Commercial Services",Sport & Leisure,Supplies & Services,Provisions,BIKOLD,30/06/2022,108.82
"Communities, Customer & Commercial Services",Sport & Leisure,Supplies & Services,Provisions,BIKOLD,30/06/2022,105.30
"Communities, Customer & Commercial Services",Sport & Leisure,Supplies & Services,Provisions,BIKOLD,30/06/2022,140.52
"Communities, Customer & Commercial Services",Sport & Leisure,Supplies & Services,Provisions,BIKOLD,30/06/2022,239.06
"Communities, Customer & Commercial Services",Sport & Leisure,Supplies & Services,Provisions,BIKOLD,30/06/2022,279.87
"Communities, Customer & Commercial Services",Sport & Leisure,Supplies & Services,Provisions,BIKOLD,30/06/2022,116.32
"Communities, Customer & Commercial Services",Sport & Leisure,Supplies & Services,Provisions,BIKOLD,30/06/2022,204.94
"Communities, Customer & Commercial Services",Sport & Leisure,Supplies & Services,Provisions,BIKOLD,30/06/2022,184.49
"Communities, Customer & Commercial Services",Sport & Leisure,Supplies & Services,Provisions,BIKOLD,30/06/2022,130.15
"Communities, Customer & Commercial Services",Sport & Leisure,Supplies & Services,Provisions,BIKOLD,30/06/2022,130.19
"Communities, Customer & Commercial Services",Sport & Leisure,Supplies & Services,Provisions,BIKOLD,30/06/2022,368.27
"Communities, Customer & Commercial Services",Sport & Leisure,Supplies & Services,Provisions,BIKOLD,30/06/2022,113.54
"Communities, Customer & Commercial Services",Sport & Leisure,Supplies & Services,Provisions,BIKOLD,30/06/2022,252.74
"Communities, Customer & Commercial Services",Sport & Leisure,Supplies & Services,Provisions,BIKOLD,30/06/2022,224.76
"Communities, Customer & Commercial Services",Sport & Leisure,Supplies & Services,Provisions,BIKOLD,30/06/2022,212.02
"Communities, Customer & Commercial Services",Sport & Leisure,Supplies & Services,Provisions,BIKOLD,30/06/2022,100.74
"Communities, Customer & Commercial Services",Sport & Leisure,Supplies & Services,Provisions,BIKOLD,30/06/2022,177.38
"Communities, Customer & Commercial Services",Sport & Leisure,Supplies & Services,Provisions,BIKOLD,30/06/2022,104.61
"Communities, Customer & Commercial Services",Sport & Leisure,Supplies & Services,Provisions,BIKOLD,30/06/2022,181.95
"Communities, Customer & Commercial Services",Sport & Leisure,Supplies & Services,Provisions,BIKOLD,30/06/2022,104.13
"Communities, Customer & Commercial Services",Sport & Leisure,Supplies & Services,Provisions,BIKOLD,30/06/2022,120.68
"Communities, Customer & Commercial Services",Sport & Leisure,Supplies & Services,Provisions,BIKOLD,30/06/2022,152.81
"Communities, Customer & Commercial Services",Sport & Leisure,Supplies & Services,Provisions,BIKOLD,30/06/2022,305.61
"Communities, Customer & Commercial Services",Sport & Leisure,Supplies & Services,Provisions,BIKOLD,30/06/2022,128.38
"Communities, Customer & Commercial Services",Sport & Leisure,Supplies & Services,Provisions,BIKOLD,30/06/2022,401.63
"Communities, Customer & Commercial Services",Sport & Leisure,Supplies & Services,Provisions,BIKOLD,30/06/2022,213.50
"Communities, Customer & Commercial Services",Sport & Leisure,Supplies & Services,Provisions,BIKOLD,30/06/2022,178.69
"Communities, Customer & Commercial Services",Sport & Leisure,Supplies & Services,Provisions,BIKOLD,30/06/2022,130.02
"Communities, Customer & Commercial Services",Sport & Leisure,Supplies & Services,Provisions,BIKOLD,30/06/2022,193.82
"Communities, Customer & Commercial Services",Sport & Leisure,Supplies & Services,Provisions,BIKOLD,30/06/2022,160.56
"Communities, Customer & Commercial Services",Sport & Leisure,Supplies & Services,Provisions,BIKOLD,30/06/2022,270.00
"Communities, Customer & Commercial Services",Sport & Leisure,Supplies & Services,Provisions,BIKOLD,30/06/2022,446.37
"Communities, Customer & Commercial Services",Sport & Leisure,Supplies & Services,Provisions,BIKOLD,30/06/2022,215.13
"Communities, Customer & Commercial Services",Sport & Leisure,Employees,Agency Supply Costs,TOTAL CATERING SOLUTONS RECRUITMENT LTD,22/06/2022,192.00
"Communities, Customer & Commercial Services",Sport & Leisure,Premises-Related Expenditure,Clean Mats & Toilet Requisites,Border Janitorial Supplies Limited,07/06/2022,232.96
"Communities, Customer & Commercial Services",Sport & Leisure,Supplies & Services,Crockery/Hardware/Light Equip,Vegware,06/06/2022,430.06
"Communities, Customer & Commercial Services",Sport & Leisure,Supplies & Services,Crockery/Hardware/Light Equip,PLANGLOW LTD,06/06/2022,348.31
"Communities, Customer & Commercial Services",Sport & Leisure,Supplies & Services,Crockery/Hardware/Light Equip,PLANGLOW LTD,06/06/2022,464.41
"Communities, Customer & Commercial Services",Sport & Leisure,Supplies & Services,Crockery/Hardware/Light Equip,PLANGLOW LTD,06/06/2022,670.98
"Communities, Customer & Commercial Services",Sport & Leisure,Supplies & Services,Crockery/Hardware/Light Equip,PLANGLOW LTD,06/06/2022,422.68
"Communities, Customer & Commercial Services",Sport & Leisure,Supplies & Services,Crockery/Hardware/Light Equip,PLANGLOW LTD,06/06/2022,290.26
"Communities, Customer & Commercial Services",Sport & Leisure,Supplies & Services,Crockery/Hardware/Light Equip,PLANGLOW LTD,13/06/2022,464.41
"Communities, Customer & Commercial Services",Sport & Leisure,Supplies & Services,Crockery/Hardware/Light Equip,PLANGLOW LTD,13/06/2022,355.37
"Communities, Customer & Commercial Services",Sport & Leisure,Supplies & Services,Crockery/Hardware/Light Equip,Vegware,29/06/2022,354.65
"Communities, Customer & Commercial Services",Sport & Leisure,Supplies & Services,Provisions,R & COMPANY,01/06/2022,108.93
"Communities, Customer & Commercial Services",Sport & Leisure,Supplies & Services,Provisions,J S Catering Butchers,17/06/2022,146.48
"Communities, Customer & Commercial Services",Sport & Leisure,Supplies & Services,Provisions,J S Catering Butchers,17/06/2022,133.80
"Communities, Customer & Commercial Services",Sport & Leisure,Supplies & Services,Provisions,J S Catering Butchers,17/06/2022,110.03
"Communities, Customer & Commercial Services",Sport & Leisure,Supplies & Services,Provisions,On A Roll,06/06/2022,144.36
"Communities, Customer & Commercial Services",Sport & Leisure,Supplies & Services,Provisions,On A Roll,06/06/2022,203.78
"Communities, Customer & Commercial Services",Sport & Leisure,Supplies & Services,Provisions,On A Roll,06/06/2022,162.95
"Communities, Customer & Commercial Services",Sport & Leisure,Supplies & Services,Provisions,On A Roll,06/06/2022,857.70
"Communities, Customer & Commercial Services",Sport & Leisure,Supplies & Services,Provisions,SPICE TIME,06/06/2022,196.68
"Communities, Customer & Commercial Services",Sport & Leisure,Supplies & Services,Provisions,T FOOD SERVICE LTD,06/06/2022,160.75
"Communities, Customer & Commercial Services",Sport & Leisure,Supplies & Services,Provisions,Delice de France,07/06/2022,523.90
"Communities, Customer & Commercial Services",Sport & Leisure,Supplies & Services,Provisions,Handmade Speciality Products Ltd,07/06/2022,249.96
"Communities, Customer & Commercial Services",Sport & Leisure,Supplies & Services,Provisions,SPICE TIME,07/06/2022,138.00
"Communities, Customer & Commercial Services",Sport & Leisure,Supplies & Services,Provisions,SPICE TIME,07/06/2022,129.50
"Communities, Customer & Commercial Services",Sport & Leisure,Supplies & Services,Provisions,SPICE TIME,07/06/2022,125.45
"Communities, Customer & Commercial Services",Sport & Leisure,Supplies & Services,Provisions,SPICE TIME,07/06/2022,159.52
"Communities, Customer & Commercial Services",Sport & Leisure,Supplies & Services,Provisions,SPICE TIME,07/06/2022,118.68
"Communities, Customer & Commercial Services",Sport & Leisure,Supplies & Services,Provisions,Handmade Speciality Products Ltd,06/06/2022,296.00
"Communities, Customer & Commercial Services",Sport & Leisure,Supplies & Services,Provisions,BIKOLD,10/06/2022,140.64
"Communities, Customer & Commercial Services",Sport & Leisure,Supplies & Services,Provisions,BIKOLD,10/06/2022,403.66
"Communities, Customer & Commercial Services",Sport & Leisure,Supplies & Services,Provisions,BIKOLD,10/06/2022,417.18
"Communities, Customer & Commercial Services",Sport & Leisure,Supplies & Services,Provisions,BIKOLD,10/06/2022,482.14
"Communities, Customer & Commercial Services",Sport & Leisure,Supplies & Services,Provisions,BIKOLD,10/06/2022,139.72
"Communities, Customer & Commercial Services",Sport & Leisure,Supplies & Services,Provisions,BIKOLD,10/06/2022,105.38
"Communities, Customer & Commercial Services",Sport & Leisure,Supplies & Services,Provisions,BIKOLD,10/06/2022,929.50
"Communities, Customer & Commercial Services",Sport & Leisure,Supplies & Services,Provisions,BIKOLD,10/06/2022,666.92
"Communities, Customer & Commercial Services",Sport & Leisure,Supplies & Services,Provisions,BIKOLD,10/06/2022,132.06
"Communities, Customer & Commercial Services",Sport & Leisure,Supplies & Services,Provisions,BIKOLD,10/06/2022,"1,015.34"
"Communities, Customer & Commercial Services",Sport & Leisure,Supplies & Services,Provisions,BIKOLD,10/06/2022,482.79
"Communities, Customer & Commercial Services",Sport & Leisure,Supplies & Services,Provisions,BIKOLD,10/06/2022,721.99
"Communities, Customer & Commercial Services",Sport & Leisure,Supplies & Services,Provisions,BIKOLD,10/06/2022,-113.80
"Communities, Customer & Commercial Services",Sport & Leisure,Supplies & Services,Provisions,BIKOLD,10/06/2022,144.39
"Communities, Customer & Commercial Services",Sport & Leisure,Supplies & Services,Provisions,BIKOLD,10/06/2022,159.35
"Communities, Customer & Commercial Services",Sport & Leisure,Supplies & Services,Provisions,BIKOLD,10/06/2022,221.24
"Communities, Customer & Commercial Services",Sport & Leisure,Supplies & Services,Provisions,BIKOLD,10/06/2022,572.18
"Communities, Customer & Commercial Services",Sport & Leisure,Supplies & Services,Provisions,BIKOLD,10/06/2022,120.52
"Communities, Customer & Commercial Services",Sport & Leisure,Supplies & Services,Provisions,BIKOLD,10/06/2022,559.37
"Communities, Customer & Commercial Services",Sport & Leisure,Supplies & Services,Provisions,BIKOLD,10/06/2022,219.15
"Communities, Customer & Commercial Services",Sport & Leisure,Supplies & Services,Provisions,BIKOLD,10/06/2022,189.78
"Communities, Customer & Commercial Services",Sport & Leisure,Supplies & Services,Provisions,BIKOLD,10/06/2022,156.96
"Communities, Customer & Commercial Services",Sport & Leisure,Supplies & Services,Provisions,BIKOLD,10/06/2022,165.41
"Communities, Customer & Commercial Services",Sport & Leisure,Supplies & Services,Provisions,BIKOLD,10/06/2022,675.50
"Communities, Customer & Commercial Services",Sport & Leisure,Supplies & Services,Provisions,BIKOLD,10/06/2022,530.06
"Communities, Customer & Commercial Services",Sport & Leisure,Supplies & Services,Provisions,BIKOLD,10/06/2022,329.73
"Communities, Customer & Commercial Services",Sport & Leisure,Supplies & Services,Provisions,BIKOLD,10/06/2022,112.89
"Communities, Customer & Commercial Services",Sport & Leisure,Supplies & Services,Provisions,BIKOLD,10/06/2022,259.40
"Communities, Customer & Commercial Services",Sport & Leisure,Supplies & Services,Provisions,BIKOLD,10/06/2022,227.50
"Communities, Customer & Commercial Services",Sport & Leisure,Supplies & Services,Provisions,BIKOLD,10/06/2022,319.47
"Communities, Customer & Commercial Services",Sport & Leisure,Supplies & Services,Provisions,BIKOLD,10/06/2022,117.16
"Communities, Customer & Commercial Services",Sport & Leisure,Supplies & Services,Provisions,R & COMPANY,16/06/2022,124.65
"Communities, Customer & Commercial Services",Sport & Leisure,Supplies & Services,Provisions,R & COMPANY,16/06/2022,121.29
"Communities, Customer & Commercial Services",Sport & Leisure,Supplies & Services,Provisions,R & COMPANY,16/06/2022,109.77
"Communities, Customer & Commercial Services",Sport & Leisure,Supplies & Services,Provisions,R & COMPANY,16/06/2022,115.74
"Communities, Customer & Commercial Services",Sport & Leisure,Supplies & Services,Provisions,PASTA KING (UK) LIMITED,13/06/2022,382.56
"Communities, Customer & Commercial Services",Sport & Leisure,Supplies & Services,Provisions,PASTA KING (UK) LIMITED,13/06/2022,197.76
"Communities, Customer & Commercial Services",Sport & Leisure,Supplies & Services,Provisions,PASTA KING (UK) LIMITED,13/06/2022,250.72
"Communities, Customer & Commercial Services",Sport & Leisure,Supplies & Services,Provisions,On A Roll,13/06/2022,112.61
"Communities, Customer & Commercial Services",Sport & Leisure,Supplies & Services,Provisions,On A Roll,13/06/2022,125.53
"Communities, Customer & Commercial Services",Sport & Leisure,Supplies & Services,Provisions,On A Roll,13/06/2022,162.95
"Communities, Customer & Commercial Services",Sport & Leisure,Supplies & Services,Provisions,On A Roll,13/06/2022,607.52
"Communities, Customer & Commercial Services",Sport & Leisure,Supplies & Services,Provisions,SPICE TIME,13/06/2022,237.50
"Communities, Customer & Commercial Services",Sport & Leisure,Supplies & Services,Provisions,T FOOD SERVICE LTD,13/06/2022,257.06
"Communities, Customer & Commercial Services",Sport & Leisure,Supplies & Services,Provisions,T FOOD SERVICE LTD,13/06/2022,831.70
"Communities, Customer & Commercial Services",Sport & Leisure,Supplies & Services,Provisions,BIKOLD,16/06/2022,188.05
"Communities, Customer & Commercial Services",Sport & Leisure,Supplies & Services,Provisions,BIKOLD,16/06/2022,347.27
"Communities, Customer & Commercial Services",Sport & Leisure,Supplies & Services,Provisions,BIKOLD,16/06/2022,121.99
"Communities, Customer & Commercial Services",Sport & Leisure,Supplies & Services,Provisions,BIKOLD,16/06/2022,178.00
"Communities, Customer & Commercial Services",Sport & Leisure,Supplies & Services,Provisions,BIKOLD,16/06/2022,446.75
"Communities, Customer & Commercial Services",Sport & Leisure,Supplies & Services,Provisions,BIKOLD,16/06/2022,732.30
"Communities, Customer & Commercial Services",Sport & Leisure,Supplies & Services,Provisions,BIKOLD,16/06/2022,307.86
"Communities, Customer & Commercial Services",Sport & Leisure,Supplies & Services,Provisions,BIKOLD,16/06/2022,332.81
"Communities, Customer & Commercial Services",Sport & Leisure,Supplies & Services,Provisions,BIKOLD,16/06/2022,281.94
"Communities, Customer & Commercial Services",Sport & Leisure,Supplies & Services,Provisions,BIKOLD,16/06/2022,424.15
"Communities, Customer & Commercial Services",Sport & Leisure,Supplies & Services,Provisions,BIKOLD,16/06/2022,280.20
"Communities, Customer & Commercial Services",Sport & Leisure,Supplies & Services,Provisions,BIKOLD,16/06/2022,131.30
"Communities, Customer & Commercial Services",Sport & Leisure,Supplies & Services,Provisions,BIKOLD,16/06/2022,495.06
"Communities, Customer & Commercial Services",Sport & Leisure,Supplies & Services,Provisions,BIKOLD,16/06/2022,301.60
"Communities, Customer & Commercial Services",Sport & Leisure,Supplies & Services,Provisions,BIKOLD,16/06/2022,"1,055.49"
"Communities, Customer & Commercial Services",Sport & Leisure,Supplies & Services,Provisions,BIKOLD,16/06/2022,105.29
"Communities, Customer & Commercial Services",Sport & Leisure,Supplies & Services,Provisions,BIKOLD,16/06/2022,722.67
"Communities, Customer & Commercial Services",Sport & Leisure,Supplies & Services,Provisions,BIKOLD,16/06/2022,132.72
"Communities, Customer & Commercial Services",Sport & Leisure,Supplies & Services,Provisions,BIKOLD,16/06/2022,168.26
"Communities, Customer & Commercial Services",Sport & Leisure,Supplies & Services,Provisions,BIKOLD,16/06/2022,314.74
"Communities, Customer & Commercial Services",Sport & Leisure,Supplies & Services,Provisions,BIKOLD,16/06/2022,244.48
"Communities, Customer & Commercial Services",Sport & Leisure,Supplies & Services,Provisions,BIKOLD,16/06/2022,482.99
"Communities, Customer & Commercial Services",Sport & Leisure,Supplies & Services,Provisions,BIKOLD,16/06/2022,299.40
"Communities, Customer & Commercial Services",Sport & Leisure,Supplies & Services,Provisions,BIKOLD,27/06/2022,301.60
"Communities, Customer & Commercial Services",Sport & Leisure,Supplies & Services,Provisions,BIKOLD,27/06/2022,396.86
"Communities, Customer & Commercial Services",Sport & Leisure,Supplies & Services,Provisions,BIKOLD,27/06/2022,217.73
"Communities, Customer & Commercial Services",Sport & Leisure,Supplies & Services,Provisions,BIKOLD,27/06/2022,227.84
"Communities, Customer & Commercial Services",Sport & Leisure,Supplies & Services,Provisions,BIKOLD,27/06/2022,295.61
"Communities, Customer & Commercial Services",Sport & Leisure,Supplies & Services,Provisions,BIKOLD,27/06/2022,459.52
"Communities, Customer & Commercial Services",Sport & Leisure,Supplies & Services,Provisions,BIKOLD,27/06/2022,429.11
"Communities, Customer & Commercial Services",Sport & Leisure,Supplies & Services,Provisions,BIKOLD,27/06/2022,371.63
"Communities, Customer & Commercial Services",Sport & Leisure,Supplies & Services,Provisions,BIKOLD,27/06/2022,204.53
"Communities, Customer & Commercial Services",Sport & Leisure,Supplies & Services,Provisions,BIKOLD,27/06/2022,130.09
"Communities, Customer & Commercial Services",Sport & Leisure,Supplies & Services,Provisions,BIKOLD,27/06/2022,294.93
"Communities, Customer & Commercial Services",Sport & Leisure,Supplies & Services,Provisions,BIKOLD,27/06/2022,468.95
"Communities, Customer & Commercial Services",Sport & Leisure,Supplies & Services,Provisions,BIKOLD,27/06/2022,"1,045.34"
"Communities, Customer & Commercial Services",Sport & Leisure,Supplies & Services,Provisions,BIKOLD,27/06/2022,103.47
"Communities, Customer & Commercial Services",Sport & Leisure,Supplies & Services,Provisions,BIKOLD,27/06/2022,444.62
"Communities, Customer & Commercial Services",Sport & Leisure,Supplies & Services,Provisions,BIKOLD,27/06/2022,932.94
"Communities, Customer & Commercial Services",Sport & Leisure,Supplies & Services,Provisions,BIKOLD,27/06/2022,133.75
"Communities, Customer & Commercial Services",Sport & Leisure,Supplies & Services,Provisions,BIKOLD,27/06/2022,116.43
"Communities, Customer & Commercial Services",Sport & Leisure,Supplies & Services,Provisions,BIKOLD,27/06/2022,-274.50
"Communities, Customer & Commercial Services",Sport & Leisure,Supplies & Services,Provisions,BIKOLD,27/06/2022,131.60
"Communities, Customer & Commercial Services",Sport & Leisure,Supplies & Services,Provisions,BIKOLD,27/06/2022,177.36
"Communities, Customer & Commercial Services",Sport & Leisure,Supplies & Services,Provisions,BIKOLD,27/06/2022,437.43
"Communities, Customer & Commercial Services",Sport & Leisure,Supplies & Services,Provisions,BIKOLD,27/06/2022,962.01
"Communities, Customer & Commercial Services",Sport & Leisure,Supplies & Services,Provisions,BIKOLD,27/06/2022,137.49
"Communities, Customer & Commercial Services",Sport & Leisure,Supplies & Services,Provisions,BIKOLD,27/06/2022,327.39
"Communities, Customer & Commercial Services",Sport & Leisure,Supplies & Services,Provisions,BIKOLD,27/06/2022,150.50
"Communities, Customer & Commercial Services",Sport & Leisure,Supplies & Services,Provisions,BIKOLD,27/06/2022,333.46
"Communities, Customer & Commercial Services",Sport & Leisure,Supplies & Services,Provisions,BIKOLD,27/06/2022,137.07
"Communities, Customer & Commercial Services",Sport & Leisure,Supplies & Services,Provisions,T FOOD SERVICE LTD,22/06/2022,322.32
"Communities, Customer & Commercial Services",Sport & Leisure,Supplies & Services,Provisions,T FOOD SERVICE LTD,22/06/2022,183.85
"Communities, Customer & Commercial Services",Sport & Leisure,Supplies & Services,Provisions,T FOOD SERVICE LTD,22/06/2022,"1,149.68"
"Communities, Customer & Commercial Services",Sport & Leisure,Supplies & Services,Provisions,PASTA KING (UK) LIMITED,22/06/2022,329.60
"Communities, Customer & Commercial Services",Sport & Leisure,Supplies & Services,Provisions,PASTA KING (UK) LIMITED,22/06/2022,283.68
"Communities, Customer & Commercial Services",Sport & Leisure,Supplies & Services,Provisions,PASTA KING (UK) LIMITED,24/06/2022,197.76
"Communities, Customer & Commercial Services",Sport & Leisure,Supplies & Services,Provisions,R & COMPANY,28/06/2022,167.28
"Communities, Customer & Commercial Services",Sport & Leisure,Supplies & Services,Provisions,R & COMPANY,28/06/2022,156.41
"Communities, Customer & Commercial Services",Sport & Leisure,Supplies & Services,Provisions,R & COMPANY,28/06/2022,131.43
"Communities, Customer & Commercial Services",Sport & Leisure,Supplies & Services,Provisions,R & COMPANY,28/06/2022,179.56
"Communities, Customer & Commercial Services",Sport & Leisure,Supplies & Services,Provisions,R & COMPANY,28/06/2022,129.76
"Communities, Customer & Commercial Services",Sport & Leisure,Supplies & Services,Provisions,J S Catering Butchers,28/06/2022,135.63
"Communities, Customer & Commercial Services",Sport & Leisure,Supplies & Services,Provisions,On A Roll,29/06/2022,164.96
"Communities, Customer & Commercial Services",Sport & Leisure,Supplies & Services,Provisions,On A Roll,29/06/2022,180.95
"Communities, Customer & Commercial Services",Sport & Leisure,Supplies & Services,Provisions,On A Roll,29/06/2022,286.13
"Communities, Customer & Commercial Services",Sport & Leisure,Supplies & Services,Provisions,On A Roll,29/06/2022,612.92
"Communities, Customer & Commercial Services",Sport & Leisure,Supplies & Services,Provisions,PASTA KING (UK) LIMITED,29/06/2022,329.60
"Communities, Customer & Commercial Services",Sport & Leisure,Supplies & Services,Provisions,PASTA KING (UK) LIMITED,29/06/2022,118.88
"Communities, Customer & Commercial Services",Sport & Leisure,Supplies & Services,Provisions,BIKOLD,30/06/2022,583.85
"Communities, Customer & Commercial Services",Sport & Leisure,Supplies & Services,Provisions,BIKOLD,30/06/2022,214.92
"Communities, Customer & Commercial Services",Sport & Leisure,Supplies & Services,Provisions,BIKOLD,30/06/2022,204.06
"Communities, Customer & Commercial Services",Sport & Leisure,Supplies & Services,Provisions,BIKOLD,30/06/2022,137.92
"Communities, Customer & Commercial Services",Sport & Leisure,Supplies & Services,Provisions,BIKOLD,30/06/2022,100.36
"Communities, Customer & Commercial Services",Sport & Leisure,Supplies & Services,Provisions,BIKOLD,30/06/2022,508.20
"Communities, Customer & Commercial Services",Sport & Leisure,Supplies & Services,Provisions,BIKOLD,30/06/2022,306.48
"Communities, Customer & Commercial Services",Sport & Leisure,Supplies & Services,Provisions,BIKOLD,30/06/2022,721.49
"Communities, Customer & Commercial Services",Sport & Leisure,Supplies & Services,Provisions,BIKOLD,30/06/2022,202.87
"Communities, Customer & Commercial Services",Sport & Leisure,Supplies & Services,Provisions,BIKOLD,30/06/2022,508.60
"Communities, Customer & Commercial Services",Sport & Leisure,Supplies & Services,Provisions,BIKOLD,30/06/2022,340.85
"Communities, Customer & Commercial Services",Sport & Leisure,Supplies & Services,Provisions,BIKOLD,30/06/2022,157.60
"Communities, Customer & Commercial Services",Sport & Leisure,Supplies & Services,Provisions,BIKOLD,30/06/2022,253.09
"Communities, Customer & Commercial Services",Sport & Leisure,Supplies & Services,Provisions,BIKOLD,30/06/2022,220.52
"Communities, Customer & Commercial Services",Sport & Leisure,Supplies & Services,Provisions,BIKOLD,30/06/2022,335.87
"Communities, Customer & Commercial Services",Sport & Leisure,Supplies & Services,Provisions,BIKOLD,30/06/2022,357.03
"Communities, Customer & Commercial Services",Sport & Leisure,Supplies & Services,Provisions,BIKOLD,30/06/2022,123.99
"Communities, Customer & Commercial Services",Sport & Leisure,Supplies & Services,Provisions,BIKOLD,30/06/2022,116.27
"Communities, Customer & Commercial Services",Sport & Leisure,Supplies & Services,Provisions,BIKOLD,30/06/2022,254.97
"Communities, Customer & Commercial Services",Sport & Leisure,Supplies & Services,Provisions,BIKOLD,30/06/2022,583.42
"Communities, Customer & Commercial Services",Sport & Leisure,Supplies & Services,Provisions,BIKOLD,30/06/2022,126.09
"Communities, Customer & Commercial Services",Sport & Leisure,Supplies & Services,Provisions,BIKOLD,30/06/2022,-274.50
"Communities, Customer & Commercial Services",Sport & Leisure,Supplies & Services,Provisions,BIKOLD,30/06/2022,458.86
"Communities, Customer & Commercial Services",Sport & Leisure,Premises-Related Expenditure,R&M -Buildings DLO Charge,TOTAL CATERING SOLUTONS RECRUITMENT LTD,08/06/2022,193.92
"Communities, Customer & Commercial Services",Sport & Leisure,Premises-Related Expenditure,Clean Mats & Toilet Requisites,Border Janitorial Supplies Limited,30/06/2022,311.38
"Communities, Customer & Commercial Services",Sport & Leisure,Premises-Related Expenditure,Clean Mats & Toilet Requisites,Border Janitorial Supplies Limited,30/06/2022,149.59
"Communities, Customer & Commercial Services",Sport & Leisure,Premises-Related Expenditure,Clean Mats & Toilet Requisites,Border Janitorial Supplies Limited,30/06/2022,146.89
"Communities, Customer & Commercial Services",Sport & Leisure,Premises-Related Expenditure,Clean Mats & Toilet Requisites,Border Janitorial Supplies Limited,30/06/2022,127.58
"Communities, Customer & Commercial Services",Sport & Leisure,Premises-Related Expenditure,Clean Mats & Toilet Requisites,Border Janitorial Supplies Limited,30/06/2022,419.03
"Communities, Customer & Commercial Services",Sport & Leisure,Premises-Related Expenditure,Clean Mats & Toilet Requisites,Border Janitorial Supplies Limited,30/06/2022,163.15
"Communities, Customer & Commercial Services",Sport & Leisure,Premises-Related Expenditure,Clean Mats & Toilet Requisites,Border Janitorial Supplies Limited,30/06/2022,198.80
"Communities, Customer & Commercial Services",Sport & Leisure,Premises-Related Expenditure,Clean Mats & Toilet Requisites,Border Janitorial Supplies Limited,29/06/2022,152.28
"Communities, Customer & Commercial Services",Sport & Leisure,Premises-Related Expenditure,Clean Mats & Toilet Requisites,Border Janitorial Supplies Limited,29/06/2022,188.06
"Communities, Customer & Commercial Services",Sport & Leisure,Premises-Related Expenditure,Clean Mats & Toilet Requisites,Border Janitorial Supplies Limited,29/06/2022,129.87
"Communities, Customer & Commercial Services",Sport & Leisure,Premises-Related Expenditure,Clean Mats & Toilet Requisites,Border Janitorial Supplies Limited,29/06/2022,127.25
"Communities, Customer & Commercial Services",Sport & Leisure,Premises-Related Expenditure,Clean Mats & Toilet Requisites,Border Janitorial Supplies Limited,29/06/2022,397.95
"Communities, Customer & Commercial Services",Sport & Leisure,Premises-Related Expenditure,Clean Mats & Toilet Requisites,Border Janitorial Supplies Limited,29/06/2022,163.62
"Communities, Customer & Commercial Services",Sport & Leisure,Premises-Related Expenditure,Clean Mats & Toilet Requisites,Border Janitorial Supplies Limited,15/06/2022,239.11
"Communities, Customer & Commercial Services",Sport & Leisure,Premises-Related Expenditure,Clean Mats & Toilet Requisites,Border Janitorial Supplies Limited,15/06/2022,171.16
"Communities, Customer & Commercial Services",Sport & Leisure,Premises-Related Expenditure,Clean Mats & Toilet Requisites,Border Janitorial Supplies Limited,01/06/2022,171.00
"Communities, Customer & Commercial Services",Sport & Leisure,Premises-Related Expenditure,Clean Mats & Toilet Requisites,Border Janitorial Supplies Limited,09/06/2022,192.60
"Communities, Customer & Commercial Services",Sport & Leisure,Premises-Related Expenditure,Clean Mats & Toilet Requisites,Border Janitorial Supplies Limited,21/06/2022,"2,070.00"
"Communities, Customer & Commercial Services",Sport & Leisure,Premises-Related Expenditure,Clean Mats & Toilet Requisites,Border Janitorial Supplies Limited,21/06/2022,402.00
"Communities, Customer & Commercial Services",Sport & Leisure,Premises-Related Expenditure,Clean Mats & Toilet Requisites,Border Janitorial Supplies Limited,30/06/2022,126.25
"Communities, Customer & Commercial Services",Sport & Leisure,Supplies & Services,Protective Clothing,MYWORKWEAR,15/06/2022,326.56
"Communities, Customer & Commercial Services",Sport & Leisure,Supplies & Services,Protective Clothing,MYWORKWEAR,07/06/2022,232.80
"Communities, Customer & Commercial Services",Sport & Leisure,Supplies & Services,Protective Clothing,MYWORKWEAR,07/06/2022,248.59
"Communities, Customer & Commercial Services",Sport & Leisure,Supplies & Services,Mobile Phones,EE LTD EQUIPMENT ,28/06/2022,142.00
"Communities, Customer & Commercial Services",Sport & Leisure,Premises-Related Expenditure,Clean Mats & Toilet Requisites,Border Janitorial Supplies Limited,29/06/2022,101.49
"Communities, Customer & Commercial Services",Sport & Leisure,Premises-Related Expenditure,Clean Mats & Toilet Requisites,Border Janitorial Supplies Limited,29/06/2022,118.59
"Communities, Customer & Commercial Services",Sport & Leisure,Premises-Related Expenditure,Clean Mats & Toilet Requisites,Border Janitorial Supplies Limited,29/06/2022,111.87
"Communities, Customer & Commercial Services",Sport & Leisure,Premises-Related Expenditure,Clean Mats & Toilet Requisites,Border Janitorial Supplies Limited,15/06/2022,111.58
"Communities, Customer & Commercial Services",Sport & Leisure,Premises-Related Expenditure,Clean Mats & Toilet Requisites,Border Janitorial Supplies Limited,15/06/2022,171.28
"Communities, Customer & Commercial Services",Sport & Leisure,Premises-Related Expenditure,Clean Mats & Toilet Requisites,Border Janitorial Supplies Limited,15/06/2022,311.29
"Communities, Customer & Commercial Services",Sport & Leisure,Premises-Related Expenditure,Clean Mats & Toilet Requisites,Border Janitorial Supplies Limited,07/06/2022,225.05
"Communities, Customer & Commercial Services",Sport & Leisure,Premises-Related Expenditure,Clean Mats & Toilet Requisites,Border Janitorial Supplies Limited,17/06/2022,336.38
"Communities, Customer & Commercial Services",Sport & Leisure,Premises-Related Expenditure,Clean Mats & Toilet Requisites,Border Janitorial Supplies Limited,17/06/2022,229.12
"Communities, Customer & Commercial Services",Sport & Leisure,Premises-Related Expenditure,Clean Mats & Toilet Requisites,Border Janitorial Supplies Limited,06/06/2022,177.38
"Communities, Customer & Commercial Services",Sport & Leisure,Premises-Related Expenditure,Clean Mats & Toilet Requisites,Border Janitorial Supplies Limited,21/06/2022,196.47
"Communities, Customer & Commercial Services",Sport & Leisure,Premises-Related Expenditure,Clean Mats & Toilet Requisites,Border Janitorial Supplies Limited,21/06/2022,521.80
"Communities, Customer & Commercial Services",Sport & Leisure,Premises-Related Expenditure,Clean Mats & Toilet Requisites,Border Janitorial Supplies Limited,21/06/2022,"1,940.91"
"Communities, Customer & Commercial Services",Sport & Leisure,Premises-Related Expenditure,Clean Mats & Toilet Requisites,Border Janitorial Supplies Limited,21/06/2022,509.57
"Communities, Customer & Commercial Services",Sport & Leisure,Premises-Related Expenditure,Clean Mats & Toilet Requisites,Border Janitorial Supplies Limited,21/06/2022,129.26
"Communities, Customer & Commercial Services",Sport & Leisure,Premises-Related Expenditure,Clean Mats & Toilet Requisites,Border Janitorial Supplies Limited,17/06/2022,313.79
"Communities, Customer & Commercial Services",Sport & Leisure,Premises-Related Expenditure,Clean Mats & Toilet Requisites,Border Janitorial Supplies Limited,15/06/2022,152.46
"Communities, Customer & Commercial Services",Sport & Leisure,Premises-Related Expenditure,Clean Mats & Toilet Requisites,Border Janitorial Supplies Limited,06/06/2022,428.45
"Communities, Customer & Commercial Services",Sport & Leisure,Premises-Related Expenditure,Clean Mats & Toilet Requisites,Border Janitorial Supplies Limited,21/06/2022,167.51
"Communities, Customer & Commercial Services",Sport & Leisure,Premises-Related Expenditure,R&M -Building Other,COOL SERVICES LTD,06/06/2022,100.22
"Communities, Customer & Commercial Services",Sport & Leisure,Premises-Related Expenditure,R&M -Building Other,COOL SERVICES LTD,29/06/2022,717.38
"Communities, Customer & Commercial Services",Sport & Leisure,Supplies & Services,Crockery/Hardware/Light Equip,Vegware,07/06/2022,272.70
"Communities, Customer & Commercial Services",Sport & Leisure,Supplies & Services,Provisions,On A Roll,06/06/2022,212.61
"Communities, Customer & Commercial Services",Sport & Leisure,Supplies & Services,Provisions,Aroma Tea & Coffee Merchants,06/06/2022,129.27
"Communities, Customer & Commercial Services",Sport & Leisure,Supplies & Services,Provisions,BIKOLD,10/06/2022,210.02
"Communities, Customer & Commercial Services",Sport & Leisure,Supplies & Services,Provisions,BIKOLD,10/06/2022,200.59
"Communities, Customer & Commercial Services",Sport & Leisure,Supplies & Services,Provisions,On A Roll,13/06/2022,212.26
"Communities, Customer & Commercial Services",Sport & Leisure,Supplies & Services,Provisions,BIKOLD,16/06/2022,189.50
"Communities, Customer & Commercial Services",Sport & Leisure,Supplies & Services,Provisions,BIKOLD,16/06/2022,117.13
"Communities, Customer & Commercial Services",Sport & Leisure,Supplies & Services,Provisions,BIKOLD,27/06/2022,157.42
"Communities, Customer & Commercial Services",Sport & Leisure,Supplies & Services,Provisions,BIKOLD,27/06/2022,267.96
"Communities, Customer & Commercial Services",Sport & Leisure,Supplies & Services,Provisions,BIKOLD,30/06/2022,229.49
"Communities, Customer & Commercial Services",Sport & Leisure,Supplies & Services,Provisions,BIKOLD,30/06/2022,134.03
"Communities, Customer & Commercial Services",Sport & Leisure,Supplies & Services,Other Materials,PROVAC CLEANING SUPPLIES LTD,28/06/2022,523.57
"Communities, Customer & Commercial Services",Sport & Leisure,Supplies & Services,Sub Contractors,BUSINESS WATCH GUARDING LIMITED,16/06/2022,264.74
"Communities, Customer & Commercial Services",Sport & Leisure,Supplies & Services,Sub Contractors,BUSINESS WATCH GUARDING LIMITED,21/06/2022,256.20
"Communities, Customer & Commercial Services",Sport & Leisure,Supplies & Services,Sub Contractors,Id verde,21/06/2022,-750.00
"Communities, Customer & Commercial Services",Sport & Leisure,Supplies & Services,Sub Contractors,Id verde,21/06/2022,160.00
"Communities, Customer & Commercial Services",Sport & Leisure,Supplies & Services,Other Materials,Ecoprod Technique Ltd,27/06/2022,211.60
"Communities, Customer & Commercial Services",Sport & Leisure,Transport-Related Expenditure,District Council Vehicles,THE LODGE TYRE CO LTD,23/06/2022,636.30
"Communities, Customer & Commercial Services",Sport & Leisure,Premises-Related Expenditure,Swimming Pool Chemicals,BRENNTAG UK LIMITED,21/06/2022,"2,242.32"
"Communities, Customer & Commercial Services",Sport & Leisure,Supplies & Services,Items For Resale,J P L LTD,14/06/2022,105.00
"Communities, Customer & Commercial Services",Sport & Leisure,Supplies & Services,Licences,PPL PRS Ltd,01/06/2022,"8,402.80"
"Communities, Customer & Commercial Services",Sport & Leisure,Supplies & Services,Stationery,CCS MEDIA LIMITED,21/06/2022,135.00
"Communities, Customer & Commercial Services",Sport & Leisure,Supplies & Services,Chemicals/Cleaning Products,PROVAC CLEANING SUPPLIES LTD,17/06/2022,275.90
"Communities, Customer & Commercial Services",Sport & Leisure,Premises-Related Expenditure,R&M - Mechanical,TECHNOGYM UK LTD,20/06/2022,123.00
"Communities, Customer & Commercial Services",Sport & Leisure,Premises-Related Expenditure,R&M - Mechanical,TECHNOGYM UK LTD,20/06/2022,117.90
"Communities, Customer & Commercial Services",Sport & Leisure,Supplies & Services,Sport Equip - Purchase,TECHNOGYM UK LTD,20/06/2022,729.01
"Communities, Customer & Commercial Services",Sport & Leisure,Supplies & Services,Licences,PPL PRS Ltd,01/06/2022,571.91
"Communities, Customer & Commercial Services",Sport & Leisure,Supplies & Services,Com focused ext sch activities,Gymfinity Gymnastics Ltd,21/06/2022,280.00
"Communities, Customer & Commercial Services",Sport & Leisure,Employees,Staff Training,SWIM ENGLAND TRADING LIMITED,21/06/2022,400.00
"Communities, Customer & Commercial Services",Sport & Leisure,Supplies & Services,Financial Services,DEBIT FINANCE COLLECTIONS,28/06/2022,142.54
"Communities, Customer & Commercial Services",Sport & Leisure,Supplies & Services,Financial Services,DEBIT FINANCE COLLECTIONS,20/06/2022,141.40
"Communities, Customer & Commercial Services",Sport & Leisure,Premises-Related Expenditure,Preventative Maintenance,Life Fitness UK Ltd,09/06/2022,"1,350.66"
"Communities, Customer & Commercial Services",Sport & Leisure,Supplies & Services,Financial Services,DEBIT FINANCE COLLECTIONS,28/06/2022,291.98
"Communities, Customer & Commercial Services",Sport & Leisure,Supplies & Services,Financial Services,DEBIT FINANCE COLLECTIONS,08/06/2022,127.00
"Communities, Customer & Commercial Services",Sport & Leisure,Supplies & Services,Libraries Book Fund,L M Fitness UK Ltd,16/06/2022,789.17
"Communities, Customer & Commercial Services",Sport & Leisure,Supplies & Services,Financial Services,DEBIT FINANCE COLLECTIONS,20/06/2022,274.60
"Communities, Customer & Commercial Services",Sport & Leisure,Supplies & Services,Licences,PPL PRS Ltd,01/06/2022,267.52
"Communities, Customer & Commercial Services",Sport & Leisure,Supplies & Services,Administrative/Office Supplies,THE TILL ROLL CO LTD,24/06/2022,177.00
"Communities, Customer & Commercial Services",Sport & Leisure,Employees,Staff Training,INSTITUTE OF SWIMMING ,23/06/2022,"1,797.00"
"Communities, Customer & Commercial Services",Sport & Leisure,Supplies & Services,Chemicals/Cleaning Products,Border Janitorial Supplies Limited,01/06/2022,121.46
"Communities, Customer & Commercial Services",Sport & Leisure,Supplies & Services,Licences,PPL PRS Ltd,01/06/2022,"4,049.53"
"Communities, Customer & Commercial Services",Sport & Leisure,Supplies & Services,Chemicals/Cleaning Products,Border Janitorial Supplies Limited,13/06/2022,318.40
"Communities, Customer & Commercial Services",Sport & Leisure,Supplies & Services,Chemicals/Cleaning Products,J P L LTD,01/06/2022,157.50
"Communities, Customer & Commercial Services",Sport & Leisure,Supplies & Services,Equipment - Purchase,J P L LTD,01/06/2022,286.40
"Communities, Customer & Commercial Services",Sport & Leisure,Supplies & Services,Equipment - Purchase,J P L LTD,29/06/2022,413.70
"Communities, Customer & Commercial Services",Sport & Leisure,Supplies & Services,Financial Services,DEBIT FINANCE COLLECTIONS ,28/06/2022,329.00
"Communities, Customer & Commercial Services",Sport & Leisure,Supplies & Services,Financial Services,DEBIT FINANCE COLLECTIONS ,08/06/2022,111.80
"Communities, Customer & Commercial Services",Sport & Leisure,Supplies & Services,Financial Services,DEBIT FINANCE COLLECTIONS ,20/06/2022,328.68
"Communities, Customer & Commercial Services",Sport & Leisure,Employees,Staff Training,INSTITUTE OF SWIMMING,16/06/2022,375.00
"Communities, Customer & Commercial Services",Sport & Leisure,Employees,Staff Training,INSTITUTE OF SWIMMING,16/06/2022,375.00
"Communities, Customer & Commercial Services",Sport & Leisure,Employees,Staff Training,INSTITUTE OF SWIMMING,16/06/2022,375.00
"Communities, Customer & Commercial Services",Sport & Leisure,Supplies & Services,Financial Services,DEBIT FINANCE COLLECTIONS ,28/06/2022,139.70
"Communities, Customer & Commercial Services",Sport & Leisure,Supplies & Services,Financial Services,DEBIT FINANCE COLLECTIONS ,20/06/2022,120.64
"Communities, Customer & Commercial Services",Sport & Leisure,Supplies & Services,Equipment - Purchase,SKIPS TELFORD LTD,28/06/2022,210.00
"Communities, Customer & Commercial Services",Sport & Leisure,Supplies & Services,Flex Charges,Verifone UK Limited,08/06/2022,297.50
"Communities, Customer & Commercial Services",Sport & Leisure,Supplies & Services,Registration / Licence Fees,Cascade3D,09/06/2022,"1,680.00"
"Communities, Customer & Commercial Services",Sport & Leisure,Supplies & Services,Flex Charges,Verifone UK Limited,29/06/2022,297.50
"Communities, Customer & Commercial Services",Sport & Leisure,Supplies & Services,Equipment - Purchase,Universal Services (Sports Equipment) Ltd,18/06/2022,125.95
"Communities, Customer & Commercial Services",Sport & Leisure,Supplies & Services,Licences,PPL PRS Ltd,01/06/2022,"1,997.59"
"Communities, Customer & Commercial Services",Sport & Leisure,Supplies & Services,Equipment - Purchase,The Telford Langley School,09/06/2022,"6,217.13"
"Communities, Customer & Commercial Services",Sport & Leisure,Supplies & Services,Equipment - Purchase,Life Fitness UK Ltd,06/06/2022,808.65
"Communities, Customer & Commercial Services",Sport & Leisure,Supplies & Services,Financial Services,DEBIT FINANCE COLLECTIONS,28/06/2022,211.78
"Communities, Customer & Commercial Services",Sport & Leisure,Supplies & Services,Licences,PPL PRS Ltd,01/06/2022,"1,369.87"
"Communities, Customer & Commercial Services",Sport & Leisure,Supplies & Services,Financial Services,DEBIT FINANCE COLLECTIONS,20/06/2022,225.54
"Communities, Customer & Commercial Services",Sport & Leisure,Employees,Staff Training,HARPER ADAMS UNIVERSITY COLLEGE,20/06/2022,800.00
"Communities, Customer & Commercial Services",Sport & Leisure,Premises-Related Expenditure,R&M WC Planned,Agrovista UK LTD,20/06/2022,"1,242.70"
"Communities, Customer & Commercial Services",Sport & Leisure,Transport-Related Expenditure,Servicing & Repairs V&P,Pirtek Telford,01/06/2022,111.28
"Communities, Customer & Commercial Services",Sport & Leisure,Transport-Related Expenditure,Servicing & Repairs V&P,GRANVILLE CONSTRUCTION & MAINTENANCE LTD,01/06/2022,130.56
"Communities, Customer & Commercial Services",Sport & Leisure,Transport-Related Expenditure,Servicing & Repairs V&P,C STORES LTD,08/06/2022,169.13
"Communities, Customer & Commercial Services",Sport & Leisure,Transport-Related Expenditure,Servicing & Repairs V&P,OAKLEYS LTD,20/06/2022,423.30
"Communities, Customer & Commercial Services",Sport & Leisure,Transport-Related Expenditure,Servicing & Repairs V&P,Pirtek Telford,20/06/2022,217.07
"Communities, Customer & Commercial Services",Sport & Leisure,Transport-Related Expenditure,Servicing & Repairs V&P,THE LODGE TYRE CO LTD,20/06/2022,147.90
"Communities, Customer & Commercial Services",Sport & Leisure,Supplies & Services,Provisions,BIKOLD,06/06/2022,767.34
"Communities, Customer & Commercial Services",Sport & Leisure,Supplies & Services,Provisions,BIKOLD,06/06/2022,529.10
"Communities, Customer & Commercial Services",Sport & Leisure,Supplies & Services,Provisions,BIKOLD,06/06/2022,682.49
"Communities, Customer & Commercial Services",Sport & Leisure,Supplies & Services,Provisions,BIKOLD,06/06/2022,319.56
"Communities, Customer & Commercial Services",Sport & Leisure,Supplies & Services,Provisions,BIKOLD,10/06/2022,289.13
"Communities, Customer & Commercial Services",Sport & Leisure,Supplies & Services,Provisions,BIKOLD,10/06/2022,171.42
"Communities, Customer & Commercial Services",Sport & Leisure,Supplies & Services,Provisions,Handmade Speciality Products Ltd,13/06/2022,156.62
"Communities, Customer & Commercial Services",Sport & Leisure,Supplies & Services,Provisions,BIKOLD,16/06/2022,133.95
"Communities, Customer & Commercial Services",Sport & Leisure,Supplies & Services,Provisions,BIKOLD,16/06/2022,402.24
"Communities, Customer & Commercial Services",Sport & Leisure,Supplies & Services,Provisions,BIKOLD,27/06/2022,139.53
"Communities, Customer & Commercial Services",Sport & Leisure,Supplies & Services,Provisions,BIKOLD,27/06/2022,199.18
"Communities, Customer & Commercial Services",Sport & Leisure,Supplies & Services,Provisions,BIKOLD,27/06/2022,779.31
"Communities, Customer & Commercial Services",Sport & Leisure,Supplies & Services,Provisions,BIKOLD,27/06/2022,348.13
"Communities, Customer & Commercial Services",Sport & Leisure,Supplies & Services,Provisions,BIKOLD,30/06/2022,"1,035.98"
"Communities, Customer & Commercial Services",Sport & Leisure,Supplies & Services,Equipment - Hire,Ezy Lockers,16/06/2022,211.08
"Communities, Customer & Commercial Services",Sport & Leisure,Supplies & Services,Equipment - Hire,SLIDERS SKATE SHOP,16/06/2022,150.00
"Communities, Customer & Commercial Services",Sport & Leisure,Supplies & Services,Protective Clothing,JBS Group,21/06/2022,850.80
"Communities, Customer & Commercial Services",Sport & Leisure,Supplies & Services,Administrative/Office Supplies,CHRISBEON OFFICE SUPPLIES,15/06/2022,379.00
"Communities, Customer & Commercial Services",Sport & Leisure,Supplies & Services,Licences,PPL PRS Ltd,01/06/2022,847.67
"Communities, Customer & Commercial Services",Sport & Leisure,Supplies & Services,Equipment - Purchase,RLSS UK Shop,10/06/2022,570.00
"Communities, Customer & Commercial Services",Sport & Leisure,Supplies & Services,Equipment - Purchase,RLSS UK Shop,30/06/2022,225.00
"Communities, Customer & Commercial Services",Sport & Leisure,Employees,Staff Training,INSTITUTE OF SWIMMING ,21/06/2022,105.00
"Communities, Customer & Commercial Services",Sport & Leisure,Supplies & Services,Chemicals/Cleaning Products,BRENNTAG UK LIMITED,21/06/2022,"1,012.32"
"Communities, Customer & Commercial Services",Sport & Leisure,Supplies & Services,Chemicals/Cleaning Products,BRENNTAG UK LIMITED,15/06/2022,615.00
"Communities, Customer & Commercial Services",Sport & Leisure,Employees,Staff Training,L M Fitness UK Ltd,14/06/2022,192.50
"Communities, Customer & Commercial Services",Sport & Leisure,Supplies & Services,Financial Services,DEBIT FINANCE COLLECTIONS ,28/06/2022,530.12
"Communities, Customer & Commercial Services",Sport & Leisure,Supplies & Services,Licences,PPL PRS Ltd,01/06/2022,"11,949.40"
"Communities, Customer & Commercial Services",Sport & Leisure,Supplies & Services,Financial Services,DEBIT FINANCE COLLECTIONS ,08/06/2022,143.60
"Communities, Customer & Commercial Services",Sport & Leisure,Supplies & Services,Licences,L M Fitness UK Ltd,14/06/2022,"1,145.37"
"Communities, Customer & Commercial Services",Sport & Leisure,Supplies & Services,Financial Services,DEBIT FINANCE COLLECTIONS ,20/06/2022,506.74
"Communities, Customer & Commercial Services",Sport & Leisure,Employees,Staff Training,INSTITUTE OF SWIMMING,23/06/2022,"1,198.00"
"Communities, Customer & Commercial Services",Sport & Leisure,Employees,Staff Training,INSTITUTE OF SWIMMING,16/06/2022,"1,875.00"
"Communities, Customer & Commercial Services",Sport & Leisure,Supplies & Services,Financial Services,DEBIT FINANCE COLLECTIONS,28/06/2022,203.06
"Communities, Customer & Commercial Services",Sport & Leisure,Supplies & Services,Financial Services,DEBIT FINANCE COLLECTIONS,20/06/2022,208.94
"Communities, Customer & Commercial Services",Sport & Leisure,Supplies & Services,Carriage/Delivery Charge,J P L LTD,13/06/2022,127.00
"Communities, Customer & Commercial Services",Sport & Leisure,Supplies & Services,Equipment - Purchase,J P L LTD,13/06/2022,"2,280.00"
"Communities, Customer & Commercial Services",Sport & Leisure,Supplies & Services,Items For Resale,Splash About International Limited,06/06/2022,"1,051.30"
"Communities, Customer & Commercial Services",Sport & Leisure,Supplies & Services,Chemicals/Cleaning Products,BRENNTAG UK LIMITED,08/06/2022,"1,012.32"
"Communities, Customer & Commercial Services",Sport & Leisure,Supplies & Services,Chemicals/Cleaning Products,BRENNTAG UK LIMITED,23/06/2022,150.00
"Communities, Customer & Commercial Services",Sport & Leisure,Supplies & Services,Items For Resale,Splash About International Limited,28/06/2022,244.00
"Communities, Customer & Commercial Services",Sport & Leisure,Supplies & Services,Chemicals/Cleaning Products,BRENNTAG UK LIMITED,29/06/2022,"1,230.00"
Corporate Communications,Communications & Marketing,Supplies & Services,Subscriptions,AIMediaData Limited,06/06/2022,"3,052.99"
Corporate Communications,Communications & Marketing,Capital Expenditure,Other Capital Expenditure,EPS  LTD,28/06/2022,450.00
Corporate Communications,Communications & Marketing,Capital Expenditure,Other Capital Expenditure,SIGNS EXPRESS (TELFORD),28/06/2022,"1,039.30"
Corporate Items,Corporate Codes,Capital Financing Costs,Unitary Charge,PYRAMID SCHOOLS (HADLEY) LTD,15/06/2022,"931,720.82"
Corporate Items,Corporate Codes,Capital Financing Costs,Penalty Deductions,PYRAMID SCHOOLS (HADLEY) LTD,15/06/2022,"-1,161.60"
Corporate Items,Corporate Codes,Employees,Agency Supply Costs,Matrix SCM,17/06/2022,"42,308.75"
Corporate Items,Corporate Codes,Employees,Agency Supply Costs,Matrix SCM,08/06/2022,"46,374.21"
Corporate Items,Corporate Codes,Employees,Agency Supply Costs,Matrix SCM,15/06/2022,"27,721.16"
Education & Skills,Consultancy & Advisory Services,Premises-Related Expenditure,Hire Of Rooms,Mercure Telford Centre Hotel,09/06/2022,112.50
Education & Skills,Consultancy & Advisory Services,Supplies & Services,Training Costs - Participants Recharged,Mercure Telford Centre Hotel,09/06/2022,219.73
Education & Skills,Consultancy & Advisory Services,Supplies & Services,Mobile Phones,EE LTD EQUIPMENT ,28/06/2022,142.00
Education & Skills,Consultancy & Advisory Services,Supplies & Services,Mobile Phones,EE LTD EQUIPMENT ,28/06/2022,142.00
Education & Skills,Consultancy & Advisory Services,Supplies & Services,Mobile Phones,EE LTD EQUIPMENT ,28/06/2022,142.00
Education & Skills,Consultancy & Advisory Services,Premises-Related Expenditure,Hire Of Rooms,Mercure Telford Centre Hotel,23/06/2022,327.00
Education & Skills,Consultancy & Advisory Services,Supplies & Services,Training Costs - Participants Recharged,Mercure Telford Centre Hotel,23/06/2022,"1,199.46"
Education & Skills,Education & Skills,Capital Expenditure,Payments to Contractor,ASLES (TOOL HIRE & SALES) LTD,07/06/2022,116.00
Education & Skills,Education & Skills,Capital Expenditure,Payments to Contractor,ASLES (TOOL HIRE & SALES) LTD,07/06/2022,424.00
Education & Skills,Education & Skills,Capital Expenditure,Payments to Contractor,ASLES (TOOL HIRE & SALES) LTD,07/06/2022,288.00
Education & Skills,Education & Skills,Capital Expenditure,Payments to Contractor,P (BUILDERS) LTD,10/06/2022,"9,210.00"
Education & Skills,Education & Skills,Capital Expenditure,Payments to Contractor,SGS United Kingdom Limited,21/06/2022,450.00
Education & Skills,Education & Skills,Capital Expenditure,Legal Fees,W H SOLICITORS,29/06/2022,592.80
Education & Skills,Education & Skills,Capital Expenditure,Payments to Contractor,P (BUILDERS) LTD,10/06/2022,"18,000.00"
Education & Skills,Education & Skills,Capital Expenditure,Payments to Contractor,REDACTED PERSONAL INFORMATION,09/06/2022,850.00
Education & Skills,Education & Skills,Capital Expenditure,Payments to Contractor,R G S (BUILDINGS) LTD,28/06/2022,"6,507.92"
Education & Skills,Education & Skills,Capital Expenditure,Payments to Contractor,R G S (BUILDINGS) LTD,01/06/2022,"3,929.00"
Education & Skills,Education & Skills,Capital Expenditure,Payments to Contractor,WESSEX LIFT CO. LTD,28/06/2022,"11,523.75"
Education & Skills,Education & Skills,Capital Expenditure,Payments to Contractor,P (BUILDERS) LTD,14/06/2022,"29,533.00"
Education & Skills,Education & Skills,Capital Expenditure,Payments to Contractor,WESSEX LIFT CO. LTD,28/06/2022,"12,717.00"
Education & Skills,Education & Skills,Capital Expenditure,Payments to Contractor,WESSEX LIFT CO. LTD,28/06/2022,"12,717.00"
Education & Skills,Education & Skills,Capital Expenditure,Payments to Contractor,TDR Heating & Ventilation Engineers,14/06/2022,"37,782.40"
Education & Skills,Education & Skills,Capital Expenditure,Payments to Contractor,TDR Heating & Ventilation Engineers,28/06/2022,"3,583.30"
Education & Skills,Education & Skills,Capital Expenditure,Payments to Contractor,SGS United Kingdom Limited,24/06/2022,225.00
Education & Skills,Education & Skills,Capital Expenditure,Payments to Contractor,G I Sykes Ltd,28/06/2022,"8,395.73"
Education & Skills,Education & Skills,Capital Expenditure,Payments to Contractor,MERCIAN MASTERPLAN LTD,08/06/2022,118.80
Education & Skills,Education & Skills,Capital Expenditure,Payments to Contractor,Rubik Builders Limited,09/06/2022,"1,797.95"
Education & Skills,Education & Skills,Capital Expenditure,Payments to Contractor,Rubik Builders Limited,09/06/2022,774.50
Education & Skills,Education & Skills,Capital Expenditure,Payments to Contractor,Cubic FM Ltd,29/06/2022,"46,949.26"
Education & Skills,Education & Skills,Capital Expenditure,Payments to Contractor,W DConstruction Ltd,29/06/2022,"1,012,864.90"
Education & Skills,Education & Skills,Capital Expenditure,Payments to Contractor,WREKIN SELF STORAGE LTD,21/06/2022,200.00
Education & Skills,Education & Skills,Capital Expenditure,Payments to Contractor,SHROPSHIRE BLINDS & AWNINGS LIMITED,01/06/2022,598.00
Education & Skills,Education & Skills,Capital Expenditure,Payments to Contractor,Glendale (UK) Limited,21/06/2022,"17,088.00"
Education & Skills,Education & Skills,Capital Expenditure,Payments to Contractor,Strive AV Ltd,29/06/2022,"1,156.00"
Education & Skills,Education & Skills,Capital Expenditure,Payments to Contractor,CKL OFFICE SOLUTIONS LIMITED,28/06/2022,"1,476.00"
Education & Skills,Education & Skills,Capital Expenditure,Payments to Contractor,Churches Fire Security Ltd,29/06/2022,548.60
Education & Skills,Education & Skills,Capital Expenditure,Payments to Contractor,WREKIN REMOVALS,09/06/2022,146.00
Education & Skills,Education & Skills,Capital Expenditure,Payments to Contractor,SHROPSHIRE BLINDS & AWNINGS LIMITED,09/06/2022,135.00
Education & Skills,Education & Skills,Capital Expenditure,Payments to Contractor,WREKIN SELF STORAGE LTD,09/06/2022,200.00
Education & Skills,Education & Skills,Capital Expenditure,Payments to Contractor,Red Kite Network Limited,14/06/2022,"2,585.40"
Education & Skills,Education & Skills,Capital Expenditure,Payments to Contractor,Metalliform Holdings Ltd,14/06/2022,"2,101.68"
Education & Skills,Education & Skills,Capital Expenditure,Payments to Contractor,Read Construction Holdings Ltd,28/06/2022,"76,122.88"
Education & Skills,Education & Skills,Capital Expenditure,Payments to Contractor,W and P Building Contractors Ltd,28/06/2022,692.68
Education & Skills,Pupil Support Services,Supplies & Services,Comp Software (Purch / Hire),Paritor Ltd,10/06/2022,"2,142.73"
Education & Skills,Pupil Support Services,Supplies & Services,Equipment - Purchase,Southern Percussion Ltd,24/06/2022,"4,506.67"
Education & Skills,Pupil Support Services,Supplies & Services,Equipment - Purchase,NORMANS MUSICAL INSTRUMENTS,22/06/2022,368.00
Education & Skills,SEND (0-25),Transport-Related Expenditure,Taxi Costs,AB & CA H,24/06/2022,"1,216.00"
Education & Skills,SEND (0-25),Transport-Related Expenditure,Taxi Costs,AB & CA H,24/06/2022,"2,631.50"
Education & Skills,SEND (0-25),Transport-Related Expenditure,Taxi Costs,A-STAR TRANSPORT MIDLANDS LTD,17/06/2022,"6,175.00"
Education & Skills,SEND (0-25),Transport-Related Expenditure,Taxi Costs,A-STAR TRANSPORT MIDLANDS LTD,17/06/2022,"1,862.00"
Education & Skills,SEND (0-25),Transport-Related Expenditure,Taxi Costs,A-STAR TRANSPORT MIDLANDS LTD,06/06/2022,"1,625.00"
Education & Skills,SEND (0-25),Transport-Related Expenditure,Transport Contractors,Telford Taxi Hire Limited,13/06/2022,"2,850.00"
Education & Skills,SEND (0-25),Transport-Related Expenditure,Taxi Costs,24X7 Ltd,13/06/2022,"1,660.65"
Education & Skills,SEND (0-25),Transport-Related Expenditure,Taxi Costs,A2B Transports,13/06/2022,"1,794.50"
Education & Skills,SEND (0-25),Transport-Related Expenditure,Taxi Costs,24X7 Ltd,13/06/2022,"1,121.28"
Education & Skills,SEND (0-25),Transport-Related Expenditure,Taxi Costs,A2B Transports,13/06/2022,"1,155.00"
Education & Skills,SEND (0-25),Transport-Related Expenditure,Taxi Costs,A2B Transports,13/06/2022,"3,762.00"
Education & Skills,SEND (0-25),Transport-Related Expenditure,Taxi Costs,Telford and Wrekin Community Enterprise LTD,13/06/2022,714.00
Education & Skills,SEND (0-25),Transport-Related Expenditure,Taxi Costs,Telford Taxi Hire Limited,13/06/2022,"2,090.00"
Education & Skills,SEND (0-25),Transport-Related Expenditure,Taxi Costs,Telford Taxi Hire Limited,13/06/2022,"1,900.00"
Education & Skills,SEND (0-25),Transport-Related Expenditure,Transport Contractors,Telford Taxi Hire Limited,13/06/2022,"4,560.00"
Education & Skills,SEND (0-25),Transport-Related Expenditure,Taxi Costs,A2B Transports,13/06/2022,667.50
Education & Skills,SEND (0-25),Transport-Related Expenditure,Taxi Costs,Telford Taxi Hire Limited,13/06/2022,"1,210.00"
Education & Skills,SEND (0-25),Transport-Related Expenditure,Taxi Costs,ULTIMATE TAXIS LTD,27/06/2022,"1,440.00"
Education & Skills,SEND (0-25),Transport-Related Expenditure,Taxi Costs,Go Carz,29/06/2022,"1,102.00"
Education & Skills,SEND (0-25),Supplies & Services,Other Services,Permanent Futures Ltd,22/06/2022,"3,450.00"
Education & Skills,SEND (0-25),Supplies & Services,Other Services,Permanent Futures Ltd,22/06/2022,"1,100.00"
Education & Skills,SEND (0-25),Third Party Payments,DSG - High Needs Block,Bridge Therapy,20/06/2022,613.00
Education & Skills,SEND (0-25),Third Party Payments,DSG - High Needs Block,PRIORSLEE ACADEMY,29/06/2022,"1,915.56"
Education & Skills,SEND (0-25),Third Party Payments,DSG - High Needs Block,Windmill Primary School Academy,29/06/2022,"1,654.35"
Education & Skills,SEND (0-25),Third Party Payments,DSG - High Needs Block,Wrekin View Primary School,29/06/2022,"4,831.12"
Education & Skills,SEND (0-25),Third Party Payments,DSG - High Needs Block,Redhill Primary Academy,29/06/2022,"4,614.76"
Education & Skills,SEND (0-25),Third Party Payments,DSG - High Needs Block,Dawley C of E Primary Academy,29/06/2022,348.28
Education & Skills,SEND (0-25),Third Party Payments,DSG - High Needs Block,Lawley Village Academy,29/06/2022,"1,480.20"
Education & Skills,SEND (0-25),Third Party Payments,DSG - High Needs Block,Crudgington Primary School,29/06/2022,348.28
Education & Skills,SEND (0-25),Third Party Payments,DSG - High Needs Block,St Peter�s Bratton C of E Academy,29/06/2022,696.57
Education & Skills,SEND (0-25),Third Party Payments,DSG - High Needs Block,Grange Park Primary School - Community Academies Trust,29/06/2022,"3,744.05"
Education & Skills,SEND (0-25),Third Party Payments,DSG - High Needs Block,THOMAS TELFORD SCHOOL ,29/06/2022,348.28
Education & Skills,SEND (0-25),Third Party Payments,DSG - High Needs Block,CAT - Telford Priory School,29/06/2022,"5,746.68"
Education & Skills,SEND (0-25),Third Party Payments,DSG - High Needs Block,NEWPORT GIRLS HIGH SCHOOL ACADEMY TRUST,09/06/2022,609.50
Education & Skills,SEND (0-25),Third Party Payments,DSG - High Needs Block,Telford Park School,29/06/2022,"5,659.61"
Education & Skills,SEND (0-25),Third Party Payments,DSG - High Needs Block,NEWPORT GIRLS HIGH SCHOOL ACADEMY TRUST,29/06/2022,609.50
Education & Skills,SEND (0-25),Third Party Payments,DSG - High Needs Block,MADELEY ACADEMY TRUST LTD,29/06/2022,"6,094.96"
Education & Skills,SEND (0-25),Third Party Payments,DSG - High Needs Block,Ercall Wood Academy,29/06/2022,"9,751.94"
Education & Skills,SEND (0-25),Third Party Payments,DSG - High Needs Block,Charlton Academy,29/06/2022,"3,744.05"
Education & Skills,SEND (0-25),Third Party Payments,DSG - High Needs Block,ABRAHAM DARBY ACADEMY,29/06/2022,"6,443.24"
Education & Skills,SEND (0-25),Third Party Payments,DSG - High Needs Block,The Telford Langley School ,29/06/2022,"6,182.04"
Education & Skills,SEND (0-25),Third Party Payments,DSG - High Needs Block,Hadley Learning Community Academy,29/06/2022,"14,714.99"
Education & Skills,SEND (0-25),Third Party Payments,DSG - High Needs Block,Hadley Learning Community Academy,29/06/2022,"2,089.70"
Education & Skills,SEND (0-25),Third Party Payments,DSG - High Needs Block,Maple Hayes Dyslexia School & Research Centre,29/06/2022,"7,455.20"
Education & Skills,SEND (0-25),Third Party Payments,DSG - High Needs Block,Peak Activity Services Ltd,29/06/2022,"-11,025.00"
Education & Skills,SEND (0-25),Third Party Payments,DSG - High Needs Block,Peak Activity Services Ltd,29/06/2022,"21,535.00"
Education & Skills,SEND (0-25),Third Party Payments,DSG - High Needs Block,CASTLE HOUSE SCHOOL TRUST LTD,29/06/2022,"6,965.97"
Education & Skills,SEND (0-25),Third Party Payments,DSG - High Needs Block,Keys PCE Limited,29/06/2022,"3,230.00"
Education & Skills,SEND (0-25),Third Party Payments,DSG - High Needs Block,Acorn Care & Education Ltd,29/06/2022,"4,976.65"
Education & Skills,SEND (0-25),Third Party Payments,DSG - High Needs Block,THE EDUCATION DEVELOPMENT SERVICE LTD,29/06/2022,"17,250.00"
Education & Skills,SEND (0-25),Third Party Payments,DSG - High Needs Block,Pine Green Academy,06/06/2022,"14,115.34"
Education & Skills,SEND (0-25),Third Party Payments,DSG - High Needs Block,Loxley Hall School,20/06/2022,"3,085.46"
Education & Skills,SEND (0-25),Third Party Payments,DSG - High Needs Block,DAISY CHAIN @ OLD HALL,29/06/2022,"1,249.53"
Education & Skills,SEND (0-25),Third Party Payments,DSG - High Needs Block,Novostart Nursery and Pre-School,29/06/2022,"3,992.26"
Education & Skills,SEND (0-25),Third Party Payments,DSG - High Needs Block,Twiggys Day Nursery Ltd SUTTON HILL,29/06/2022,"1,249.53"
Education & Skills,SEND (0-25),Third Party Payments,DSG - High Needs Block,HALESFIELD DAY NURSERY CENTRE ,29/06/2022,"5,323.61"
Education & Skills,SEND (0-25),Employees,Agency Supply Costs,Guide Dogs for the Blind,20/06/2022,"2,168.00"
Education & Skills,SEND (0-25),Employees,Professional Subs,KENT COUNTY COUNCIL,30/06/2022,350.00
Education & Skills,SEND (0-25),Supplies & Services,Mobile Phones,EE LTD EQUIPMENT,21/06/2022,142.00
Education & Skills,SEND (0-25),Supplies & Services,Equipment - Purchase,OTICON LIMITED,28/06/2022,259.00
Education & Skills,SEND (0-25),Third Party Payments,DSG - High Needs Block,HRP Education,06/06/2022,735.00
Education & Skills,SEND (0-25),Third Party Payments,DSG - High Needs Block,HRP Education,06/06/2022,294.00
Education & Skills,SEND (0-25),Third Party Payments,DSG - High Needs Block,HRP Education,06/06/2022,294.00
Education & Skills,SEND (0-25),Third Party Payments,DSG - High Needs Block,HRP Education,20/06/2022,245.00
Education & Skills,SEND (0-25),Third Party Payments,DSG - High Needs Block,HRP Education,20/06/2022,980.00
Education & Skills,SEND (0-25),Third Party Payments,DSG - High Needs Block,HRP Education,20/06/2022,245.00
Education & Skills,SEND (0-25),Third Party Payments,DSG - High Needs Block,HRP Education,20/06/2022,294.00
Education & Skills,SEND (0-25),Third Party Payments,DSG - High Needs Block,HRP Education,20/06/2022,294.00
Education & Skills,SEND (0-25),Third Party Payments,DSG - High Needs Block,HRP Education,20/06/2022,735.00
Education & Skills,SEND (0-25),Third Party Payments,DSG - High Needs Block,HRP Education,20/06/2022,294.00
Education & Skills,SEND (0-25),Third Party Payments,DSG - High Needs Block,HRP Education,20/06/2022,294.00
Education & Skills,SEND (0-25),Third Party Payments,DSG - High Needs Block,HRP Education,20/06/2022,294.00
Education & Skills,SEND (0-25),Third Party Payments,DSG - High Needs Block,HRP Education,20/06/2022,735.00
Education & Skills,SEND (0-25),Third Party Payments,DSG - High Needs Block,HRP Education,20/06/2022,318.50
Education & Skills,SEND (0-25),Third Party Payments,DSG - High Needs Block,HRP Education,29/06/2022,980.00
Education & Skills,SEND (0-25),Third Party Payments,DSG - High Needs Block,HRP Education,29/06/2022,294.00
Education & Skills,SEND (0-25),Third Party Payments,DSG - High Needs Block,HRP Education,29/06/2022,735.00
Education & Skills,SEND (0-25),Third Party Payments,DSG - High Needs Block,HRP Education,29/06/2022,245.00
Education & Skills,SEND (0-25),Third Party Payments,DSG - High Needs Block,HRP Education,29/06/2022,980.00
Education & Skills,SEND (0-25),Third Party Payments,DSG - High Needs Block,HRP Education,29/06/2022,980.00
Education & Skills,SEND (0-25),Third Party Payments,DSG - High Needs Block,HRP Education,29/06/2022,294.00
Education & Skills,SEND (0-25),Third Party Payments,DSG - High Needs Block,Telford Park School,29/06/2022,112.21
Education & Skills,SEND (0-25),Third Party Payments,DSG - High Needs Block,PRIORSLEE ACADEMY,29/06/2022,416.94
Education & Skills,SEND (0-25),Third Party Payments,DSG - High Needs Block,Windmill Primary School Academy,29/06/2022,333.92
Education & Skills,SEND (0-25),Third Party Payments,DSG - High Needs Block,Wrekin View Primary School,29/06/2022,833.78
Education & Skills,SEND (0-25),Third Party Payments,DSG - High Needs Block,Redhill Primary Academy,29/06/2022,671.33
Education & Skills,SEND (0-25),Third Party Payments,DSG - High Needs Block,Hadley Learning Community Academy,29/06/2022,568.22
Education & Skills,SEND (0-25),Third Party Payments,DSG - High Needs Block,Hadley Learning Community Academy,29/06/2022,158.02
Education & Skills,SEND (0-25),Third Party Payments,DSG - High Needs Block,ABRAHAM DARBY ACADEMY ,29/06/2022,304.58
Education & Skills,SEND (0-25),Third Party Payments,DSG - High Needs Block,Charlton Academy,29/06/2022,174.14
Education & Skills,SEND (0-25),Third Party Payments,DSG - High Needs Block,MADELEY ACADEMY TRUST LTD,29/06/2022,814.51
Education & Skills,SEND (0-25),Third Party Payments,DSG - High Needs Block,Lawley Village Academy,29/06/2022,219.94
Education & Skills,SEND (0-25),Third Party Payments,DSG - High Needs Block,RED GEORGE RURAL SKILLS PROJECT,20/06/2022,700.00
Education & Skills,SEND (0-25),Third Party Payments,DSG - High Needs Block,RED GEORGE RURAL SKILLS PROJECT,20/06/2022,200.00
Education & Skills,SEND (0-25),Third Party Payments,DSG - High Needs Block,CROSSBAR COACHING,06/06/2022,"3,900.00"
Education & Skills,SEND (0-25),Third Party Payments,DSG - High Needs Block,Newcastle Under-Lyme College,06/06/2022,"2,620.45"
Education & Skills,SEND (0-25),Third Party Payments,DSG - High Needs Block,REASEHEATH COLLEGE,20/06/2022,"3,714.00"
Education & Skills,SEND (0-25),Third Party Payments,DSG - High Needs Block,CROSSBAR COACHING,29/06/2022,"3,900.00"
Education & Skills,SEND (0-25),Third Party Payments,DSG - High Needs Block,CROSSBAR COACHING,29/06/2022,"1,950.00"
Education & Skills,Skills,Supplies & Services,Exam Fees,OPEN COLLEGE NETWORK WEST MIDLANDS REGION,30/06/2022,189.00
Education & Skills,Skills,Supplies & Services,Exam Fees,OPEN COLLEGE NETWORK WEST MIDLANDS REGION,30/06/2022,126.00
Education & Skills,Skills,Supplies & Services,Exam Fees,CITY & GUILDS,30/06/2022,323.75
Education & Skills,Skills,Supplies & Services,Exam Fees,CITY & GUILDS,30/06/2022,101.75
Education & Skills,Skills,Supplies & Services,Exam Fees,CITY & GUILDS,06/06/2022,777.00
Education & Skills,Skills,Premises-Related Expenditure,Hire Of Rooms,DONNINGTON PARTNERSHIP,15/06/2022,700.00
Education & Skills,Skills,Supplies & Services,Other Grants (Expenses),SBC Training,15/06/2022,"10,000.00"
Finance & Human Resources,Finance,Supplies & Services,Other Services,ALLPAY.NET LIMITED,10/06/2022,250.46
Finance & Human Resources,Finance,Supplies & Services,Other Services,ALLPAY.NET LIMITED,10/06/2022,"1,925.37"
Finance & Human Resources,"Finance Manager (Business, Education & Care)",Premises-Related Expenditure,Hire Of Rooms,MEETING POINT TRUST LTD,16/06/2022,105.00
Finance & Human Resources,Human Resources,Employees,Other Employee Costs,Health Assured Ltd,21/06/2022,"5,760.73"
Finance & Human Resources,Human Resources,Supplies & Services,Doctors Fees,Health Assured Ltd,21/06/2022,"5,760.72"
Finance & Human Resources,Human Resources,Employees,Criminal Records Bureau Checks,Capita Recruitment Vetting Service,13/06/2022,541.28
Finance & Human Resources,Human Resources,Employees,Criminal Records Bureau Checks,DISCLOSURE & BARRING SERVICE,21/06/2022,"9,212.00"
Finance & Human Resources,Human Resources,Employees,Recruitment Advertising,Talos 360 Ltd,08/06/2022,"7,475.00"
Finance & Human Resources,Human Resources,Supplies & Services,Doctors Fees,COURT STREET MEDICAL PRACTICE,28/06/2022,108.00
Finance & Human Resources,Human Resources,Supplies & Services,Subscriptions,West Midlands Employers,28/06/2022,487.00
Finance & Human Resources,Human Resources,Supplies & Services,Doctors Fees,TELDOC Partnership,16/06/2022,104.00
Finance & Human Resources,Human Resources,Supplies & Services,Doctors Fees,Ensure Health LTD,07/06/2022,380.00
Finance & Human Resources,Human Resources,Supplies & Services,Doctors Fees,Ensure Health LTD,16/06/2022,490.00
Finance & Human Resources,Human Resources,Supplies & Services,Subscriptions,West Midlands Employers,15/06/2022,"25,382.00"
Finance & Human Resources,Revenues,Supplies & Services,Printing - Other,Systematic Print Management Limited,06/06/2022,268.00
Finance & Human Resources,Revenues,Supplies & Services,Printing - Other,MARKETING AT THE MILL,09/06/2022,165.00
Finance & Human Resources,Revenues,Supplies & Services,Printing - Other,MARKETING AT THE MILL,09/06/2022,375.00
Finance & Human Resources,Revenues,Supplies & Services,Printing - Other,MARKETING AT THE MILL,09/06/2022,174.00
Finance & Human Resources,Revenues,Supplies & Services,Printing - Other,MARKETING AT THE MILL,09/06/2022,750.00
Finance & Human Resources,Revenues,Supplies & Services,Printing - Other,MARKETING AT THE MILL,09/06/2022,145.00
Finance & Human Resources,Revenues,Supplies & Services,Printing - Other,MARKETING AT THE MILL,09/06/2022,230.00
Finance & Human Resources,Revenues,Supplies & Services,Printing - Other,MARKETING AT THE MILL,09/06/2022,111.00
Finance & Human Resources,Revenues,Supplies & Services,Printing - Other,MARKETING AT THE MILL,09/06/2022,300.00
Finance & Human Resources,Revenues,Supplies & Services,Printing - Other,MARKETING AT THE MILL,09/06/2022,165.00
Finance & Human Resources,Revenues,Supplies & Services,Stationery,PREMIER PAPER GROUP LTD,09/06/2022,108.08
